Organisation Code,Organisation Label,Effective Date,Organisational Unit,Service Division Label,Category Internal Name,Purpose,Detailed Expenditure Code,Payment Date,Transaction Number,Irrecoverable VAT Amount,Amount,Capital Or Revenue,Benificiary Name,Procurement Card
Http://opendatacommunities.org/id/metropolitan-district-council/leeds,Leeds City Council,31/01/2016,Environment & Housing,Environmental Health,Capital,Construction,3,14-Jan-2016,1601-00001,0.00,2501.87,C,A & P Crontractors Ltd,No
Http://opendatacommunities.org/id/metropolitan-district-council/leeds,Leeds City Council,31/01/2016,Citizens and Communities,Benefits  Wlefare and Poverty,Supplies and Services,Grant Related Expenditure,298,12-Jan-2016,1601-00002,0.00,500.00,R,REDACTED PERSONAL DATA,No
Http://opendatacommunities.org/id/metropolitan-district-council/leeds,Leeds City Council,31/01/2016,Central & Corporate,Commercial Services Trading Services,Supplies and Services,Operational Materials,205,13-Jan-2016,1601-00003,0.00,6.80,R,A Andrews & Sons (Marbles & Tiles),No
Http://opendatacommunities.org/id/metropolitan-district-council/leeds,Leeds City Council,31/01/2016,Environment & Housing,Housing Leeds Service,Capital,Other Costs,7,13-Jan-2016,1601-00004,0.00,343.43,C,REDACTED PERSONAL DATA,No
Http://opendatacommunities.org/id/metropolitan-district-council/leeds,Leeds City Council,31/01/2016,City Development,Libraries  Arts & Heritage,Supplies and Services,Operational Materials,205,06-Jan-2016,1601-00005,0.00,38.13,R,A C Entertainment Technologies Ltd,No
Http://opendatacommunities.org/id/metropolitan-district-council/leeds,Leeds City Council,31/01/2016,City Development,Libraries  Arts & Heritage,Supplies and Services,Operational Materials,205,21-Jan-2016,1601-00006,0.00,543.98,R,A C Entertainment Technologies Ltd,No
Http://opendatacommunities.org/id/metropolitan-district-council/leeds,Leeds City Council,31/01/2016,City Development,Libraries  Arts & Heritage,Supplies and Services,Operational Materials,205,22-Jan-2016,1601-00007,0.00,410.00,R,A C Entertainment Technologies Ltd,No
Http://opendatacommunities.org/id/metropolitan-district-council/leeds,Leeds City Council,31/01/2016,Environment & Housing,Parks and Countryside,Supplies and Services,Bought In Professional Services,277,14-Jan-2016,1601-00008,0.00,1194.80,R,REDACTED COMMERCIAL CONFIDENTIALITY,No
Http://opendatacommunities.org/id/metropolitan-district-council/leeds,Leeds City Council,31/01/2016,Civic Enterprise Leeds,Facilities Management,Supplies and Services,Office Furniture & Equipment,201,15-Jan-2016,1601-00009,0.00,267.65,R,A D Smith,No
Http://opendatacommunities.org/id/metropolitan-district-council/leeds,Leeds City Council,31/01/2016,Childrens Services,Learning Skills & Universal,Third Party Payments,Services Rendered By Other Organisations,511,11-Jan-2016,1601-00010,0.00,3072.96,R,A E Speight,No
Http://opendatacommunities.org/id/metropolitan-district-council/leeds,Leeds City Council,31/01/2016,Childrens Services,Learning Skills & Universal,Third Party Payments,Services Rendered By Voluntary Sector,505,15-Jan-2016,1601-00011,0.00,10032.00,R,A E Speight,No
Http://opendatacommunities.org/id/metropolitan-district-council/leeds,Leeds City Council,31/01/2016,Childrens Services,Learning Skills & Universal,Third Party Payments,Services Rendered By Other Organisations,511,15-Jan-2016,1601-00012,0.00,300.96,R,A Foley,No
Http://opendatacommunities.org/id/metropolitan-district-council/leeds,Leeds City Council,31/01/2016,Childrens Services,Learning Skills & Universal,Third Party Payments,Services Rendered By Other Organisations,511,08-Jan-2016,1601-00013,0.00,1280.40,R,A Green,No
Http://opendatacommunities.org/id/metropolitan-district-council/leeds,Leeds City Council,31/01/2016,Childrens Services,Learning Skills & Universal,Third Party Payments,Services Rendered By Other Organisations,511,29-Jan-2016,1601-00014,0.00,501.60,R,A Hayes,No
Http://opendatacommunities.org/id/metropolitan-district-council/leeds,Leeds City Council,31/01/2016,Childrens Services,Learning Skills & Universal,Third Party Payments,Services Rendered By Other Organisations,511,15-Jan-2016,1601-00015,0.00,1003.20,R,A Hodgson,No
Http://opendatacommunities.org/id/metropolitan-district-council/leeds,Leeds City Council,31/01/2016,Central & Corporate,Commercial Services Trading Services,Supplies and Services,Operational Materials,205,12-Jan-2016,1601-00016,0.00,78.81,R,A J H  Pump Supply & Repair Ltd,No
Http://opendatacommunities.org/id/metropolitan-district-council/leeds,Leeds City Council,31/01/2016,Central & Corporate,Commercial Services Trading Services,Supplies and Services,Operational Materials,205,12-Jan-2016,1601-00017,0.00,1559.00,R,A J H  Pump Supply & Repair Ltd,No
Http://opendatacommunities.org/id/metropolitan-district-council/leeds,Leeds City Council,31/01/2016,Central & Corporate,Commercial Services Trading Services,Supplies and Services,Operational Materials,205,13-Jan-2016,1601-00018,0.00,845.00,R,A J H  Pump Supply & Repair Ltd,No
Http://opendatacommunities.org/id/metropolitan-district-council/leeds,Leeds City Council,31/01/2016,Central & Corporate,Commercial Services Trading Services,Supplies and Services,Operational Materials,205,13-Jan-2016,1601-00019,0.00,1754.00,R,A J H  Pump Supply & Repair Ltd,No
Http://opendatacommunities.org/id/metropolitan-district-council/leeds,Leeds City Council,31/01/2016,Central & Corporate,Commercial Services Trading Services,Supplies and Services,Operational Materials,205,13-Jan-2016,1601-00020,0.00,2626.40,R,A J H  Pump Supply & Repair Ltd,No
Http://opendatacommunities.org/id/metropolitan-district-council/leeds,Leeds City Council,31/01/2016,Central & Corporate,Commercial Services Trading Services,Supplies and Services,Operational Materials,205,13-Jan-2016,1601-00021,0.00,458.60,R,A J H  Pump Supply & Repair Ltd,No
Http://opendatacommunities.org/id/metropolitan-district-council/leeds,Leeds City Council,31/01/2016,Central & Corporate,Commercial Services Trading Services,Supplies and Services,Operational Materials,205,13-Jan-2016,1601-00022,0.00,51.81,R,A J H  Pump Supply & Repair Ltd,No
Http://opendatacommunities.org/id/metropolitan-district-council/leeds,Leeds City Council,31/01/2016,Central & Corporate,Commercial Services Trading Services,Supplies and Services,Operational Materials,205,13-Jan-2016,1601-00023,0.00,22.50,R,A J H  Pump Supply & Repair Ltd,No
Http://opendatacommunities.org/id/metropolitan-district-council/leeds,Leeds City Council,31/01/2016,Central & Corporate,Commercial Services Trading Services,Supplies and Services,Operational Materials,205,13-Jan-2016,1601-00024,0.00,190.00,R,A J H  Pump Supply & Repair Ltd,No
Http://opendatacommunities.org/id/metropolitan-district-council/leeds,Leeds City Council,31/01/2016,Central & Corporate,Commercial Services Trading Services,Supplies and Services,Operational Materials,205,13-Jan-2016,1601-00025,0.00,101.08,R,A J H  Pump Supply & Repair Ltd,No
Http://opendatacommunities.org/id/metropolitan-district-council/leeds,Leeds City Council,31/01/2016,Central & Corporate,Commercial Services Trading Services,Supplies and Services,Operational Materials,205,13-Jan-2016,1601-00026,0.00,10.31,R,A J H  Pump Supply & Repair Ltd,No
Http://opendatacommunities.org/id/metropolitan-district-council/leeds,Leeds City Council,31/01/2016,Central & Corporate,Commercial Services Trading Services,Supplies and Services,Operational Materials,205,13-Jan-2016,1601-00027,0.00,290.91,R,A J H  Pump Supply & Repair Ltd,No
Http://opendatacommunities.org/id/metropolitan-district-council/leeds,Leeds City Council,31/01/2016,Central & Corporate,Commercial Services Trading Services,Supplies and Services,Operational Materials,205,13-Jan-2016,1601-00028,0.00,131.26,R,A J H  Pump Supply & Repair Ltd,No
Http://opendatacommunities.org/id/metropolitan-district-council/leeds,Leeds City Council,31/01/2016,Central & Corporate,Commercial Services Trading Services,Supplies and Services,Operational Materials,205,13-Jan-2016,1601-00029,0.00,210.00,R,A J H  Pump Supply & Repair Ltd,No
Http://opendatacommunities.org/id/metropolitan-district-council/leeds,Leeds City Council,31/01/2016,Central & Corporate,Commercial Services Trading Services,Supplies and Services,Operational Materials,205,13-Jan-2016,1601-00030,0.00,56.73,R,A J H  Pump Supply & Repair Ltd,No
Http://opendatacommunities.org/id/metropolitan-district-council/leeds,Leeds City Council,31/01/2016,Central & Corporate,Commercial Services Trading Services,Supplies and Services,Operational Materials,205,13-Jan-2016,1601-00031,0.00,182.00,R,A J H  Pump Supply & Repair Ltd,No
Http://opendatacommunities.org/id/metropolitan-district-council/leeds,Leeds City Council,31/01/2016,Central & Corporate,Commercial Services Trading Services,Supplies and Services,Other Hired And Contracted Services,265,19-Jan-2016,1601-00032,0.00,210.00,R,A J H  Pump Supply & Repair Ltd,No
Http://opendatacommunities.org/id/metropolitan-district-council/leeds,Leeds City Council,31/01/2016,Central & Corporate,Commercial Services Trading Services,Supplies and Services,Operational Materials,205,19-Jan-2016,1601-00033,0.00,1479.00,R,A J H  Pump Supply & Repair Ltd,No
Http://opendatacommunities.org/id/metropolitan-district-council/leeds,Leeds City Council,31/01/2016,Central & Corporate,Commercial Services Trading Services,Supplies and Services,Operational Materials,205,20-Jan-2016,1601-00034,0.00,377.50,R,A J H  Pump Supply & Repair Ltd,No
Http://opendatacommunities.org/id/metropolitan-district-council/leeds,Leeds City Council,31/01/2016,Central & Corporate,Commercial Services Trading Services,Supplies and Services,Operational Materials,205,20-Jan-2016,1601-00035,0.00,916.00,R,A J H  Pump Supply & Repair Ltd,No
Http://opendatacommunities.org/id/metropolitan-district-council/leeds,Leeds City Council,31/01/2016,Central & Corporate,Commercial Services Trading Services,Supplies and Services,Operational Materials,205,20-Jan-2016,1601-00036,0.00,89.57,R,A J H  Pump Supply & Repair Ltd,No
Http://opendatacommunities.org/id/metropolitan-district-council/leeds,Leeds City Council,31/01/2016,Central & Corporate,Commercial Services Trading Services,Supplies and Services,Operational Materials,205,20-Jan-2016,1601-00037,0.00,27.32,R,A J H  Pump Supply & Repair Ltd,No
Http://opendatacommunities.org/id/metropolitan-district-council/leeds,Leeds City Council,31/01/2016,Central & Corporate,Commercial Services Trading Services,Supplies and Services,Operational Materials,205,20-Jan-2016,1601-00038,0.00,8.95,R,A J H  Pump Supply & Repair Ltd,No
Http://opendatacommunities.org/id/metropolitan-district-council/leeds,Leeds City Council,31/01/2016,Central & Corporate,Commercial Services Trading Services,Supplies and Services,Operational Materials,205,20-Jan-2016,1601-00039,0.00,105.00,R,A J H  Pump Supply & Repair Ltd,No
Http://opendatacommunities.org/id/metropolitan-district-council/leeds,Leeds City Council,31/01/2016,Central & Corporate,Commercial Services Trading Services,Supplies and Services,Operational Materials,205,20-Jan-2016,1601-00040,0.00,350.00,R,A J H  Pump Supply & Repair Ltd,No
Http://opendatacommunities.org/id/metropolitan-district-council/leeds,Leeds City Council,31/01/2016,Central & Corporate,Commercial Services Trading Services,Supplies and Services,Operational Materials,205,20-Jan-2016,1601-00041,0.00,150.00,R,A J H  Pump Supply & Repair Ltd,No
Http://opendatacommunities.org/id/metropolitan-district-council/leeds,Leeds City Council,31/01/2016,Central & Corporate,Commercial Services Trading Services,Supplies and Services,Operational Materials,205,20-Jan-2016,1601-00042,0.00,185.48,R,A J H  Pump Supply & Repair Ltd,No
Http://opendatacommunities.org/id/metropolitan-district-council/leeds,Leeds City Council,31/01/2016,Central & Corporate,Commercial Services Trading Services,Supplies and Services,Operational Materials,205,20-Jan-2016,1601-00043,0.00,69.94,R,A J H  Pump Supply & Repair Ltd,No
Http://opendatacommunities.org/id/metropolitan-district-council/leeds,Leeds City Council,31/01/2016,Central & Corporate,Commercial Services Trading Services,Supplies and Services,Operational Materials,205,20-Jan-2016,1601-00044,0.00,195.00,R,A J H  Pump Supply & Repair Ltd,No
Http://opendatacommunities.org/id/metropolitan-district-council/leeds,Leeds City Council,31/01/2016,Central & Corporate,Commercial Services Trading Services,Supplies and Services,Operational Materials,205,20-Jan-2016,1601-00045,0.00,30.19,R,A J H  Pump Supply & Repair Ltd,No
Http://opendatacommunities.org/id/metropolitan-district-council/leeds,Leeds City Council,31/01/2016,Central & Corporate,Commercial Services Trading Services,Supplies and Services,Operational Materials,205,20-Jan-2016,1601-00046,0.00,35.00,R,A J H  Pump Supply & Repair Ltd,No
Http://opendatacommunities.org/id/metropolitan-district-council/leeds,Leeds City Council,31/01/2016,Central & Corporate,Commercial Services Trading Services,Supplies and Services,Operational Materials,205,20-Jan-2016,1601-00047,0.00,564.76,R,A J H  Pump Supply & Repair Ltd,No
Http://opendatacommunities.org/id/metropolitan-district-council/leeds,Leeds City Council,31/01/2016,Central & Corporate,Commercial Services Trading Services,Supplies and Services,Operational Materials,205,20-Jan-2016,1601-00048,0.00,123.41,R,A J H  Pump Supply & Repair Ltd,No
Http://opendatacommunities.org/id/metropolitan-district-council/leeds,Leeds City Council,31/01/2016,Central & Corporate,Commercial Services Trading Services,Supplies and Services,Operational Materials,205,20-Jan-2016,1601-00049,0.00,65.10,R,A J H  Pump Supply & Repair Ltd,No
Http://opendatacommunities.org/id/metropolitan-district-council/leeds,Leeds City Council,31/01/2016,Central & Corporate,Commercial Services Trading Services,Supplies and Services,Operational Furniture And Equipment,203,20-Jan-2016,1601-00050,0.00,180.00,R,A J H  Pump Supply & Repair Ltd,No
Http://opendatacommunities.org/id/metropolitan-district-council/leeds,Leeds City Council,31/01/2016,Central & Corporate,Commercial Services Trading Services,Supplies and Services,Operational Materials,205,20-Jan-2016,1601-00051,0.00,77.15,R,A J H  Pump Supply & Repair Ltd,No
Http://opendatacommunities.org/id/metropolitan-district-council/leeds,Leeds City Council,31/01/2016,Central & Corporate,Commercial Services Trading Services,Supplies and Services,Operational Materials,205,20-Jan-2016,1601-00052,0.00,31.95,R,A J H  Pump Supply & Repair Ltd,No
Http://opendatacommunities.org/id/metropolitan-district-council/leeds,Leeds City Council,31/01/2016,City Development,Libraries  Arts & Heritage,Supplies and Services,Resaleable Materials,204,15-Jan-2016,1601-00053,0.00,258.00,R,A J Promotions,No
Http://opendatacommunities.org/id/metropolitan-district-council/leeds,Leeds City Council,31/01/2016,City Development,Libraries  Arts & Heritage,Supplies and Services,Resaleable Materials,204,22-Jan-2016,1601-00054,0.00,139.75,R,A J Promotions,No
Http://opendatacommunities.org/id/metropolitan-district-council/leeds,Leeds City Council,31/01/2016,Citizens and Communities,Benefits  Wlefare and Poverty,Supplies and Services,Grant Related Expenditure,298,06-Jan-2016,1601-00055,0.00,500.00,R,REDACTED PERSONAL DATA,No
Http://opendatacommunities.org/id/metropolitan-district-council/leeds,Leeds City Council,31/01/2016,Citizens and Communities,Benefits  Wlefare and Poverty,Supplies and Services,Grant Related Expenditure,298,25-Jan-2016,1601-00056,0.00,500.00,R,REDACTED PERSONAL DATA,No
Http://opendatacommunities.org/id/metropolitan-district-council/leeds,Leeds City Council,31/01/2016,Childrens Services,Learning Skills & Universal,Third Party Payments,Services Rendered By Other Organisations,511,15-Jan-2016,1601-00057,0.00,2708.64,R,A K Walsh,No
Http://opendatacommunities.org/id/metropolitan-district-council/leeds,Leeds City Council,31/01/2016,Childrens Services,Safeguarding Targeted & Specialist,Transfer Payments,Leaving Care Grants,635,29-Jan-2016,1601-00058,0.00,490.00,R,REDACTED PERSONAL DATA,No
Http://opendatacommunities.org/id/metropolitan-district-council/leeds,Leeds City Council,31/01/2016,Environment & Housing,Housing Leeds Service,Capital,Other Costs,7,14-Jan-2016,1601-00059,0.00,350.00,C,REDACTED PERSONAL DATA,No
Http://opendatacommunities.org/id/metropolitan-district-council/leeds,Leeds City Council,31/01/2016,Childrens Services,Learning Skills & Universal,Third Party Payments,Services Rendered By Voluntary Sector,505,11-Jan-2016,1601-00060,0.00,720.00,R,A Little Something Extra Ltd,No
Http://opendatacommunities.org/id/metropolitan-district-council/leeds,Leeds City Council,31/01/2016,Childrens Services,Learning Skills & Universal,Third Party Payments,Services Rendered By Voluntary Sector,505,25-Jan-2016,1601-00061,0.00,510.00,R,A Little Something Extra Ltd,No
Http://opendatacommunities.org/id/metropolitan-district-council/leeds,Leeds City Council,31/01/2016,Citizens and Communities,Customer Access,Supplies and Services,Other Hired And Contracted Services,265,28-Jan-2016,1601-00062,0.00,192.00,R,A Mohammed,No
Http://opendatacommunities.org/id/metropolitan-district-council/leeds,Leeds City Council,31/01/2016,Citizens and Communities,Customer Access,Supplies and Services,Other Hired And Contracted Services,265,28-Jan-2016,1601-00063,0.00,140.75,R,A Musalam,No
Http://opendatacommunities.org/id/metropolitan-district-council/leeds,Leeds City Council,31/01/2016,Childrens Services,Learning Skills & Universal,Third Party Payments,Services Rendered By Other Organisations,511,11-Jan-2016,1601-00064,0.00,9603.00,R,A Myland,No
Http://opendatacommunities.org/id/metropolitan-district-council/leeds,Leeds City Council,31/01/2016,Childrens Services,Learning Skills & Universal,Third Party Payments,Services Rendered By Other Organisations,511,15-Jan-2016,1601-00065,0.00,4514.40,R,A Myland,No
Http://opendatacommunities.org/id/metropolitan-district-council/leeds,Leeds City Council,31/01/2016,City Development,Libraries  Arts & Heritage,Supplies and Services,Other Hired And Contracted Services,265,13-Jan-2016,1601-00066,0.00,2500.00,R,A Quiet Word Ltd,No
Http://opendatacommunities.org/id/metropolitan-district-council/leeds,Leeds City Council,31/01/2016,City Development,Libraries  Arts & Heritage,Supplies and Services,Books & Audio-Visual Materials,206,08-Jan-2016,1601-00067,0.00,138.90,R,A S Jhagra,No
Http://opendatacommunities.org/id/metropolitan-district-council/leeds,Leeds City Council,31/01/2016,Civic Enterprise Leeds,Business Support Centre,Supplies and Services,Other Hired And Contracted Services,265,06-Jan-2016,1601-00068,0.00,46.25,R,A Star Couriers Ltd,No
Http://opendatacommunities.org/id/metropolitan-district-council/leeds,Leeds City Council,31/01/2016,Environment & Housing,Waste Management,Employees,Statutory Adoption Pay,17,20-Jan-2016,1601-00069,0.00,409.00,R,A T Nerac Ltd,No
Http://opendatacommunities.org/id/metropolitan-district-council/leeds,Leeds City Council,31/01/2016,City Development,Economic Development,Supplies and Services,Grants To Businesses,243,15-Jan-2016,1601-00070,0.00,2500.00,R,A Taylor & Son Leeds Ltd,No
Http://opendatacommunities.org/id/metropolitan-district-council/leeds,Leeds City Council,31/01/2016,Citizens and Communities,Benefits  Wlefare and Poverty,Supplies and Services,Grant Related Expenditure,298,20-Jan-2016,1601-00071,0.00,500.00,R,REDACTED PERSONAL DATA,No
Http://opendatacommunities.org/id/metropolitan-district-council/leeds,Leeds City Council,31/01/2016,Citizens and Communities,Benefits  Wlefare and Poverty,Supplies and Services,Grant Related Expenditure,298,11-Jan-2016,1601-00072,0.00,500.00,R,REDACTED PERSONAL DATA,No
Http://opendatacommunities.org/id/metropolitan-district-council/leeds,Leeds City Council as Accountable Body,31/01/2016,Social Services Pooled Budgets,Leeds Community Equip Store Pooled Budgt,Supplies and Services,Other Equipment,203,20-Jan-2016,1601-00073,0.00,189.00,R,Aat (Gb) Ltd,No
Http://opendatacommunities.org/id/metropolitan-district-council/leeds,Leeds City Council,31/01/2016,Childrens Services,Safeguarding Targeted & Specialist,Support Services,Legal Disbursements,411,20-Jan-2016,1601-00074,0.00,37.63,R,Abacus Express Limited,No
Http://opendatacommunities.org/id/metropolitan-district-council/leeds,Leeds City Council,31/01/2016,Childrens Services,Safeguarding Targeted & Specialist,Support Services,Legal Disbursements,411,21-Jan-2016,1601-00075,0.00,31.02,R,Abacus Express Limited,No
Http://opendatacommunities.org/id/metropolitan-district-council/leeds,Leeds City Council,31/01/2016,City Development,Planning & Sustainable Development,Supplies and Services,Other Hired And Contracted Services,265,22-Jan-2016,1601-00076,0.00,14.51,R,Abacus Express Limited,No
Http://opendatacommunities.org/id/metropolitan-district-council/leeds,Leeds City Council,31/01/2016,City Development,Planning & Sustainable Development,Supplies and Services,Other Hired And Contracted Services,265,22-Jan-2016,1601-00077,0.00,14.51,R,Abacus Express Limited,No
Http://opendatacommunities.org/id/metropolitan-district-council/leeds,Leeds City Council,31/01/2016,Childrens Services,Learning Skills & Universal,Third Party Payments,Services Rendered By Other Organisations,511,08-Jan-2016,1601-00078,0.00,6402.00,R,Abc Daycare And Ozone Out Of School,No
Http://opendatacommunities.org/id/metropolitan-district-council/leeds,Leeds City Council,31/01/2016,Childrens Services,Learning Skills & Universal,Third Party Payments,Services Rendered By Other Organisations,511,15-Jan-2016,1601-00079,0.00,5016.00,R,Abc Daycare And Ozone Out Of School,No
Http://opendatacommunities.org/id/metropolitan-district-council/leeds,Leeds City Council,31/01/2016,Childrens Services,Learning Skills & Universal,Third Party Payments,Services Rendered By Other Organisations,511,08-Jan-2016,1601-00080,0.00,3841.20,R,Abc Nursery At Lufc,No
Http://opendatacommunities.org/id/metropolitan-district-council/leeds,Leeds City Council,31/01/2016,Childrens Services,Learning Skills & Universal,Third Party Payments,Services Rendered By Other Organisations,511,15-Jan-2016,1601-00081,0.00,10533.60,R,Abc Nursery At Lufc,No
Http://opendatacommunities.org/id/metropolitan-district-council/leeds,Leeds City Council,31/01/2016,Childrens Services,Learning Skills & Universal,Third Party Payments,Services Rendered By Other Organisations,511,08-Jan-2016,1601-00082,0.00,1920.60,R,Abc@D'S Childcare Services,No
Http://opendatacommunities.org/id/metropolitan-district-council/leeds,Leeds City Council,31/01/2016,Childrens Services,Learning Skills & Universal,Third Party Payments,Services Rendered By Other Organisations,511,15-Jan-2016,1601-00083,0.00,174.80,R,Abc@D'S Childcare Services,No
Http://opendatacommunities.org/id/metropolitan-district-council/leeds,Leeds City Council,31/01/2016,City Development,Libraries  Arts & Heritage,Supplies and Services,Office Furniture & Equipment,201,08-Jan-2016,1601-00084,0.00,860.00,R,Aberfield Communications Limited,No
Http://opendatacommunities.org/id/metropolitan-district-council/leeds,Leeds City Council,31/01/2016,City Development,Libraries  Arts & Heritage,Supplies and Services,Office Furniture & Equipment,201,08-Jan-2016,1601-00085,0.00,860.00,R,Aberfield Communications Limited,No
Http://opendatacommunities.org/id/metropolitan-district-council/leeds,Leeds City Council,31/01/2016,Adult Social Care,Services For Older People - 65 And Over,Third Party Payments,Nursing Home,570,13-Jan-2016,1601-00086,0.00,43087.34,R,Aberford Hall,No
Http://opendatacommunities.org/id/metropolitan-district-council/leeds,Leeds City Council,31/01/2016,Adult Social Care,Services For Older People - 65 And Over,Third Party Payments,Nursing Care Dementia,574,13-Jan-2016,1601-00087,0.00,1856.00,R,Aberford Hall,No
Http://opendatacommunities.org/id/metropolitan-district-council/leeds,Leeds City Council,31/01/2016,Adult Social Care,Services For Older People - 65 And Over,Third Party Payments,Residential,580,13-Jan-2016,1601-00088,0.00,6721.90,R,Aberford Hall,No
Http://opendatacommunities.org/id/metropolitan-district-council/leeds,Leeds City Council,31/01/2016,Environment & Housing,Parks and Countryside,Supplies and Services,Operational Furniture And Equipment,203,21-Jan-2016,1601-00089,0.00,1382.50,R,Abram Pulman & Sons Limited,No
Http://opendatacommunities.org/id/metropolitan-district-council/leeds,Leeds City Council,31/01/2016,Childrens Services,Safeguarding Targeted & Specialist,Employees,Agency Staff,8,08-Jan-2016,1601-00090,0.00,1682.85,R,Academic Appointments Ltd,No
Http://opendatacommunities.org/id/metropolitan-district-council/leeds,Leeds City Council,31/01/2016,Childrens Services,Safeguarding Targeted & Specialist,Employees,Agency Staff,8,14-Jan-2016,1601-00091,0.00,1682.85,R,Academic Appointments Ltd,No
Http://opendatacommunities.org/id/metropolitan-district-council/leeds,Leeds City Council,31/01/2016,Environment & Housing,Environmental Health,Capital,Construction,3,21-Jan-2016,1601-00092,0.00,3120.12,C,Accent Homes Ltd,No
Http://opendatacommunities.org/id/metropolitan-district-council/leeds,Leeds City Council,31/01/2016,Adult Social Care,Services For Older People Under 65 P/Dis,Supplies and Services,Recurring & Major Grants Projects,229,15-Jan-2016,1601-00093,0.00,2000.00,R,Access Committee For Leeds,No
Http://opendatacommunities.org/id/metropolitan-district-council/leeds,Leeds City Council,31/01/2016,Environment & Housing,Community Safety,Supplies and Services,Other Hired And Contracted Services,265,29-Jan-2016,1601-00094,0.00,1350.71,R,Access Hire Nationwide Ltd,No
Http://opendatacommunities.org/id/metropolitan-district-council/leeds,Leeds City Council,31/01/2016,Civic Enterprise Leeds,Commercial Services,Supplies and Services,Operational Materials,205,08-Jan-2016,1601-00095,0.00,183.15,R,Access Locksmiths (Leeds) Limited,No
Http://opendatacommunities.org/id/metropolitan-district-council/leeds,Leeds City Council,31/01/2016,Central & Corporate,Commercial Services Trading Services,Supplies and Services,Other Hired And Contracted Services,265,12-Jan-2016,1601-00096,0.00,12.95,R,Access Locksmiths (Leeds) Limited,No
Http://opendatacommunities.org/id/metropolitan-district-council/leeds,Leeds City Council,31/01/2016,Central & Corporate,Commercial Services Trading Services,Supplies and Services,Other Hired And Contracted Services,265,12-Jan-2016,1601-00097,0.00,9.00,R,Access Locksmiths (Leeds) Limited,No
Http://opendatacommunities.org/id/metropolitan-district-council/leeds,Leeds City Council,31/01/2016,Strategic Landlord,Housing Management,Supplies and Services,Operational Materials,205,15-Jan-2016,1601-00098,0.00,25.00,R,Access Locksmiths (Leeds) Limited,No
Http://opendatacommunities.org/id/metropolitan-district-council/leeds,Leeds City Council,31/01/2016,Strategic Landlord,Housing Management,Premises,General Maintenance,104,15-Jan-2016,1601-00099,0.00,445.91,R,Access Locksmiths (Leeds) Limited,No
Http://opendatacommunities.org/id/metropolitan-district-council/leeds,Leeds City Council,31/01/2016,Strategic Landlord,Housing Management,Premises,General Maintenance,104,15-Jan-2016,1601-00100,0.00,103.70,R,Access Locksmiths (Leeds) Limited,No
Http://opendatacommunities.org/id/metropolitan-district-council/leeds,Leeds City Council,31/01/2016,Environment & Housing,Environmental Action (East North East),Supplies and Services,Operational Furniture And Equipment,203,15-Jan-2016,1601-00101,0.00,75.00,R,Access Locksmiths (Leeds) Limited,No
Http://opendatacommunities.org/id/metropolitan-district-council/leeds,Leeds City Council,31/01/2016,Strategic Landlord,Property and Contracts,Premises,General Maintenance,104,15-Jan-2016,1601-00102,0.00,371.00,R,Access Locksmiths (Leeds) Limited,No
Http://opendatacommunities.org/id/metropolitan-district-council/leeds,Leeds City Council,31/01/2016,Central & Corporate,Commercial Services Trading Services,Supplies and Services,Operational Materials,205,20-Jan-2016,1601-00103,0.00,23.13,R,Access Locksmiths (Leeds) Limited,No
Http://opendatacommunities.org/id/metropolitan-district-council/leeds,Leeds City Council,31/01/2016,Strategic Landlord,Property and Contracts,Supplies and Services,Other Hired And Contracted Services,265,21-Jan-2016,1601-00104,0.00,10.00,R,Access Locksmiths (Leeds) Limited,No
Http://opendatacommunities.org/id/metropolitan-district-council/leeds,Leeds City Council,31/01/2016,Strategic Landlord,Housing Management,Supplies and Services,Operational Furniture And Equipment,203,21-Jan-2016,1601-00105,0.00,133.70,R,Access Locksmiths (Leeds) Limited,No
Http://opendatacommunities.org/id/metropolitan-district-council/leeds,Leeds City Council,31/01/2016,Strategic Landlord,Housing Management,Supplies and Services,Operational Furniture And Equipment,203,21-Jan-2016,1601-00106,0.00,5.00,R,Access Locksmiths (Leeds) Limited,No
Http://opendatacommunities.org/id/metropolitan-district-council/leeds,Leeds City Council,31/01/2016,Strategic Landlord,Property and Contracts,Premises,General Maintenance,104,21-Jan-2016,1601-00107,0.00,12.50,R,Access Locksmiths (Leeds) Limited,No
Http://opendatacommunities.org/id/metropolitan-district-council/leeds,Leeds City Council,31/01/2016,Strategic Landlord,Housing Management,Premises,General Maintenance,104,22-Jan-2016,1601-00108,0.00,207.40,R,Access Locksmiths (Leeds) Limited,No
Http://opendatacommunities.org/id/metropolitan-district-council/leeds,Leeds City Council,31/01/2016,Strategic Landlord,Housing Management,Premises,Premises Security Services,162,27-Jan-2016,1601-00109,0.00,5.00,R,Access Locksmiths (Leeds) Limited,No
Http://opendatacommunities.org/id/metropolitan-district-council/leeds,Leeds City Council,31/01/2016,Central & Corporate,Commercial Services Trading Services,Supplies and Services,Other Hired And Contracted Services,265,08-Jan-2016,1601-00110,0.00,85.00,R,Access Opening Systems Limited,No
Http://opendatacommunities.org/id/metropolitan-district-council/leeds,Leeds City Council,31/01/2016,Central & Corporate,Commercial Services Trading Services,Supplies and Services,Other Hired And Contracted Services,265,08-Jan-2016,1601-00111,0.00,85.00,R,Access Opening Systems Limited,No
Http://opendatacommunities.org/id/metropolitan-district-council/leeds,Leeds City Council,31/01/2016,Central & Corporate,Commercial Services Trading Services,Supplies and Services,Other Hired And Contracted Services,265,08-Jan-2016,1601-00112,0.00,110.00,R,Access Opening Systems Limited,No
Http://opendatacommunities.org/id/metropolitan-district-council/leeds,Leeds City Council,31/01/2016,Central & Corporate,Commercial Services Trading Services,Supplies and Services,Other Hired And Contracted Services,265,08-Jan-2016,1601-00113,0.00,110.00,R,Access Opening Systems Limited,No
Http://opendatacommunities.org/id/metropolitan-district-council/leeds,Leeds City Council,31/01/2016,Central & Corporate,Commercial Services Trading Services,Supplies and Services,Other Hired And Contracted Services,265,08-Jan-2016,1601-00114,0.00,85.00,R,Access Opening Systems Limited,No
Http://opendatacommunities.org/id/metropolitan-district-council/leeds,Leeds City Council,31/01/2016,Central & Corporate,Commercial Services Trading Services,Supplies and Services,Other Hired And Contracted Services,265,08-Jan-2016,1601-00115,0.00,110.00,R,Access Opening Systems Limited,No
Http://opendatacommunities.org/id/metropolitan-district-council/leeds,Leeds City Council,31/01/2016,Central & Corporate,Commercial Services Trading Services,Supplies and Services,Other Hired And Contracted Services,265,08-Jan-2016,1601-00116,0.00,85.00,R,Access Opening Systems Limited,No
Http://opendatacommunities.org/id/metropolitan-district-council/leeds,Leeds City Council,31/01/2016,Central & Corporate,Commercial Services Trading Services,Supplies and Services,Other Hired And Contracted Services,265,08-Jan-2016,1601-00117,0.00,85.00,R,Access Opening Systems Limited,No
Http://opendatacommunities.org/id/metropolitan-district-council/leeds,Leeds City Council,31/01/2016,Central & Corporate,Commercial Services Trading Services,Supplies and Services,Other Hired And Contracted Services,265,08-Jan-2016,1601-00118,0.00,85.00,R,Access Opening Systems Limited,No
Http://opendatacommunities.org/id/metropolitan-district-council/leeds,Leeds City Council,31/01/2016,Central & Corporate,Commercial Services Trading Services,Supplies and Services,Other Hired And Contracted Services,265,08-Jan-2016,1601-00119,0.00,85.00,R,Access Opening Systems Limited,No
Http://opendatacommunities.org/id/metropolitan-district-council/leeds,Leeds City Council,31/01/2016,Central & Corporate,Commercial Services Trading Services,Supplies and Services,Other Hired And Contracted Services,265,08-Jan-2016,1601-00120,0.00,188.75,R,Access Opening Systems Limited,No
Http://opendatacommunities.org/id/metropolitan-district-council/leeds,Leeds City Council,31/01/2016,Central & Corporate,Commercial Services Trading Services,Supplies and Services,Other Hired And Contracted Services,265,08-Jan-2016,1601-00121,0.00,85.00,R,Access Opening Systems Limited,No
Http://opendatacommunities.org/id/metropolitan-district-council/leeds,Leeds City Council,31/01/2016,Central & Corporate,Commercial Services Trading Services,Supplies and Services,Other Hired And Contracted Services,265,08-Jan-2016,1601-00122,0.00,85.00,R,Access Opening Systems Limited,No
Http://opendatacommunities.org/id/metropolitan-district-council/leeds,Leeds City Council,31/01/2016,Central & Corporate,Commercial Services Trading Services,Supplies and Services,Other Hired And Contracted Services,265,12-Jan-2016,1601-00123,0.00,85.00,R,Access Opening Systems Limited,No
Http://opendatacommunities.org/id/metropolitan-district-council/leeds,Leeds City Council,31/01/2016,Central & Corporate,Commercial Services Trading Services,Supplies and Services,Operational Materials,205,13-Jan-2016,1601-00124,0.00,257.00,R,Access Opening Systems Limited,No
Http://opendatacommunities.org/id/metropolitan-district-council/leeds,Leeds City Council,31/01/2016,Central & Corporate,Commercial Services Trading Services,Supplies and Services,Operational Materials,205,13-Jan-2016,1601-00125,0.00,50.00,R,Access Opening Systems Limited,No
Http://opendatacommunities.org/id/metropolitan-district-council/leeds,Leeds City Council,31/01/2016,Central & Corporate,Commercial Services Trading Services,Supplies and Services,Operational Materials,205,15-Jan-2016,1601-00126,0.00,135.00,R,Access Opening Systems Limited,No
Http://opendatacommunities.org/id/metropolitan-district-council/leeds,Leeds City Council,31/01/2016,Central & Corporate,Commercial Services Trading Services,Supplies and Services,Operational Materials,205,20-Jan-2016,1601-00127,0.00,171.00,R,Access Opening Systems Limited,No
Http://opendatacommunities.org/id/metropolitan-district-council/leeds,Leeds City Council,31/01/2016,Central & Corporate,Commercial Services Trading Services,Supplies and Services,Operational Materials,205,20-Jan-2016,1601-00128,0.00,855.00,R,Access Opening Systems Limited,No
Http://opendatacommunities.org/id/metropolitan-district-council/leeds,Leeds City Council,31/01/2016,Central & Corporate,Commercial Services Trading Services,Supplies and Services,Other Hired And Contracted Services,265,20-Jan-2016,1601-00129,0.00,3666.60,R,Access Opening Systems Limited,No
Http://opendatacommunities.org/id/metropolitan-district-council/leeds,Leeds City Council,31/01/2016,Central & Corporate,Commercial Services Trading Services,Supplies and Services,Other Hired And Contracted Services,265,20-Jan-2016,1601-00130,0.00,890.20,R,Access Opening Systems Limited,No
Http://opendatacommunities.org/id/metropolitan-district-council/leeds,Leeds City Council,31/01/2016,Central & Corporate,Commercial Services Trading Services,Supplies and Services,Other Hired And Contracted Services,265,20-Jan-2016,1601-00131,0.00,85.00,R,Access Opening Systems Limited,No
Http://opendatacommunities.org/id/metropolitan-district-council/leeds,Leeds City Council,31/01/2016,Central & Corporate,Commercial Services Trading Services,Supplies and Services,Other Hired And Contracted Services,265,20-Jan-2016,1601-00132,0.00,110.00,R,Access Opening Systems Limited,No
Http://opendatacommunities.org/id/metropolitan-district-council/leeds,Leeds City Council,31/01/2016,Central & Corporate,Commercial Services Trading Services,Supplies and Services,Other Hired And Contracted Services,265,20-Jan-2016,1601-00133,0.00,85.00,R,Access Opening Systems Limited,No
Http://opendatacommunities.org/id/metropolitan-district-council/leeds,Leeds City Council,31/01/2016,Central & Corporate,Commercial Services Trading Services,Supplies and Services,Other Hired And Contracted Services,265,20-Jan-2016,1601-00134,0.00,85.00,R,Access Opening Systems Limited,No
Http://opendatacommunities.org/id/metropolitan-district-council/leeds,Leeds City Council,31/01/2016,Central & Corporate,Commercial Services Trading Services,Supplies and Services,Operational Materials,205,20-Jan-2016,1601-00135,0.00,50.00,R,Access Opening Systems Limited,No
Http://opendatacommunities.org/id/metropolitan-district-council/leeds,Leeds City Council,31/01/2016,Central & Corporate,Commercial Services Trading Services,Supplies and Services,Operational Materials,205,20-Jan-2016,1601-00136,0.00,50.00,R,Access Opening Systems Limited,No
Http://opendatacommunities.org/id/metropolitan-district-council/leeds,Leeds City Council,31/01/2016,Central & Corporate,Commercial Services Trading Services,Supplies and Services,Operational Materials,205,20-Jan-2016,1601-00137,0.00,96.20,R,Access Opening Systems Limited,No
Http://opendatacommunities.org/id/metropolitan-district-council/leeds,Leeds City Council,31/01/2016,Central & Corporate,Commercial Services Trading Services,Supplies and Services,Other Hired And Contracted Services,265,25-Jan-2016,1601-00138,0.00,85.00,R,Access Opening Systems Limited,No
Http://opendatacommunities.org/id/metropolitan-district-council/leeds,Leeds City Council,31/01/2016,Central & Corporate,Commercial Services Trading Services,Supplies and Services,Other Hired And Contracted Services,265,25-Jan-2016,1601-00139,0.00,85.00,R,Access Opening Systems Limited,No
Http://opendatacommunities.org/id/metropolitan-district-council/leeds,Leeds City Council,31/01/2016,Central & Corporate,Commercial Services Trading Services,Supplies and Services,Other Hired And Contracted Services,265,25-Jan-2016,1601-00140,0.00,110.00,R,Access Opening Systems Limited,No
Http://opendatacommunities.org/id/metropolitan-district-council/leeds,Leeds City Council,31/01/2016,Central & Corporate,Commercial Services Trading Services,Supplies and Services,Other Hired And Contracted Services,265,25-Jan-2016,1601-00141,0.00,160.00,R,Access Opening Systems Limited,No
Http://opendatacommunities.org/id/metropolitan-district-council/leeds,Leeds City Council,31/01/2016,Central & Corporate,Commercial Services Trading Services,Supplies and Services,Other Hired And Contracted Services,265,25-Jan-2016,1601-00142,0.00,85.00,R,Access Opening Systems Limited,No
Http://opendatacommunities.org/id/metropolitan-district-council/leeds,Leeds City Council,31/01/2016,Central & Corporate,Commercial Services Trading Services,Supplies and Services,Other Hired And Contracted Services,265,27-Jan-2016,1601-00143,0.00,462.78,R,Access Opening Systems Limited,No
Http://opendatacommunities.org/id/metropolitan-district-council/leeds,Leeds City Council,31/01/2016,Central & Corporate,Commercial Services Trading Services,Supplies and Services,Other Hired And Contracted Services,265,27-Jan-2016,1601-00144,0.00,85.00,R,Access Opening Systems Limited,No
Http://opendatacommunities.org/id/metropolitan-district-council/leeds,Leeds City Council,31/01/2016,Central & Corporate,Commercial Services Trading Services,Supplies and Services,Other Hired And Contracted Services,265,29-Jan-2016,1601-00145,0.00,85.00,R,Access Opening Systems Limited,No
Http://opendatacommunities.org/id/metropolitan-district-council/leeds,Leeds City Council,31/01/2016,Central & Corporate,Commercial Services Trading Services,Supplies and Services,Other Hired And Contracted Services,265,29-Jan-2016,1601-00146,0.00,85.00,R,Access Opening Systems Limited,No
Http://opendatacommunities.org/id/metropolitan-district-council/leeds,Leeds City Council,31/01/2016,Insurance,Insurance,Supplies and Services,Insurance Claims,248,07-Jan-2016,1601-00147,0.00,2100.00,R,Accountant General Of The Senior Courts,No
Http://opendatacommunities.org/id/metropolitan-district-council/leeds,Leeds City Council,31/01/2016,Insurance,Insurance,Supplies and Services,Insurance Claims,248,14-Jan-2016,1601-00148,0.00,2400.00,R,Accountant General Of The Senior Courts,No
Http://opendatacommunities.org/id/metropolitan-district-council/leeds,Leeds City Council,31/01/2016,Insurance,Insurance,Supplies and Services,Insurance Claims,248,28-Jan-2016,1601-00149,0.00,2000.00,R,Accountant General Of The Senior Courts,No
Http://opendatacommunities.org/id/metropolitan-district-council/leeds,Leeds City Council,31/01/2016,Environment & Housing,Parks And Countryside ,Transport,Hire Of Movable Plant & Machinery,315,23-Dec-2015,1601-00150,0.00,536.27,R,Ace Container Services L,Yes
Http://opendatacommunities.org/id/metropolitan-district-council/leeds,Leeds City Council,31/01/2016,City Development,Libraries  Arts & Heritage,Transport,Hire Of Movable Plant & Machinery,315,08-Jan-2016,1601-00151,0.00,227.00,R,Ace Container Services Limited,No
Http://opendatacommunities.org/id/metropolitan-district-council/leeds,Leeds City Council,31/01/2016,City Development,Recreation,Transport,External Hire -Occasional,304,29-Jan-2016,1601-00152,0.00,128.65,R,Ace Container Services Limited,No
Http://opendatacommunities.org/id/metropolitan-district-council/leeds,Leeds City Council,31/01/2016,Childrens Services,Safeguarding Targeted & Specialist,Third Party Payments,SEN Placements,566,08-Jan-2016,1601-00153,0.00,16332.00,R,Ackworth School,No
Http://opendatacommunities.org/id/metropolitan-district-council/leeds,Leeds City Council,31/01/2016,Childrens Services,Safeguarding Targeted & Specialist,Third Party Payments,SEN Placements,566,08-Jan-2016,1601-00154,0.00,16332.00,R,Ackworth School,No
Http://opendatacommunities.org/id/metropolitan-district-council/leeds,Leeds City Council,31/01/2016,Childrens Services,Safeguarding Targeted & Specialist,Third Party Payments,SEN Placements,566,08-Jan-2016,1601-00155,0.00,24132.00,R,Ackworth School,No
Http://opendatacommunities.org/id/metropolitan-district-council/leeds,Leeds City Council,31/01/2016,Childrens Services,Safeguarding Targeted & Specialist,Third Party Payments,SEN Placements,566,08-Jan-2016,1601-00156,0.00,16332.00,R,Ackworth School,No
Http://opendatacommunities.org/id/metropolitan-district-council/leeds,Leeds City Council,31/01/2016,Childrens Services,Safeguarding Targeted & Specialist,Third Party Payments,SEN Placements,566,08-Jan-2016,1601-00157,0.00,16332.00,R,Ackworth School,No
Http://opendatacommunities.org/id/metropolitan-district-council/leeds,Leeds City Council,31/01/2016,Childrens Services,Safeguarding Targeted & Specialist,Third Party Payments,SEN Placements,566,29-Jan-2016,1601-00158,0.00,20655.00,R,Ackworth School,No
Http://opendatacommunities.org/id/metropolitan-district-council/leeds,Leeds City Council,31/01/2016,Civic Enterprise Leeds,Commercial Services,Supplies and Services,Operational Furniture And Equipment,203,07-Jan-2016,1601-00159,0.00,1214.00,R,Acme Facilities Group Ltd,No
Http://opendatacommunities.org/id/metropolitan-district-council/leeds,Leeds City Council,31/01/2016,Civic Enterprise Leeds,Commercial Services,Supplies and Services,Operational Furniture And Equipment,203,21-Jan-2016,1601-00160,0.00,1902.00,R,Acme Facilities Group Ltd,No
Http://opendatacommunities.org/id/metropolitan-district-council/leeds,Leeds City Council,31/01/2016,Childrens Services,Safeguarding Targeted & Specialist,Third Party Payments,Independent Fostering Agencies,509,20-Jan-2016,1601-00161,0.00,18138.67,R,Acorn Care And Education Ltd,No
Http://opendatacommunities.org/id/metropolitan-district-council/leeds,Leeds City Council,31/01/2016,City Development,Libraries  Arts & Heritage,Supplies and Services,Operational Furniture And Equipment,203,27-Jan-2016,1601-00162,0.00,-1019.00,R,Acorn Scaffolding (Yorkshire) Ltd,No
Http://opendatacommunities.org/id/metropolitan-district-council/leeds,Leeds City Council,31/01/2016,City Development,Libraries  Arts & Heritage,Supplies and Services,Operational Furniture And Equipment,203,27-Jan-2016,1601-00163,0.00,27800.00,R,Acorn Scaffolding (Yorkshire) Ltd,No
Http://opendatacommunities.org/id/metropolitan-district-council/leeds,Leeds City Council,31/01/2016,City Development,Libraries  Arts & Heritage,Supplies and Services,Operational Furniture And Equipment,203,27-Jan-2016,1601-00164,0.00,18000.00,R,Acorn Scaffolding (Yorkshire) Ltd,No
Http://opendatacommunities.org/id/metropolitan-district-council/leeds,Leeds City Council,31/01/2016,Childrens Services,Learning Skills & Universal,Third Party Payments,Services Rendered By Other Organisations,511,15-Jan-2016,1601-00165,0.00,11815.35,R,Acorns Nursery,No
Http://opendatacommunities.org/id/metropolitan-district-council/leeds,Leeds City Council,31/01/2016,Adult Social Care,Services For Adults Under 65 Mental/Dis,Third Party Payments,Residential,580,13-Jan-2016,1601-00166,0.00,1319.20,R,Acre Green,No
Http://opendatacommunities.org/id/metropolitan-district-council/leeds,Leeds City Council,31/01/2016,Adult Social Care,Services For Older People - 65 And Over,Third Party Payments,Nursing Home,570,13-Jan-2016,1601-00167,0.00,15690.92,R,Acre Green,No
Http://opendatacommunities.org/id/metropolitan-district-council/leeds,Leeds City Council,31/01/2016,Adult Social Care,Services For Older People - 65 And Over,Third Party Payments,Residential Care Dementia,571,13-Jan-2016,1601-00168,0.00,1346.64,R,Acre Green,No
Http://opendatacommunities.org/id/metropolitan-district-council/leeds,Leeds City Council,31/01/2016,Adult Social Care,Services For Older People - 65 And Over,Third Party Payments,Residential,580,13-Jan-2016,1601-00169,0.00,6065.54,R,Acre Green,No
Http://opendatacommunities.org/id/metropolitan-district-council/leeds,Leeds City Council,31/01/2016,Adult Social Care,Services For Older People Under 65 P/Dis,Third Party Payments,Nursing Home,570,13-Jan-2016,1601-00170,0.00,4721.44,R,Acre Green,No
Http://opendatacommunities.org/id/metropolitan-district-council/leeds,Leeds City Council,31/01/2016,Adult Social Care,Services For Older People Under 65 P/Dis,Third Party Payments,Nursing Care Dementia,574,13-Jan-2016,1601-00171,0.00,1000.80,R,Acre Green,No
Http://opendatacommunities.org/id/metropolitan-district-council/leeds,Leeds City Council,31/01/2016,Childrens Services,Learning Skills & Universal,Third Party Payments,Services Rendered By Other Organisations,511,08-Jan-2016,1601-00172,0.00,5703.60,R,Acre Wood Day Nursery,No
Http://opendatacommunities.org/id/metropolitan-district-council/leeds,Leeds City Council,31/01/2016,Childrens Services,Learning Skills & Universal,Third Party Payments,Services Rendered By Other Organisations,511,15-Jan-2016,1601-00173,0.00,15960.00,R,Acre Wood Day Nursery,No
Http://opendatacommunities.org/id/metropolitan-district-council/leeds,Leeds City Council,31/01/2016,Central & Corporate,Commercial Services Trading Services,Supplies and Services,Operational Materials,205,19-Jan-2016,1601-00174,0.00,417.00,R,Actavo Uk Limited,No
Http://opendatacommunities.org/id/metropolitan-district-council/leeds,Leeds City Council as Accountable Body,31/01/2016,Social Services Pooled Budgets,Jcs For People With Learning Disabilitie,Supplies and Services,Other Equipment,203,22-Jan-2016,1601-00175,0.00,745.00,R,Action Assist Ltd,No
Http://opendatacommunities.org/id/metropolitan-district-council/leeds,Leeds City Council,31/01/2016,Adult Social Care,Services For Adults Under 65 Mental/Dis,Third Party Payments,Services Provided By Other NHS Bodies,522,08-Jan-2016,1601-00176,0.00,1050.00,R,Action First Recruitment Ltd,No
Http://opendatacommunities.org/id/metropolitan-district-council/leeds,Leeds City Council,31/01/2016,Adult Social Care,Services For Adults Under 65 Mental/Dis,Third Party Payments,Services Provided By Other NHS Bodies,522,08-Jan-2016,1601-00177,0.00,1050.00,R,Action First Recruitment Ltd,No
Http://opendatacommunities.org/id/metropolitan-district-council/leeds,Leeds City Council,31/01/2016,Adult Social Care,Services For Adults Under 65 Mental/Dis,Third Party Payments,Fees - Level 4,520,08-Jan-2016,1601-00178,0.00,350.00,R,Action First Recruitment Ltd,No
Http://opendatacommunities.org/id/metropolitan-district-council/leeds,Leeds City Council,31/01/2016,Adult Social Care,Services For Adults Under 65 Mental/Dis,Third Party Payments,Fees - Level 4,520,08-Jan-2016,1601-00179,0.00,1400.00,R,Action First Recruitment Ltd,No
Http://opendatacommunities.org/id/metropolitan-district-council/leeds,Leeds City Council,31/01/2016,Adult Social Care,Services For Adults Under 65 Mental/Dis,Third Party Payments,Services Provided By Other NHS Bodies,522,08-Jan-2016,1601-00180,0.00,700.00,R,Action First Recruitment Ltd,No
Http://opendatacommunities.org/id/metropolitan-district-council/leeds,Leeds City Council,31/01/2016,Adult Social Care,Services For Adults Under 65 Mental/Dis,Third Party Payments,Services Provided By Other NHS Bodies,522,15-Jan-2016,1601-00181,0.00,700.00,R,Action First Recruitment Ltd,No
Http://opendatacommunities.org/id/metropolitan-district-council/leeds,Leeds City Council,31/01/2016,Adult Social Care,Services For Adults Under 65 Mental/Dis,Third Party Payments,Services Provided By Other NHS Bodies,522,15-Jan-2016,1601-00182,0.00,1050.00,R,Action First Recruitment Ltd,No
Http://opendatacommunities.org/id/metropolitan-district-council/leeds,Leeds City Council,31/01/2016,Adult Social Care,Services For Adults Under 65 Mental/Dis,Third Party Payments,Services Provided By Other NHS Bodies,522,15-Jan-2016,1601-00183,0.00,1050.00,R,Action First Recruitment Ltd,No
Http://opendatacommunities.org/id/metropolitan-district-council/leeds,Leeds City Council,31/01/2016,Adult Social Care,Services For Adults Under 65 Mental/Dis,Third Party Payments,Services Provided By Other NHS Bodies,522,15-Jan-2016,1601-00184,0.00,350.00,R,Action First Recruitment Ltd,No
Http://opendatacommunities.org/id/metropolitan-district-council/leeds,Leeds City Council,31/01/2016,Adult Social Care,Services For Adults Under 65 Mental/Dis,Third Party Payments,Services Provided By Other NHS Bodies,522,15-Jan-2016,1601-00185,0.00,700.00,R,Action First Recruitment Ltd,No
Http://opendatacommunities.org/id/metropolitan-district-council/leeds,Leeds City Council,31/01/2016,Adult Social Care,Services For Adults Under 65 Mental/Dis,Third Party Payments,Services Provided By Other NHS Bodies,522,21-Jan-2016,1601-00186,0.00,1050.00,R,Action First Recruitment Ltd,No
Http://opendatacommunities.org/id/metropolitan-district-council/leeds,Leeds City Council,31/01/2016,Adult Social Care,Services For Adults Under 65 Mental/Dis,Third Party Payments,Services Provided By Other NHS Bodies,522,22-Jan-2016,1601-00187,0.00,700.00,R,Action First Recruitment Ltd,No
Http://opendatacommunities.org/id/metropolitan-district-council/leeds,Leeds City Council,31/01/2016,Childrens Services,Safeguarding Targeted & Specialist,Third Party Payments,Independent Fostering Agencies,509,07-Jan-2016,1601-00188,0.00,4776.48,R,Action For Children,No
Http://opendatacommunities.org/id/metropolitan-district-council/leeds,Leeds City Council,31/01/2016,Childrens Services,Safeguarding Targeted & Specialist,Third Party Payments,Independent Fostering Agencies,509,07-Jan-2016,1601-00189,0.00,5044.06,R,Action For Children,No
Http://opendatacommunities.org/id/metropolitan-district-council/leeds,Leeds City Council,31/01/2016,Childrens Services,Safeguarding Targeted & Specialist,Third Party Payments,Independent Fostering Agencies,509,07-Jan-2016,1601-00190,0.00,4776.48,R,Action For Children,No
Http://opendatacommunities.org/id/metropolitan-district-council/leeds,Leeds City Council,31/01/2016,Childrens Services,Safeguarding Targeted & Specialist,Third Party Payments,Independent Fostering Agencies,509,07-Jan-2016,1601-00191,0.00,2203.17,R,Action For Children,No
Http://opendatacommunities.org/id/metropolitan-district-council/leeds,Leeds City Council,31/01/2016,Childrens Services,Safeguarding Targeted & Specialist,Third Party Payments,Independent Fostering Agencies,509,07-Jan-2016,1601-00192,0.00,5163.67,R,Action For Children,No
Http://opendatacommunities.org/id/metropolitan-district-council/leeds,Leeds City Council,31/01/2016,Childrens Services,Safeguarding Targeted & Specialist,Third Party Payments,Independent Fostering Agencies,509,15-Jan-2016,1601-00193,0.00,95.50,R,Action For Children,No
Http://opendatacommunities.org/id/metropolitan-district-council/leeds,Leeds City Council,31/01/2016,City Development,Libraries  Arts & Heritage,Transport,Public Transport Expenses,310,08-Jan-2016,1601-00194,0.00,27.70,R,Active History Ltd,No
Http://opendatacommunities.org/id/metropolitan-district-council/leeds,Leeds City Council,31/01/2016,Childrens Services,Learning Skills & Universal,Third Party Payments,Services Rendered By Other Organisations,511,08-Jan-2016,1601-00195,0.00,1920.60,R,Active Kids Day Nursery,No
Http://opendatacommunities.org/id/metropolitan-district-council/leeds,Leeds City Council,31/01/2016,Childrens Services,Learning Skills & Universal,Third Party Payments,Services Rendered By Other Organisations,511,15-Jan-2016,1601-00196,0.00,7022.40,R,Active Kids Day Nursery,No
Http://opendatacommunities.org/id/metropolitan-district-council/leeds,Leeds City Council as Accountable Body,31/01/2016,Social Services Pooled Budgets,Leeds Community Equip Store Pooled Budgt,Supplies and Services,Other Equipment,203,22-Jan-2016,1601-00197,0.00,146.26,R,Active Mobility Centre Ltd,No
Http://opendatacommunities.org/id/metropolitan-district-council/leeds,Leeds City Council,31/01/2016,City Development,Economic Development,Supplies and Services,Grants To Businesses,243,29-Jan-2016,1601-00198,0.00,2500.00,R,Ad3 Envelope Printers,No
Http://opendatacommunities.org/id/metropolitan-district-council/leeds,Leeds City Council,31/01/2016,Civic Enterprise Leeds,Business Support Centre,Supplies and Services,Other Hired And Contracted Services,265,06-Jan-2016,1601-00199,0.00,137.40,R,Ad3 Envelope Printers Limited,No
Http://opendatacommunities.org/id/metropolitan-district-council/leeds,Leeds City Council,31/01/2016,Civic Enterprise Leeds,Business Support Centre,Supplies and Services,Other Hired And Contracted Services,265,13-Jan-2016,1601-00200,0.00,51.55,R,Ad3 Envelope Printers Limited,No
Http://opendatacommunities.org/id/metropolitan-district-council/leeds,Leeds City Council,31/01/2016,Civic Enterprise Leeds,Business Support Centre,Supplies and Services,Operational Materials,205,13-Jan-2016,1601-00201,0.00,645.00,R,Ad3 Envelope Printers Limited,No
Http://opendatacommunities.org/id/metropolitan-district-council/leeds,Leeds City Council,31/01/2016,Citizens and Communities,Benefits  Wlefare and Poverty,Supplies and Services,Grant Related Expenditure,298,29-Jan-2016,1601-00202,0.00,500.00,R,REDACTED PERSONAL DATA,No
Http://opendatacommunities.org/id/metropolitan-district-council/leeds,Leeds City Council,31/01/2016,Adult Social Care,Services For Older People Under 65 P/Dis,Third Party Payments,Nursing Home,570,15-Jan-2016,1601-00203,0.00,840.00,R,Adams Activity Ark,No
Http://opendatacommunities.org/id/metropolitan-district-council/leeds,Leeds City Council,31/01/2016,Environment & Housing,Housing Leeds Service,Capital,Other Costs,7,12-Jan-2016,1601-00204,0.00,1937.50,C,Addleshaw Goddard Llp,No
Http://opendatacommunities.org/id/metropolitan-district-council/leeds,Leeds City Council,31/01/2016,City Development,Asset Management Services,Supplies and Services,Consultancy Services,259,21-Jan-2016,1601-00205,0.00,1650.00,R,Addleshaw Goddard Llp,No
Http://opendatacommunities.org/id/metropolitan-district-council/leeds,Leeds City Council,31/01/2016,Citizens and Communities,Elections  Licensing and Registration,Income,Admissions  Booking Fees & Ticket Sales,933,29-Jan-2016,1601-00206,0.00,255.00,R,REDACTED PERSONAL DATA,No
Http://opendatacommunities.org/id/metropolitan-district-council/leeds,Leeds City Council,31/01/2016,Childrens Services,Learning Skills & Universal,Third Party Payments,Services Rendered By Voluntary Sector,505,15-Jan-2016,1601-00207,0.00,13680.00,R,Adel Pre School,No
Http://opendatacommunities.org/id/metropolitan-district-council/leeds,Leeds City Council,31/01/2016,Childrens Services,Learning Skills & Universal,Third Party Payments,Services Rendered By Voluntary Sector,505,15-Jan-2016,1601-00208,0.00,3024.00,R,Adel Pre School,No
Http://opendatacommunities.org/id/metropolitan-district-council/leeds,Leeds City Council,31/01/2016,Childrens Services,Safeguarding Targeted & Specialist,Third Party Payments,Placement Support,550,08-Jan-2016,1601-00209,0.00,96.00,R,Adel Quaker Meeting,No
Http://opendatacommunities.org/id/metropolitan-district-council/leeds,Leeds City Council,31/01/2016,Adult Social Care,Services For Older People - 65 And Over,Third Party Payments,Residential,580,13-Jan-2016,1601-00210,0.00,1576.09,R,Adeline Lodge,No
Http://opendatacommunities.org/id/metropolitan-district-council/leeds,Leeds City Council,31/01/2016,Adult Social Care,Services For Older People - 65 And Over,Third Party Payments,Nursing Home,570,13-Jan-2016,1601-00211,0.00,1060.84,R,Aden House,No
Http://opendatacommunities.org/id/metropolitan-district-council/leeds,Leeds City Council,31/01/2016,Adult Social Care,Services For Older People - 65 And Over,Third Party Payments,Residential Care Dementia,571,13-Jan-2016,1601-00212,0.00,1320.68,R,Aden House,No
Http://opendatacommunities.org/id/metropolitan-district-council/leeds,Leeds City Council,31/01/2016,Central & Corporate,Commercial Services Trading Services,Supplies and Services,Operational Materials,205,13-Jan-2016,1601-00213,0.00,67.99,R,Adi Global,No
Http://opendatacommunities.org/id/metropolitan-district-council/leeds,Leeds City Council,31/01/2016,Central & Corporate,Commercial Services Trading Services,Supplies and Services,Operational Materials,205,15-Jan-2016,1601-00214,0.00,332.83,R,Adi Global,No
Http://opendatacommunities.org/id/metropolitan-district-council/leeds,Leeds City Council,31/01/2016,Central & Corporate,Commercial Services Trading Services,Supplies and Services,Operational Materials,205,15-Jan-2016,1601-00215,0.00,708.14,R,Adi Global,No
Http://opendatacommunities.org/id/metropolitan-district-council/leeds,Leeds City Council,31/01/2016,Central & Corporate,Commercial Services Trading Services,Supplies and Services,Operational Materials,205,19-Jan-2016,1601-00216,0.00,49.80,R,Adi Global,No
Http://opendatacommunities.org/id/metropolitan-district-council/leeds,Leeds City Council,31/01/2016,Environment & Housing,Community Safety ,Supplies and Services,Other Hired And Contracted Services,265,09-Dec-2015,1601-00217,0.00,70.55,R,Adi-Gardiner Ltd,Yes
Http://opendatacommunities.org/id/metropolitan-district-council/leeds,Leeds City Council,31/01/2016,Environment & Housing,Community Safety ,Supplies and Services,Other Hired And Contracted Services,265,10-Dec-2015,1601-00218,0.00,130.31,R,Adi-Gardiner Ltd,Yes
Http://opendatacommunities.org/id/metropolitan-district-council/leeds,Leeds City Council,31/01/2016,Central & Corporate,Commercial Services Trading Services,Supplies and Services,Other Hired And Contracted Services,265,08-Jan-2016,1601-00219,0.00,1740.00,R,Admas Limited,No
Http://opendatacommunities.org/id/metropolitan-district-council/leeds,Leeds City Council,31/01/2016,Central & Corporate,Commercial Services Trading Services,Supplies and Services,Other Hired And Contracted Services,265,08-Jan-2016,1601-00220,0.00,1480.00,R,Admas Limited,No
Http://opendatacommunities.org/id/metropolitan-district-council/leeds,Leeds City Council,31/01/2016,Central & Corporate,Commercial Services Trading Services,Supplies and Services,Other Hired And Contracted Services,265,08-Jan-2016,1601-00221,0.00,180.00,R,Admas Limited,No
Http://opendatacommunities.org/id/metropolitan-district-council/leeds,Leeds City Council,31/01/2016,Central & Corporate,Commercial Services Trading Services,Supplies and Services,Other Hired And Contracted Services,265,08-Jan-2016,1601-00222,0.00,180.00,R,Admas Limited,No
Http://opendatacommunities.org/id/metropolitan-district-council/leeds,Leeds City Council,31/01/2016,Environment & Housing,Environmental Health,Capital,Other Costs,7,12-Jan-2016,1601-00223,0.00,850.00,C,Admas Limited,No
Http://opendatacommunities.org/id/metropolitan-district-council/leeds,Leeds City Council,31/01/2016,Environment & Housing,Environmental Health,Capital,Other Costs,7,12-Jan-2016,1601-00224,0.00,730.00,C,Admas Limited,No
Http://opendatacommunities.org/id/metropolitan-district-council/leeds,Leeds City Council,31/01/2016,Central & Corporate,Commercial Services Trading Services,Supplies and Services,Other Hired And Contracted Services,265,25-Jan-2016,1601-00225,0.00,180.00,R,Admas Limited,No
Http://opendatacommunities.org/id/metropolitan-district-council/leeds,Leeds City Council,31/01/2016,Central & Corporate,Commercial Services Trading Services,Supplies and Services,Other Hired And Contracted Services,265,25-Jan-2016,1601-00226,0.00,1480.00,R,Admas Limited,No
Http://opendatacommunities.org/id/metropolitan-district-council/leeds,Leeds City Council,31/01/2016,Central & Corporate,Commercial Services Trading Services,Supplies and Services,Other Hired And Contracted Services,265,25-Jan-2016,1601-00227,0.00,960.00,R,Admas Limited,No
Http://opendatacommunities.org/id/metropolitan-district-council/leeds,Leeds City Council,31/01/2016,Central & Corporate,Commercial Services Trading Services,Supplies and Services,Other Hired And Contracted Services,265,25-Jan-2016,1601-00228,0.00,180.00,R,Admas Limited,No
Http://opendatacommunities.org/id/metropolitan-district-council/leeds,Leeds City Council,31/01/2016,Central & Corporate,Commercial Services Trading Services,Supplies and Services,Other Hired And Contracted Services,265,25-Jan-2016,1601-00229,0.00,180.00,R,Admas Limited,No
Http://opendatacommunities.org/id/metropolitan-district-council/leeds,Leeds City Council,31/01/2016,Environment & Housing,Strategic Housing Support ,Supplies and Services,Other Hired And Contracted Services,265,30-Nov-2015,1601-00230,0.00,60.00,R,Admirals Yard Self St,Yes
Http://opendatacommunities.org/id/metropolitan-district-council/leeds,Leeds City Council,31/01/2016,Childrens Services,Safeguarding Targeted & Specialist,Third Party Payments,Independent Fostering Agencies,509,04-Jan-2016,1601-00231,0.00,3000.00,R,Adolescent And Childrens Trust,No
Http://opendatacommunities.org/id/metropolitan-district-council/leeds,Leeds City Council,31/01/2016,Childrens Services,Safeguarding Targeted & Specialist,Third Party Payments,Independent Fostering Agencies,509,04-Jan-2016,1601-00232,0.00,3000.00,R,Adolescent And Childrens Trust,No
Http://opendatacommunities.org/id/metropolitan-district-council/leeds,Leeds City Council,31/01/2016,Childrens Services,Safeguarding Targeted & Specialist,Third Party Payments,Independent Fostering Agencies,509,04-Jan-2016,1601-00233,0.00,475.00,R,Adolescent And Childrens Trust,No
Http://opendatacommunities.org/id/metropolitan-district-council/leeds,Leeds City Council,31/01/2016,Childrens Services,Safeguarding Targeted & Specialist,Third Party Payments,Independent Fostering Agencies,509,04-Jan-2016,1601-00234,0.00,3000.00,R,Adolescent And Childrens Trust,No
Http://opendatacommunities.org/id/metropolitan-district-council/leeds,Leeds City Council,31/01/2016,Childrens Services,Safeguarding Targeted & Specialist,Third Party Payments,Independent Fostering Agencies,509,04-Jan-2016,1601-00235,0.00,400.00,R,Adolescent And Childrens Trust,No
Http://opendatacommunities.org/id/metropolitan-district-council/leeds,Leeds City Council,31/01/2016,Childrens Services,Safeguarding Targeted & Specialist,Third Party Payments,Independent Fostering Agencies,509,04-Jan-2016,1601-00236,0.00,3000.00,R,Adolescent And Childrens Trust,No
Http://opendatacommunities.org/id/metropolitan-district-council/leeds,Leeds City Council,31/01/2016,Childrens Services,Safeguarding Targeted & Specialist,Third Party Payments,Independent Fostering Agencies,509,04-Jan-2016,1601-00237,0.00,3000.00,R,Adolescent And Childrens Trust,No
Http://opendatacommunities.org/id/metropolitan-district-council/leeds,Leeds City Council,31/01/2016,Childrens Services,Safeguarding Targeted & Specialist,Third Party Payments,Independent Fostering Agencies,509,04-Jan-2016,1601-00238,0.00,700.00,R,Adolescent And Childrens Trust,No
Http://opendatacommunities.org/id/metropolitan-district-council/leeds,Leeds City Council,31/01/2016,Childrens Services,Safeguarding Targeted & Specialist,Third Party Payments,Independent Fostering Agencies,509,04-Jan-2016,1601-00239,0.00,300.00,R,Adolescent And Childrens Trust,No
Http://opendatacommunities.org/id/metropolitan-district-council/leeds,Leeds City Council,31/01/2016,Environment & Housing,Streetscene Environmental Services,Income,Penalties  Fines & Car Parking Charges,934,14-Jan-2016,1601-00240,0.00,0.96,R,REDACTED PERSONAL DATA,No
Http://opendatacommunities.org/id/metropolitan-district-council/leeds,Leeds City Council,31/01/2016,Adult Social Care,Social Services Support Services,Employees,Training Costs,71,14-Jan-2016,1601-00241,0.00,510.00,R,Adrian House,No
Http://opendatacommunities.org/id/metropolitan-district-council/leeds,Leeds City Council as Accountable Body,31/01/2016,Social Services Pooled Budgets,Jcs For People With Learning Disabilitie,Third Party Payments,Residential,580,28-Jan-2016,1601-00242,0.00,2609.36,R,Adrian House,No
Http://opendatacommunities.org/id/metropolitan-district-council/leeds,Leeds City Council,31/01/2016,Citizens and Communities,Benefits  Wlefare and Poverty,Supplies and Services,Grant Related Expenditure,298,06-Jan-2016,1601-00243,0.00,500.00,R,REDACTED PERSONAL DATA,No
Http://opendatacommunities.org/id/metropolitan-district-council/leeds,Leeds City Council,31/01/2016,Environment & Housing,Strategic Housing Support,Supplies and Services,Other Hired And Contracted Services,265,26-Jan-2016,1601-00244,0.00,314.64,R,REDACTED PERSONAL DATA,No
Http://opendatacommunities.org/id/metropolitan-district-council/leeds,Leeds City Council,31/01/2016,Strategic Landlord,Housing Management,Premises,Premises Security Services,162,06-Jan-2016,1601-00245,0.00,137.77,R,Adt Fire And Security Plc,No
Http://opendatacommunities.org/id/metropolitan-district-council/leeds,Leeds City Council,31/01/2016,Strategic Landlord,Housing Management,Supplies and Services,Operational Furniture And Equipment,203,12-Jan-2016,1601-00246,0.00,39.00,R,Adt Fire And Security Plc,No
Http://opendatacommunities.org/id/metropolitan-district-council/leeds,Leeds City Council,31/01/2016,Strategic Landlord,Housing Management,Premises,Premises Security Services,162,21-Jan-2016,1601-00247,0.00,137.77,R,Adt Fire And Security Plc,No
Http://opendatacommunities.org/id/metropolitan-district-council/leeds,Leeds City Council,31/01/2016,Adult Social Care,Services For Adults Under 65 Mental/Dis,Third Party Payments,Nursing Home,570,13-Jan-2016,1601-00248,0.00,1541.96,R,Adult Supported Living Ltd,No
Http://opendatacommunities.org/id/metropolitan-district-council/leeds,Leeds City Council,31/01/2016,City Development,Libraries  Arts & Heritage,Supplies and Services,External Audit Fees,261,13-Jan-2016,1601-00249,0.00,85.00,R,Advance Stocks Ltd,No
Http://opendatacommunities.org/id/metropolitan-district-council/leeds,Leeds City Council,31/01/2016,City Development,Recreation,Supplies and Services,External Audit Fees,261,22-Jan-2016,1601-00250,0.00,235.00,R,Advance Stocks Ltd,No
Http://opendatacommunities.org/id/metropolitan-district-council/leeds,Leeds City Council,31/01/2016,City Development,Recreation,Supplies and Services,External Audit Fees,261,22-Jan-2016,1601-00251,0.00,85.00,R,Advance Stocks Ltd,No
Http://opendatacommunities.org/id/metropolitan-district-council/leeds,Leeds City Council,31/01/2016,City Development,Libraries  Arts & Heritage,Supplies and Services,External Audit Fees,261,25-Jan-2016,1601-00252,0.00,85.00,R,Advance Stocks Ltd,No
Http://opendatacommunities.org/id/metropolitan-district-council/leeds,Leeds City Council,31/01/2016,Childrens Services,Safeguarding Targeted & Specialist,Support Services,Legal Disbursements,411,29-Jan-2016,1601-00253,0.00,523.31,R,Advanced Child Care Assessments Ltd,No
Http://opendatacommunities.org/id/metropolitan-district-council/leeds,Leeds City Council,31/01/2016,Central & Corporate,Commercial Services Trading Services,Supplies and Services,Operational Materials,205,15-Jan-2016,1601-00254,0.00,85.80,R,Advanced Labelling Limited,No
Http://opendatacommunities.org/id/metropolitan-district-council/leeds,Leeds City Council as Accountable Body,31/01/2016,Social Services Pooled Budgets,Jcs For People With Learning Disabilitie,Third Party Payments,Residential,580,13-Jan-2016,1601-00255,0.00,20248.68,R,Advitam Ltd,No
Http://opendatacommunities.org/id/metropolitan-district-council/leeds,Leeds City Council,31/01/2016,Adult Social Care,Services For Older People - 65 And Over,Third Party Payments,Payments To Voluntary Organisations,561,05-Jan-2016,1601-00256,0.00,84422.93,R,Advonet,No
Http://opendatacommunities.org/id/metropolitan-district-council/leeds,Leeds City Council,31/01/2016,Adult Social Care,Social Services Support Services,Supplies and Services,Other Hired And Contracted Services,265,12-Jan-2016,1601-00257,0.00,15500.00,R,Advonet,No
Http://opendatacommunities.org/id/metropolitan-district-council/leeds,Leeds City Council,31/01/2016,Childrens Services,Safeguarding Targeted & Specialist,Third Party Payments,Placement Support,550,13-Jan-2016,1601-00258,0.00,56.98,R,Advonet,No
Http://opendatacommunities.org/id/metropolitan-district-council/leeds,Leeds City Council,31/01/2016,Adult Social Care,Social Services Support Services,Employees,Training Costs,71,15-Jan-2016,1601-00259,0.00,825.00,R,Advonet,No
Http://opendatacommunities.org/id/metropolitan-district-council/leeds,Leeds City Council,31/01/2016,City Development,Economic Development,Capital,Other Costs,7,08-Jan-2016,1601-00260,0.00,2595.20,C,Aecom Limited,No
Http://opendatacommunities.org/id/metropolitan-district-council/leeds,Leeds City Council,31/01/2016,City Development,Economic Development,Capital,Other Costs,7,08-Jan-2016,1601-00261,0.00,12848.00,C,Aecom Limited,No
Http://opendatacommunities.org/id/metropolitan-district-council/leeds,Leeds City Council,31/01/2016,City Development,Economic Development,Capital,Other Costs,7,12-Jan-2016,1601-00262,0.00,5514.80,C,Aecom Limited,No
Http://opendatacommunities.org/id/metropolitan-district-council/leeds,Leeds City Council,31/01/2016,City Development,Economic Development,Capital,Other Costs,7,15-Jan-2016,1601-00263,0.00,11258.00,C,Aecom Limited,No
Http://opendatacommunities.org/id/metropolitan-district-council/leeds,Leeds City Council,31/01/2016,Insurance,Insurance,Supplies and Services,Insurance Claims,248,06-Jan-2016,1601-00264,0.00,360.00,R,Aegis Legal,No
Http://opendatacommunities.org/id/metropolitan-district-council/leeds,Leeds City Council,31/01/2016,Insurance,Insurance,Supplies and Services,Insurance Claims,248,12-Jan-2016,1601-00265,0.00,5235.00,R,Aegis Legal,No
Http://opendatacommunities.org/id/metropolitan-district-council/leeds,Leeds City Council,31/01/2016,Insurance,Insurance,Supplies and Services,Insurance Claims,248,12-Jan-2016,1601-00266,0.00,1212.00,R,Aegis Legal,No
Http://opendatacommunities.org/id/metropolitan-district-council/leeds,Leeds City Council,31/01/2016,Insurance,Insurance,Supplies and Services,Insurance Claims,248,22-Jan-2016,1601-00267,0.00,75.00,R,Aegis Legal,No
Http://opendatacommunities.org/id/metropolitan-district-council/leeds,Leeds City Council,31/01/2016,Childrens Services,Safeguarding Targeted & Specialist,Support Services,Legal Disbursements,411,14-Jan-2016,1601-00268,0.00,771.65,R,Aelred Hookway,No
Http://opendatacommunities.org/id/metropolitan-district-council/leeds,Leeds City Council,31/01/2016,Insurance,Insurance,Supplies and Services,Insurance Claims,248,28-Jan-2016,1601-00269,0.00,360.00,R,Aequitas Legal Solicitors Limited,No
Http://opendatacommunities.org/id/metropolitan-district-council/leeds,Leeds City Council as Accountable Body,31/01/2016,Social Services Pooled Budgets,Jcs For People With Learning Disabilitie,Third Party Payments,Home Care,568,08-Jan-2016,1601-00270,0.00,2095.00,R,Affinity Trust,No
Http://opendatacommunities.org/id/metropolitan-district-council/leeds,Leeds City Council,31/01/2016,Adult Social Care,Services For Older People Under 65 P/Dis,Third Party Payments,Home Care,568,08-Jan-2016,1601-00271,0.00,134.56,R,Affinity Trust,No
Http://opendatacommunities.org/id/metropolitan-district-council/leeds,Leeds City Council,31/01/2016,Adult Social Care,Services For Older People Under 65 P/Dis,Third Party Payments,Home Care,568,08-Jan-2016,1601-00272,0.00,285.94,R,Affinity Trust,No
Http://opendatacommunities.org/id/metropolitan-district-council/leeds,Leeds City Council,31/01/2016,Adult Social Care,Services For Older People Under 65 P/Dis,Third Party Payments,Home Care,568,08-Jan-2016,1601-00273,0.00,526.68,R,Affinity Trust,No
Http://opendatacommunities.org/id/metropolitan-district-council/leeds,Leeds City Council as Accountable Body,31/01/2016,Social Services Pooled Budgets,Jcs For People With Learning Disabilitie,Third Party Payments,Home Care,568,12-Jan-2016,1601-00274,0.00,47.94,R,Affinity Trust,No
Http://opendatacommunities.org/id/metropolitan-district-council/leeds,Leeds City Council as Accountable Body,31/01/2016,Social Services Pooled Budgets,Jcs For People With Learning Disabilitie,Third Party Payments,Home Care,568,12-Jan-2016,1601-00275,0.00,336.40,R,Affinity Trust,No
Http://opendatacommunities.org/id/metropolitan-district-council/leeds,Leeds City Council as Accountable Body,31/01/2016,Social Services Pooled Budgets,Jcs For People With Learning Disabilitie,Third Party Payments,Home Care,568,12-Jan-2016,1601-00276,0.00,671.50,R,Affinity Trust,No
Http://opendatacommunities.org/id/metropolitan-district-council/leeds,Leeds City Council as Accountable Body,31/01/2016,Social Services Pooled Budgets,Jcs For People With Learning Disabilitie,Third Party Payments,Home Care,568,12-Jan-2016,1601-00277,0.00,960.00,R,Affinity Trust,No
Http://opendatacommunities.org/id/metropolitan-district-council/leeds,Leeds City Council as Accountable Body,31/01/2016,Social Services Pooled Budgets,Jcs For People With Learning Disabilitie,Third Party Payments,Home Care,568,12-Jan-2016,1601-00278,0.00,276.64,R,Affinity Trust,No
Http://opendatacommunities.org/id/metropolitan-district-council/leeds,Leeds City Council as Accountable Body,31/01/2016,Social Services Pooled Budgets,Jcs For People With Learning Disabilitie,Third Party Payments,Day Centre,564,12-Jan-2016,1601-00279,0.00,416.64,R,Affinity Trust,No
Http://opendatacommunities.org/id/metropolitan-district-council/leeds,Leeds City Council as Accountable Body,31/01/2016,Social Services Pooled Budgets,Jcs For People With Learning Disabilitie,Third Party Payments,Home Care,568,12-Jan-2016,1601-00280,0.00,1006.74,R,Affinity Trust,No
Http://opendatacommunities.org/id/metropolitan-district-council/leeds,Leeds City Council as Accountable Body,31/01/2016,Social Services Pooled Budgets,Jcs For People With Learning Disabilitie,Third Party Payments,Home Care,568,12-Jan-2016,1601-00281,0.00,1518.00,R,Affinity Trust,No
Http://opendatacommunities.org/id/metropolitan-district-council/leeds,Leeds City Council as Accountable Body,31/01/2016,Social Services Pooled Budgets,Jcs For People With Learning Disabilitie,Third Party Payments,Home Care,568,12-Jan-2016,1601-00282,0.00,1211.04,R,Affinity Trust,No
Http://opendatacommunities.org/id/metropolitan-district-council/leeds,Leeds City Council as Accountable Body,31/01/2016,Social Services Pooled Budgets,Jcs For People With Learning Disabilitie,Third Party Payments,Home Care,568,12-Jan-2016,1601-00283,0.00,543.32,R,Affinity Trust,No
Http://opendatacommunities.org/id/metropolitan-district-council/leeds,Leeds City Council as Accountable Body,31/01/2016,Social Services Pooled Budgets,Jcs For People With Learning Disabilitie,Third Party Payments,Home Care,568,12-Jan-2016,1601-00284,0.00,974.78,R,Affinity Trust,No
Http://opendatacommunities.org/id/metropolitan-district-council/leeds,Leeds City Council as Accountable Body,31/01/2016,Social Services Pooled Budgets,Jcs For People With Learning Disabilitie,Third Party Payments,Home Care,568,12-Jan-2016,1601-00285,0.00,511.36,R,Affinity Trust,No
Http://opendatacommunities.org/id/metropolitan-district-council/leeds,Leeds City Council as Accountable Body,31/01/2016,Social Services Pooled Budgets,Jcs For People With Learning Disabilitie,Third Party Payments,Home Care,568,12-Jan-2016,1601-00286,0.00,1342.32,R,Affinity Trust,No
Http://opendatacommunities.org/id/metropolitan-district-council/leeds,Leeds City Council as Accountable Body,31/01/2016,Social Services Pooled Budgets,Jcs For People With Learning Disabilitie,Third Party Payments,Home Care,568,12-Jan-2016,1601-00287,0.00,551.31,R,Affinity Trust,No
Http://opendatacommunities.org/id/metropolitan-district-council/leeds,Leeds City Council as Accountable Body,31/01/2016,Social Services Pooled Budgets,Jcs For People With Learning Disabilitie,Third Party Payments,Home Care,568,12-Jan-2016,1601-00288,0.00,639.20,R,Affinity Trust,No
Http://opendatacommunities.org/id/metropolitan-district-council/leeds,Leeds City Council as Accountable Body,31/01/2016,Social Services Pooled Budgets,Jcs For People With Learning Disabilitie,Third Party Payments,Home Care,568,12-Jan-2016,1601-00289,0.00,408.00,R,Affinity Trust,No
Http://opendatacommunities.org/id/metropolitan-district-council/leeds,Leeds City Council as Accountable Body,31/01/2016,Social Services Pooled Budgets,Jcs For People With Learning Disabilitie,Third Party Payments,Home Care,568,12-Jan-2016,1601-00290,0.00,1150.56,R,Affinity Trust,No
Http://opendatacommunities.org/id/metropolitan-district-council/leeds,Leeds City Council as Accountable Body,31/01/2016,Social Services Pooled Budgets,Jcs For People With Learning Disabilitie,Third Party Payments,Home Care,568,12-Jan-2016,1601-00291,0.00,2724.59,R,Affinity Trust,No
Http://opendatacommunities.org/id/metropolitan-district-council/leeds,Leeds City Council as Accountable Body,31/01/2016,Social Services Pooled Budgets,Jcs For People With Learning Disabilitie,Third Party Payments,Home Care,568,12-Jan-2016,1601-00292,0.00,300.00,R,Affinity Trust,No
Http://opendatacommunities.org/id/metropolitan-district-council/leeds,Leeds City Council as Accountable Body,31/01/2016,Social Services Pooled Budgets,Jcs For People With Learning Disabilitie,Third Party Payments,Home Care,568,12-Jan-2016,1601-00293,0.00,894.88,R,Affinity Trust,No
Http://opendatacommunities.org/id/metropolitan-district-council/leeds,Leeds City Council as Accountable Body,31/01/2016,Social Services Pooled Budgets,Jcs For People With Learning Disabilitie,Third Party Payments,Home Care,568,12-Jan-2016,1601-00294,0.00,719.10,R,Affinity Trust,No
Http://opendatacommunities.org/id/metropolitan-district-council/leeds,Leeds City Council as Accountable Body,31/01/2016,Social Services Pooled Budgets,Jcs For People With Learning Disabilitie,Third Party Payments,Home Care,568,12-Jan-2016,1601-00295,0.00,511.36,R,Affinity Trust,No
Http://opendatacommunities.org/id/metropolitan-district-council/leeds,Leeds City Council as Accountable Body,31/01/2016,Social Services Pooled Budgets,Jcs For People With Learning Disabilitie,Third Party Payments,Home Care,568,12-Jan-2016,1601-00296,0.00,127.84,R,Affinity Trust,No
Http://opendatacommunities.org/id/metropolitan-district-council/leeds,Leeds City Council as Accountable Body,31/01/2016,Social Services Pooled Budgets,Jcs For People With Learning Disabilitie,Third Party Payments,Home Care,568,12-Jan-2016,1601-00297,0.00,270.00,R,Affinity Trust,No
Http://opendatacommunities.org/id/metropolitan-district-council/leeds,Leeds City Council as Accountable Body,31/01/2016,Social Services Pooled Budgets,Jcs For People With Learning Disabilitie,Third Party Payments,Home Care,568,12-Jan-2016,1601-00298,0.00,1005.60,R,Affinity Trust,No
Http://opendatacommunities.org/id/metropolitan-district-council/leeds,Leeds City Council as Accountable Body,31/01/2016,Social Services Pooled Budgets,Jcs For People With Learning Disabilitie,Third Party Payments,Home Care,568,12-Jan-2016,1601-00299,0.00,2011.20,R,Affinity Trust,No
Http://opendatacommunities.org/id/metropolitan-district-council/leeds,Leeds City Council as Accountable Body,31/01/2016,Social Services Pooled Budgets,Jcs For People With Learning Disabilitie,Third Party Payments,Home Care,568,12-Jan-2016,1601-00300,0.00,1050.00,R,Affinity Trust,No
Http://opendatacommunities.org/id/metropolitan-district-council/leeds,Leeds City Council as Accountable Body,31/01/2016,Social Services Pooled Budgets,Jcs For People With Learning Disabilitie,Third Party Payments,Home Care,568,12-Jan-2016,1601-00301,0.00,810.00,R,Affinity Trust,No
Http://opendatacommunities.org/id/metropolitan-district-council/leeds,Leeds City Council as Accountable Body,31/01/2016,Social Services Pooled Budgets,Jcs For People With Learning Disabilitie,Third Party Payments,Home Care,568,14-Jan-2016,1601-00302,0.00,306.48,R,Affinity Trust,No
Http://opendatacommunities.org/id/metropolitan-district-council/leeds,Leeds City Council as Accountable Body,31/01/2016,Social Services Pooled Budgets,Jcs For People With Learning Disabilitie,Third Party Payments,Home Care,568,14-Jan-2016,1601-00303,0.00,941.92,R,Affinity Trust,No
Http://opendatacommunities.org/id/metropolitan-district-council/leeds,Leeds City Council as Accountable Body,31/01/2016,Social Services Pooled Budgets,Jcs For People With Learning Disabilitie,Third Party Payments,Home Care,568,14-Jan-2016,1601-00304,0.00,1148.48,R,Affinity Trust,No
Http://opendatacommunities.org/id/metropolitan-district-council/leeds,Leeds City Council as Accountable Body,31/01/2016,Social Services Pooled Budgets,Jcs For People With Learning Disabilitie,Third Party Payments,Home Care,568,14-Jan-2016,1601-00305,0.00,1080.00,R,Affinity Trust,No
Http://opendatacommunities.org/id/metropolitan-district-council/leeds,Leeds City Council as Accountable Body,31/01/2016,Social Services Pooled Budgets,Jcs For People With Learning Disabilitie,Third Party Payments,Day Centre,564,14-Jan-2016,1601-00306,0.00,2031.48,R,Affinity Trust,No
Http://opendatacommunities.org/id/metropolitan-district-council/leeds,Leeds City Council as Accountable Body,31/01/2016,Social Services Pooled Budgets,Jcs For People With Learning Disabilitie,Third Party Payments,Home Care,568,14-Jan-2016,1601-00307,0.00,3316.88,R,Affinity Trust,No
Http://opendatacommunities.org/id/metropolitan-district-council/leeds,Leeds City Council as Accountable Body,31/01/2016,Social Services Pooled Budgets,Jcs For People With Learning Disabilitie,Third Party Payments,Day Centre,564,14-Jan-2016,1601-00308,0.00,1315.84,R,Affinity Trust,No
Http://opendatacommunities.org/id/metropolitan-district-council/leeds,Leeds City Council as Accountable Body,31/01/2016,Social Services Pooled Budgets,Jcs For People With Learning Disabilitie,Third Party Payments,Home Care,568,14-Jan-2016,1601-00309,0.00,525.72,R,Affinity Trust,No
Http://opendatacommunities.org/id/metropolitan-district-council/leeds,Leeds City Council as Accountable Body,31/01/2016,Social Services Pooled Budgets,Jcs For People With Learning Disabilitie,Third Party Payments,Day Centre,564,14-Jan-2016,1601-00310,0.00,4052.48,R,Affinity Trust,No
Http://opendatacommunities.org/id/metropolitan-district-council/leeds,Leeds City Council as Accountable Body,31/01/2016,Social Services Pooled Budgets,Jcs For People With Learning Disabilitie,Third Party Payments,Home Care,568,14-Jan-2016,1601-00311,0.00,1599.98,R,Affinity Trust,No
Http://opendatacommunities.org/id/metropolitan-district-council/leeds,Leeds City Council as Accountable Body,31/01/2016,Social Services Pooled Budgets,Jcs For People With Learning Disabilitie,Third Party Payments,Home Care,568,14-Jan-2016,1601-00312,0.00,804.48,R,Affinity Trust,No
Http://opendatacommunities.org/id/metropolitan-district-council/leeds,Leeds City Council as Accountable Body,31/01/2016,Social Services Pooled Budgets,Jcs For People With Learning Disabilitie,Third Party Payments,Home Care,568,14-Jan-2016,1601-00313,0.00,1035.44,R,Affinity Trust,No
Http://opendatacommunities.org/id/metropolitan-district-council/leeds,Leeds City Council as Accountable Body,31/01/2016,Social Services Pooled Budgets,Jcs For People With Learning Disabilitie,Third Party Payments,Home Care,568,14-Jan-2016,1601-00314,0.00,1800.00,R,Affinity Trust,No
Http://opendatacommunities.org/id/metropolitan-district-council/leeds,Leeds City Council as Accountable Body,31/01/2016,Social Services Pooled Budgets,Jcs For People With Learning Disabilitie,Third Party Payments,Home Care,568,14-Jan-2016,1601-00315,0.00,100.56,R,Affinity Trust,No
Http://opendatacommunities.org/id/metropolitan-district-council/leeds,Leeds City Council as Accountable Body,31/01/2016,Social Services Pooled Budgets,Jcs For People With Learning Disabilitie,Third Party Payments,Home Care,568,14-Jan-2016,1601-00316,0.00,360.00,R,Affinity Trust,No
Http://opendatacommunities.org/id/metropolitan-district-council/leeds,Leeds City Council as Accountable Body,31/01/2016,Social Services Pooled Budgets,Jcs For People With Learning Disabilitie,Third Party Payments,Home Care,568,14-Jan-2016,1601-00317,0.00,363.16,R,Affinity Trust,No
Http://opendatacommunities.org/id/metropolitan-district-council/leeds,Leeds City Council as Accountable Body,31/01/2016,Social Services Pooled Budgets,Jcs For People With Learning Disabilitie,Third Party Payments,Home Care,568,14-Jan-2016,1601-00318,0.00,1206.72,R,Affinity Trust,No
Http://opendatacommunities.org/id/metropolitan-district-council/leeds,Leeds City Council as Accountable Body,31/01/2016,Social Services Pooled Budgets,Jcs For People With Learning Disabilitie,Third Party Payments,Day Centre,564,14-Jan-2016,1601-00319,0.00,714.78,R,Affinity Trust,No
Http://opendatacommunities.org/id/metropolitan-district-council/leeds,Leeds City Council as Accountable Body,31/01/2016,Social Services Pooled Budgets,Jcs For People With Learning Disabilitie,Third Party Payments,Day Centre,564,14-Jan-2016,1601-00320,0.00,2346.40,R,Affinity Trust,No
Http://opendatacommunities.org/id/metropolitan-district-council/leeds,Leeds City Council as Accountable Body,31/01/2016,Social Services Pooled Budgets,Jcs For People With Learning Disabilitie,Third Party Payments,Day Centre,564,14-Jan-2016,1601-00321,0.00,1440.00,R,Affinity Trust,No
Http://opendatacommunities.org/id/metropolitan-district-council/leeds,Leeds City Council as Accountable Body,31/01/2016,Social Services Pooled Budgets,Jcs For People With Learning Disabilitie,Third Party Payments,Day Centre,564,18-Jan-2016,1601-00322,0.00,1440.00,R,Affinity Trust,No
Http://opendatacommunities.org/id/metropolitan-district-council/leeds,Leeds City Council as Accountable Body,31/01/2016,Social Services Pooled Budgets,Jcs For People With Learning Disabilitie,Third Party Payments,Home Care,568,18-Jan-2016,1601-00323,0.00,360.00,R,Affinity Trust,No
Http://opendatacommunities.org/id/metropolitan-district-council/leeds,Leeds City Council as Accountable Body,31/01/2016,Social Services Pooled Budgets,Jcs For People With Learning Disabilitie,Third Party Payments,Day Centre,564,18-Jan-2016,1601-00324,0.00,1080.00,R,Affinity Trust,No
Http://opendatacommunities.org/id/metropolitan-district-council/leeds,Leeds City Council as Accountable Body,31/01/2016,Social Services Pooled Budgets,Jcs For People With Learning Disabilitie,Third Party Payments,Home Care,568,18-Jan-2016,1601-00325,0.00,4417.28,R,Affinity Trust,No
Http://opendatacommunities.org/id/metropolitan-district-council/leeds,Leeds City Council,31/01/2016,Adult Social Care,Services For Older People Under 65 P/Dis,Third Party Payments,Home Care,568,19-Jan-2016,1601-00326,0.00,111.86,R,Affinity Trust,No
Http://opendatacommunities.org/id/metropolitan-district-council/leeds,Leeds City Council,31/01/2016,Adult Social Care,Services For Adults Under 65 Mental/Dis,Third Party Payments,Home Care,568,19-Jan-2016,1601-00327,0.00,319.60,R,Affinity Trust,No
Http://opendatacommunities.org/id/metropolitan-district-council/leeds,Leeds City Council,31/01/2016,Adult Social Care,Services For Older People Under 65 P/Dis,Third Party Payments,Home Care,568,19-Jan-2016,1601-00328,0.00,396.00,R,Affinity Trust,No
Http://opendatacommunities.org/id/metropolitan-district-council/leeds,Leeds City Council,31/01/2016,Adult Social Care,Services For Older People Under 65 P/Dis,Third Party Payments,Home Care,568,19-Jan-2016,1601-00329,0.00,303.62,R,Affinity Trust,No
Http://opendatacommunities.org/id/metropolitan-district-council/leeds,Leeds City Council,31/01/2016,Adult Social Care,Services For Older People - 65 And Over,Third Party Payments,Home Care,568,19-Jan-2016,1601-00330,0.00,1076.48,R,Affinity Trust,No
Http://opendatacommunities.org/id/metropolitan-district-council/leeds,Leeds City Council,31/01/2016,Adult Social Care,Services For Older People Under 65 P/Dis,Third Party Payments,Home Care,568,20-Jan-2016,1601-00331,0.00,703.12,R,Affinity Trust,No
Http://opendatacommunities.org/id/metropolitan-district-council/leeds,Leeds City Council,31/01/2016,Adult Social Care,Services For Older People Under 65 P/Dis,Third Party Payments,Home Care,568,20-Jan-2016,1601-00332,0.00,255.68,R,Affinity Trust,No
Http://opendatacommunities.org/id/metropolitan-district-council/leeds,Leeds City Council,31/01/2016,Adult Social Care,Services For Older People Under 65 P/Dis,Third Party Payments,Home Care,568,20-Jan-2016,1601-00333,0.00,319.60,R,Affinity Trust,No
Http://opendatacommunities.org/id/metropolitan-district-council/leeds,Leeds City Council as Accountable Body,31/01/2016,Social Services Pooled Budgets,Jcs For People With Learning Disabilitie,Third Party Payments,Home Care,568,20-Jan-2016,1601-00334,0.00,799.00,R,Affinity Trust,No
Http://opendatacommunities.org/id/metropolitan-district-council/leeds,Leeds City Council as Accountable Body,31/01/2016,Social Services Pooled Budgets,Jcs For People With Learning Disabilitie,Third Party Payments,Home Care,568,20-Jan-2016,1601-00335,0.00,255.68,R,Affinity Trust,No
Http://opendatacommunities.org/id/metropolitan-district-council/leeds,Leeds City Council as Accountable Body,31/01/2016,Social Services Pooled Budgets,Jcs For People With Learning Disabilitie,Third Party Payments,Home Care,568,20-Jan-2016,1601-00336,0.00,1390.26,R,Affinity Trust,No
Http://opendatacommunities.org/id/metropolitan-district-council/leeds,Leeds City Council as Accountable Body,31/01/2016,Social Services Pooled Budgets,Jcs For People With Learning Disabilitie,Third Party Payments,Home Care,568,20-Jan-2016,1601-00337,0.00,270.00,R,Affinity Trust,No
Http://opendatacommunities.org/id/metropolitan-district-council/leeds,Leeds City Council,31/01/2016,Adult Social Care,Services For Older People - 65 And Over,Third Party Payments,Home Care,568,20-Jan-2016,1601-00338,0.00,41.53,R,Affinity Trust,No
Http://opendatacommunities.org/id/metropolitan-district-council/leeds,Leeds City Council,31/01/2016,Adult Social Care,Services For Older People Under 65 P/Dis,Third Party Payments,Home Care,568,22-Jan-2016,1601-00339,0.00,1661.40,R,Affinity Trust,No
Http://opendatacommunities.org/id/metropolitan-district-council/leeds,Leeds City Council,31/01/2016,Adult Social Care,Services For Adults Under 65 Mental/Dis,Third Party Payments,Home Care,568,22-Jan-2016,1601-00340,0.00,570.54,R,Affinity Trust,No
Http://opendatacommunities.org/id/metropolitan-district-council/leeds,Leeds City Council,31/01/2016,Adult Social Care,Services For Older People Under 65 P/Dis,Third Party Payments,Home Care,568,22-Jan-2016,1601-00341,0.00,99.66,R,Affinity Trust,No
Http://opendatacommunities.org/id/metropolitan-district-council/leeds,Leeds City Council,31/01/2016,Adult Social Care,Services For Older People Under 65 P/Dis,Third Party Payments,Home Care,568,22-Jan-2016,1601-00342,0.00,398.64,R,Affinity Trust,No
Http://opendatacommunities.org/id/metropolitan-district-council/leeds,Leeds City Council as Accountable Body,31/01/2016,Social Services Pooled Budgets,Jcs For People With Learning Disabilitie,Third Party Payments,Home Care,568,29-Jan-2016,1601-00343,0.00,319.60,R,Affinity Trust,No
Http://opendatacommunities.org/id/metropolitan-district-council/leeds,Leeds City Council,31/01/2016,Adult Social Care,Services For Older People Under 65 P/Dis,Third Party Payments,Sheltered Accommodation,569,13-Jan-2016,1601-00344,0.00,4895.00,R,Affinity Trust North Divisional Office,No
Http://opendatacommunities.org/id/metropolitan-district-council/leeds,Leeds City Council as Accountable Body,31/01/2016,Social Services Pooled Budgets,Jcs For People With Learning Disabilitie,Third Party Payments,Sheltered Accommodation,569,13-Jan-2016,1601-00345,0.00,100055.28,R,Affinity Trust North Divisional Office,No
Http://opendatacommunities.org/id/metropolitan-district-council/leeds,Leeds City Council as Accountable Body,31/01/2016,Social Services Pooled Budgets,Jcs For People With Learning Disabilitie,Third Party Payments,Residential,580,13-Jan-2016,1601-00346,0.00,15596.92,R,Affinity Trust North Divisional Office,No
Http://opendatacommunities.org/id/metropolitan-district-council/leeds,Leeds City Council,31/01/2016,Environment & Housing,Parks And Countryside ,Transport,Hire Of Movable Plant & Machinery,315,23-Dec-2015,1601-00347,0.00,4750.00,R,Afi Uplift Ltd,Yes
Http://opendatacommunities.org/id/metropolitan-district-council/leeds,Leeds City Council,31/01/2016,Environment & Housing,SP Contracts & SECC,Third Party Payments,Supporting Ppl - Block Gross Chargeable,514,22-Jan-2016,1601-00348,0.00,3957.68,R,Age Uk Leeds,No
Http://opendatacommunities.org/id/metropolitan-district-council/leeds,Leeds City Council,31/01/2016,Adult Social Care,Services For Older People Under 65 P/Dis,Third Party Payments,Residential,580,13-Jan-2016,1601-00349,0.00,5598.40,R,Agricola House,No
Http://opendatacommunities.org/id/metropolitan-district-council/leeds,Leeds City Council as Accountable Body,31/01/2016,Social Services Pooled Budgets,Leeds Community Equip Store Pooled Budgt,Supplies and Services,Other Equipment,203,05-Jan-2016,1601-00350,0.00,675.00,R,Aidapt Bathrooms Ltd,No
Http://opendatacommunities.org/id/metropolitan-district-council/leeds,Leeds City Council as Accountable Body,31/01/2016,Social Services Pooled Budgets,Leeds Community Equip Store Pooled Budgt,Supplies and Services,Other Equipment,203,06-Jan-2016,1601-00351,0.00,200.00,R,Aidapt Bathrooms Ltd,No
Http://opendatacommunities.org/id/metropolitan-district-council/leeds,Leeds City Council as Accountable Body,31/01/2016,Social Services Pooled Budgets,Leeds Community Equip Store Pooled Budgt,Supplies and Services,Other Equipment,203,06-Jan-2016,1601-00352,0.00,200.00,R,Aidapt Bathrooms Ltd,No
Http://opendatacommunities.org/id/metropolitan-district-council/leeds,Leeds City Council as Accountable Body,31/01/2016,Social Services Pooled Budgets,Leeds Community Equip Store Pooled Budgt,Supplies and Services,Other Equipment,203,13-Jan-2016,1601-00353,0.00,675.00,R,Aidapt Bathrooms Ltd,No
Http://opendatacommunities.org/id/metropolitan-district-council/leeds,Leeds City Council as Accountable Body,31/01/2016,Social Services Pooled Budgets,Leeds Community Equip Store Pooled Budgt,Supplies and Services,Other Equipment,203,15-Jan-2016,1601-00354,0.00,680.00,R,Aidapt Bathrooms Ltd,No
Http://opendatacommunities.org/id/metropolitan-district-council/leeds,Leeds City Council as Accountable Body,31/01/2016,Social Services Pooled Budgets,Leeds Community Equip Store Pooled Budgt,Supplies and Services,Other Equipment,203,22-Jan-2016,1601-00355,0.00,1000.00,R,Aidapt Bathrooms Ltd,No
Http://opendatacommunities.org/id/metropolitan-district-council/leeds,Leeds City Council as Accountable Body,31/01/2016,Social Services Pooled Budgets,Jcs For People With Learning Disabilitie,Supplies and Services,Other Equipment,203,06-Jan-2016,1601-00356,0.00,2393.50,R,Aidservice Ltd,No
Http://opendatacommunities.org/id/metropolitan-district-council/leeds,Leeds City Council as Accountable Body,31/01/2016,Social Services Pooled Budgets,Jcs For People With Learning Disabilitie,Supplies and Services,Other Equipment,203,06-Jan-2016,1601-00357,0.00,232.00,R,Aidservice Ltd,No
Http://opendatacommunities.org/id/metropolitan-district-council/leeds,Leeds City Council as Accountable Body,31/01/2016,Social Services Pooled Budgets,Jcs For People With Learning Disabilitie,Supplies and Services,Other Equipment,203,06-Jan-2016,1601-00358,0.00,155.00,R,Aidservice Ltd,No
Http://opendatacommunities.org/id/metropolitan-district-council/leeds,Leeds City Council as Accountable Body,31/01/2016,Social Services Pooled Budgets,Jcs For People With Learning Disabilitie,Supplies and Services,Other Equipment,203,06-Jan-2016,1601-00359,0.00,225.00,R,Aidservice Ltd,No
Http://opendatacommunities.org/id/metropolitan-district-council/leeds,Leeds City Council as Accountable Body,31/01/2016,Social Services Pooled Budgets,Jcs For People With Learning Disabilitie,Supplies and Services,Other Equipment,203,06-Jan-2016,1601-00360,0.00,155.00,R,Aidservice Ltd,No
Http://opendatacommunities.org/id/metropolitan-district-council/leeds,Leeds City Council as Accountable Body,31/01/2016,Social Services Pooled Budgets,Jcs For People With Learning Disabilitie,Supplies and Services,Other Equipment,203,08-Jan-2016,1601-00361,0.00,389.60,R,Aidservice Ltd,No
Http://opendatacommunities.org/id/metropolitan-district-council/leeds,Leeds City Council as Accountable Body,31/01/2016,Social Services Pooled Budgets,Jcs For People With Learning Disabilitie,Supplies and Services,Other Equipment,203,08-Jan-2016,1601-00362,0.00,569.00,R,Aidservice Ltd,No
Http://opendatacommunities.org/id/metropolitan-district-council/leeds,Leeds City Council as Accountable Body,31/01/2016,Social Services Pooled Budgets,Leeds Community Equip Store Pooled Budgt,Supplies and Services,Other Equipment,203,15-Jan-2016,1601-00363,0.00,175.00,R,Aidservice Ltd,No
Http://opendatacommunities.org/id/metropolitan-district-council/leeds,Leeds City Council as Accountable Body,31/01/2016,Social Services Pooled Budgets,Jcs For People With Learning Disabilitie,Supplies and Services,Other Equipment,203,15-Jan-2016,1601-00364,0.00,560.00,R,Aidservice Ltd,No
Http://opendatacommunities.org/id/metropolitan-district-council/leeds,Leeds City Council,31/01/2016,Childrens Services,Safeguarding Targeted & Specialist,Employees,Training Costs,71,07-Jan-2016,1601-00365,0.00,1766.10,R,Aim Project,No
Http://opendatacommunities.org/id/metropolitan-district-council/leeds,Leeds City Council,31/01/2016,Childrens Services,Safeguarding Targeted & Specialist,Supplies and Services,Books & Audio-Visual Materials,206,07-Jan-2016,1601-00366,0.00,330.00,R,Aim Project,No
Http://opendatacommunities.org/id/metropolitan-district-council/leeds,Leeds City Council,31/01/2016,Childrens Services,Safeguarding Targeted & Specialist,Supplies and Services,Postages,212,07-Jan-2016,1601-00367,0.00,20.00,R,Aim Project,No
Http://opendatacommunities.org/id/metropolitan-district-council/leeds,Leeds City Council,31/01/2016,Central & Corporate,Commercial Services Trading Services,Supplies and Services,Operational Furniture And Equipment,203,13-Jan-2016,1601-00368,0.00,212.80,R,Air Liquide Uk,No
Http://opendatacommunities.org/id/metropolitan-district-council/leeds,Leeds City Council,31/01/2016,Central & Corporate,Commercial Services Trading Services,Supplies and Services,Operational Materials,205,13-Jan-2016,1601-00369,0.00,40.81,R,Air Liquide Uk,No
Http://opendatacommunities.org/id/metropolitan-district-council/leeds,Leeds City Council,31/01/2016,Central & Corporate,Commercial Services Trading Services,Supplies and Services,Operational Materials,205,13-Jan-2016,1601-00370,0.00,40.81,R,Air Liquide Uk,No
Http://opendatacommunities.org/id/metropolitan-district-council/leeds,Leeds City Council,31/01/2016,Central & Corporate,Commercial Services Trading Services,Supplies and Services,Operational Materials,205,15-Jan-2016,1601-00371,0.00,10.00,R,Air Liquide Uk,No
Http://opendatacommunities.org/id/metropolitan-district-council/leeds,Leeds City Council,31/01/2016,Environment & Housing,Environmental Health,Supplies and Services,Other Hired And Contracted Services,265,20-Jan-2016,1601-00372,0.00,649.91,R,Air Liquide Uk,No
Http://opendatacommunities.org/id/metropolitan-district-council/leeds,Leeds City Council as Accountable Body,31/01/2016,Social Services Pooled Budgets,Jcs For People With Learning Disabilitie,Third Party Payments,Residential,580,13-Jan-2016,1601-00373,0.00,9087.84,R,Aire House,No
Http://opendatacommunities.org/id/metropolitan-district-council/leeds,Leeds City Council,31/01/2016,Adult Social Care,Services For Older People - 65 And Over,Third Party Payments,Residential Care Dementia,571,13-Jan-2016,1601-00374,0.00,29386.80,R,Aire View Residential Home,No
Http://opendatacommunities.org/id/metropolitan-district-council/leeds,Leeds City Council,31/01/2016,Adult Social Care,Services For Older People - 65 And Over,Third Party Payments,Residential,580,13-Jan-2016,1601-00375,0.00,11615.93,R,Aire View Residential Home,No
Http://opendatacommunities.org/id/metropolitan-district-council/leeds,Leeds City Council,31/01/2016,Adult Social Care,Services For Older People - 65 And Over,Third Party Payments,Residential Care Dementia,571,13-Jan-2016,1601-00376,0.00,1243.08,R,Airedale (Goldsborough),No
Http://opendatacommunities.org/id/metropolitan-district-council/leeds,Leeds City Council,31/01/2016,Adult Social Care,Services For Older People - 65 And Over,Third Party Payments,Residential,580,13-Jan-2016,1601-00377,0.00,13947.44,R,Airedale (Goldsborough),No
Http://opendatacommunities.org/id/metropolitan-district-council/leeds,Leeds City Council,31/01/2016,Adult Social Care,Services For Older People Under 65 P/Dis,Third Party Payments,Residential,580,13-Jan-2016,1601-00378,0.00,1859.68,R,Airedale (Goldsborough),No
Http://opendatacommunities.org/id/metropolitan-district-council/leeds,Leeds City Council as Accountable Body,31/01/2016,Social Services Pooled Budgets,Jcs For People With Learning Disabilitie,Third Party Payments,Residential,580,13-Jan-2016,1601-00379,0.00,1226.80,R,Airedale (Goldsborough),No
Http://opendatacommunities.org/id/metropolitan-district-council/leeds,Leeds City Council,31/01/2016,Civic Enterprise Leeds,Commercial Services,Supplies and Services,Operational Materials,205,27-Jan-2016,1601-00380,0.00,1267.00,R,Airedale Catering Equipment Ltd,No
Http://opendatacommunities.org/id/metropolitan-district-council/leeds,Leeds City Council,31/01/2016,Adult Social Care,Services For Adults Under 65 Mental/Dis,Third Party Payments,Services Provided By Other NHS Bodies,522,11-Jan-2016,1601-00381,0.00,175.00,R,Ait Mitra,No
Http://opendatacommunities.org/id/metropolitan-district-council/leeds,Leeds City Council,31/01/2016,Adult Social Care,Services For Adults Under 65 Mental/Dis,Third Party Payments,Services Provided By Other NHS Bodies,522,11-Jan-2016,1601-00382,0.00,175.00,R,Ait Mitra,No
Http://opendatacommunities.org/id/metropolitan-district-council/leeds,Leeds City Council,31/01/2016,Adult Social Care,Services For Adults Under 65 Mental/Dis,Third Party Payments,Services Provided By Other NHS Bodies,522,12-Jan-2016,1601-00383,0.00,175.00,R,Ait Mitra,No
Http://opendatacommunities.org/id/metropolitan-district-council/leeds,Leeds City Council,31/01/2016,Adult Social Care,Services For Adults Under 65 Mental/Dis,Third Party Payments,Services Provided By Other NHS Bodies,522,12-Jan-2016,1601-00384,0.00,175.00,R,Ait Mitra,No
Http://opendatacommunities.org/id/metropolitan-district-council/leeds,Leeds City Council,31/01/2016,Adult Social Care,Services For Adults Under 65 Mental/Dis,Third Party Payments,Services Provided By Other NHS Bodies,522,12-Jan-2016,1601-00385,0.00,175.00,R,Ait Mitra,No
Http://opendatacommunities.org/id/metropolitan-district-council/leeds,Leeds City Council,31/01/2016,Adult Social Care,Services For Adults Under 65 Mental/Dis,Third Party Payments,Services Provided By Other NHS Bodies,522,12-Jan-2016,1601-00386,0.00,175.00,R,Ait Mitra,No
Http://opendatacommunities.org/id/metropolitan-district-council/leeds,Leeds City Council,31/01/2016,Adult Social Care,Services For Adults Under 65 Mental/Dis,Third Party Payments,Services Provided By Other NHS Bodies,522,12-Jan-2016,1601-00387,0.00,175.00,R,Ait Mitra,No
Http://opendatacommunities.org/id/metropolitan-district-council/leeds,Leeds City Council,31/01/2016,Adult Social Care,Services For Adults Under 65 Mental/Dis,Third Party Payments,Services Provided By Other NHS Bodies,522,12-Jan-2016,1601-00388,0.00,175.00,R,Ait Mitra,No
Http://opendatacommunities.org/id/metropolitan-district-council/leeds,Leeds City Council,31/01/2016,Adult Social Care,Services For Adults Under 65 Mental/Dis,Third Party Payments,Services Provided By Other NHS Bodies,522,12-Jan-2016,1601-00389,0.00,175.00,R,Ait Mitra,No
Http://opendatacommunities.org/id/metropolitan-district-council/leeds,Leeds City Council,31/01/2016,Adult Social Care,Services For Adults Under 65 Mental/Dis,Third Party Payments,Services Provided By Other NHS Bodies,522,12-Jan-2016,1601-00390,0.00,175.00,R,Ait Mitra,No
Http://opendatacommunities.org/id/metropolitan-district-council/leeds,Leeds City Council,31/01/2016,Adult Social Care,Services For Adults Under 65 Mental/Dis,Third Party Payments,Services Provided By Other NHS Bodies,522,13-Jan-2016,1601-00391,0.00,175.00,R,Ait Mitra,No
Http://opendatacommunities.org/id/metropolitan-district-council/leeds,Leeds City Council,31/01/2016,Adult Social Care,Services For Adults Under 65 Mental/Dis,Third Party Payments,Services Provided By Other NHS Bodies,522,13-Jan-2016,1601-00392,0.00,175.00,R,Ait Mitra,No
Http://opendatacommunities.org/id/metropolitan-district-council/leeds,Leeds City Council,31/01/2016,Adult Social Care,Services For Adults Under 65 Mental/Dis,Third Party Payments,Services Provided By Other NHS Bodies,522,13-Jan-2016,1601-00393,0.00,175.00,R,Ait Mitra,No
Http://opendatacommunities.org/id/metropolitan-district-council/leeds,Leeds City Council,31/01/2016,Adult Social Care,Services For Adults Under 65 Mental/Dis,Third Party Payments,Services Provided By Other NHS Bodies,522,13-Jan-2016,1601-00394,0.00,175.00,R,Ait Mitra,No
Http://opendatacommunities.org/id/metropolitan-district-council/leeds,Leeds City Council,31/01/2016,Adult Social Care,Services For Adults Under 65 Mental/Dis,Third Party Payments,Services Provided By Other NHS Bodies,522,13-Jan-2016,1601-00395,0.00,175.00,R,Ait Mitra,No
Http://opendatacommunities.org/id/metropolitan-district-council/leeds,Leeds City Council,31/01/2016,Adult Social Care,Services For Adults Under 65 Mental/Dis,Third Party Payments,Services Provided By Other NHS Bodies,522,13-Jan-2016,1601-00396,0.00,220.00,R,Ait Mitra,No
Http://opendatacommunities.org/id/metropolitan-district-council/leeds,Leeds City Council,31/01/2016,Adult Social Care,Services For Adults Under 65 Mental/Dis,Third Party Payments,Services Provided By Other NHS Bodies,522,14-Jan-2016,1601-00397,0.00,175.00,R,Ait Mitra,No
Http://opendatacommunities.org/id/metropolitan-district-council/leeds,Leeds City Council,31/01/2016,Adult Social Care,Services For Adults Under 65 Mental/Dis,Third Party Payments,Services Provided By Other NHS Bodies,522,14-Jan-2016,1601-00398,0.00,175.00,R,Ait Mitra,No
Http://opendatacommunities.org/id/metropolitan-district-council/leeds,Leeds City Council,31/01/2016,Adult Social Care,Services For Adults Under 65 Mental/Dis,Third Party Payments,Services Provided By Other NHS Bodies,522,14-Jan-2016,1601-00399,0.00,175.00,R,Ait Mitra,No
Http://opendatacommunities.org/id/metropolitan-district-council/leeds,Leeds City Council,31/01/2016,Adult Social Care,Services For Adults Under 65 Mental/Dis,Third Party Payments,Services Provided By Other NHS Bodies,522,14-Jan-2016,1601-00400,0.00,175.00,R,Ait Mitra,No
Http://opendatacommunities.org/id/metropolitan-district-council/leeds,Leeds City Council,31/01/2016,Adult Social Care,Services For Adults Under 65 Mental/Dis,Third Party Payments,Services Provided By Other NHS Bodies,522,15-Jan-2016,1601-00401,0.00,175.00,R,Ait Mitra,No
Http://opendatacommunities.org/id/metropolitan-district-council/leeds,Leeds City Council,31/01/2016,Adult Social Care,Services For Adults Under 65 Mental/Dis,Third Party Payments,Services Provided By Other NHS Bodies,522,15-Jan-2016,1601-00402,0.00,220.00,R,Ait Mitra,No
Http://opendatacommunities.org/id/metropolitan-district-council/leeds,Leeds City Council,31/01/2016,Adult Social Care,Services For Adults Under 65 Mental/Dis,Third Party Payments,Services Provided By Other NHS Bodies,522,22-Jan-2016,1601-00403,0.00,175.00,R,Ait Mitra,No
Http://opendatacommunities.org/id/metropolitan-district-council/leeds,Leeds City Council,31/01/2016,Adult Social Care,Services For Adults Under 65 Mental/Dis,Third Party Payments,Services Provided By Other NHS Bodies,522,22-Jan-2016,1601-00404,0.00,175.00,R,Ait Mitra,No
Http://opendatacommunities.org/id/metropolitan-district-council/leeds,Leeds City Council,31/01/2016,Adult Social Care,Services For Adults Under 65 Mental/Dis,Third Party Payments,Services Provided By Other NHS Bodies,522,22-Jan-2016,1601-00405,0.00,175.00,R,Ait Mitra,No
Http://opendatacommunities.org/id/metropolitan-district-council/leeds,Leeds City Council,31/01/2016,Adult Social Care,Services For Adults Under 65 Mental/Dis,Third Party Payments,Services Provided By Other NHS Bodies,522,22-Jan-2016,1601-00406,0.00,175.00,R,Ait Mitra,No
Http://opendatacommunities.org/id/metropolitan-district-council/leeds,Leeds City Council,31/01/2016,Adult Social Care,Services For Adults Under 65 Mental/Dis,Third Party Payments,Services Provided By Other NHS Bodies,522,22-Jan-2016,1601-00407,0.00,175.00,R,Ait Mitra,No
Http://opendatacommunities.org/id/metropolitan-district-council/leeds,Leeds City Council,31/01/2016,Adult Social Care,Services For Adults Under 65 Mental/Dis,Third Party Payments,Services Provided By Other NHS Bodies,522,22-Jan-2016,1601-00408,0.00,175.00,R,Ait Mitra,No
Http://opendatacommunities.org/id/metropolitan-district-council/leeds,Leeds City Council,31/01/2016,Adult Social Care,Services For Adults Under 65 Mental/Dis,Third Party Payments,Services Provided By Other NHS Bodies,522,22-Jan-2016,1601-00409,0.00,175.00,R,Ait Mitra,No
Http://opendatacommunities.org/id/metropolitan-district-council/leeds,Leeds City Council,31/01/2016,Adult Social Care,Services For Adults Under 65 Mental/Dis,Third Party Payments,Services Provided By Other NHS Bodies,522,22-Jan-2016,1601-00410,0.00,175.00,R,Ait Mitra,No
Http://opendatacommunities.org/id/metropolitan-district-council/leeds,Leeds City Council,31/01/2016,Adult Social Care,Services For Adults Under 65 Mental/Dis,Third Party Payments,Services Provided By Other NHS Bodies,522,22-Jan-2016,1601-00411,0.00,175.00,R,Ait Mitra,No
Http://opendatacommunities.org/id/metropolitan-district-council/leeds,Leeds City Council,31/01/2016,Adult Social Care,Services For Adults Under 65 Mental/Dis,Third Party Payments,Services Provided By Other NHS Bodies,522,22-Jan-2016,1601-00412,0.00,175.00,R,Ait Mitra,No
Http://opendatacommunities.org/id/metropolitan-district-council/leeds,Leeds City Council,31/01/2016,Adult Social Care,Services For Adults Under 65 Mental/Dis,Third Party Payments,Services Provided By Other NHS Bodies,522,22-Jan-2016,1601-00413,0.00,175.00,R,Ait Mitra,No
Http://opendatacommunities.org/id/metropolitan-district-council/leeds,Leeds City Council,31/01/2016,Adult Social Care,Services For Adults Under 65 Mental/Dis,Third Party Payments,Services Provided By Other NHS Bodies,522,22-Jan-2016,1601-00414,0.00,175.00,R,Ait Mitra,No
Http://opendatacommunities.org/id/metropolitan-district-council/leeds,Leeds City Council,31/01/2016,Adult Social Care,Services For Adults Under 65 Mental/Dis,Third Party Payments,Services Provided By Other NHS Bodies,522,22-Jan-2016,1601-00415,0.00,175.00,R,Ait Mitra,No
Http://opendatacommunities.org/id/metropolitan-district-council/leeds,Leeds City Council,31/01/2016,Adult Social Care,Services For Adults Under 65 Mental/Dis,Third Party Payments,Services Provided By Other NHS Bodies,522,22-Jan-2016,1601-00416,0.00,175.00,R,Ait Mitra,No
Http://opendatacommunities.org/id/metropolitan-district-council/leeds,Leeds City Council,31/01/2016,Adult Social Care,Services For Adults Under 65 Mental/Dis,Third Party Payments,Services Provided By Other NHS Bodies,522,22-Jan-2016,1601-00417,0.00,175.00,R,Ait Mitra,No
Http://opendatacommunities.org/id/metropolitan-district-council/leeds,Leeds City Council,31/01/2016,Adult Social Care,Services For Adults Under 65 Mental/Dis,Third Party Payments,Services Provided By Other NHS Bodies,522,22-Jan-2016,1601-00418,0.00,175.00,R,Ait Mitra,No
Http://opendatacommunities.org/id/metropolitan-district-council/leeds,Leeds City Council,31/01/2016,Adult Social Care,Services For Adults Under 65 Mental/Dis,Third Party Payments,Services Provided By Other NHS Bodies,522,22-Jan-2016,1601-00419,0.00,175.00,R,Ait Mitra,No
Http://opendatacommunities.org/id/metropolitan-district-council/leeds,Leeds City Council,31/01/2016,Adult Social Care,Services For Adults Under 65 Mental/Dis,Third Party Payments,Services Provided By Other NHS Bodies,522,22-Jan-2016,1601-00420,0.00,175.00,R,Ait Mitra,No
Http://opendatacommunities.org/id/metropolitan-district-council/leeds,Leeds City Council,31/01/2016,Adult Social Care,Services For Adults Under 65 Mental/Dis,Third Party Payments,Services Provided By Other NHS Bodies,522,22-Jan-2016,1601-00421,0.00,175.00,R,Ait Mitra,No
Http://opendatacommunities.org/id/metropolitan-district-council/leeds,Leeds City Council,31/01/2016,Adult Social Care,Services For Adults Under 65 Mental/Dis,Third Party Payments,Services Provided By Other NHS Bodies,522,22-Jan-2016,1601-00422,0.00,175.00,R,Ait Mitra,No
Http://opendatacommunities.org/id/metropolitan-district-council/leeds,Leeds City Council,31/01/2016,Adult Social Care,Services For Adults Under 65 Mental/Dis,Third Party Payments,Services Provided By Other NHS Bodies,522,22-Jan-2016,1601-00423,0.00,175.00,R,Ait Mitra,No
Http://opendatacommunities.org/id/metropolitan-district-council/leeds,Leeds City Council,31/01/2016,Adult Social Care,Services For Adults Under 65 Mental/Dis,Third Party Payments,Services Provided By Other NHS Bodies,522,22-Jan-2016,1601-00424,0.00,175.00,R,Ait Mitra,No
Http://opendatacommunities.org/id/metropolitan-district-council/leeds,Leeds City Council,31/01/2016,Adult Social Care,Services For Adults Under 65 Mental/Dis,Third Party Payments,Services Provided By Other NHS Bodies,522,22-Jan-2016,1601-00425,0.00,175.00,R,Ait Mitra,No
Http://opendatacommunities.org/id/metropolitan-district-council/leeds,Leeds City Council,31/01/2016,Adult Social Care,Services For Adults Under 65 Mental/Dis,Third Party Payments,Services Provided By Other NHS Bodies,522,22-Jan-2016,1601-00426,0.00,175.00,R,Ait Mitra,No
Http://opendatacommunities.org/id/metropolitan-district-council/leeds,Leeds City Council,31/01/2016,Adult Social Care,Services For Adults Under 65 Mental/Dis,Third Party Payments,Services Provided By Other NHS Bodies,522,22-Jan-2016,1601-00427,0.00,175.00,R,Ait Mitra,No
Http://opendatacommunities.org/id/metropolitan-district-council/leeds,Leeds City Council,31/01/2016,Adult Social Care,Services For Adults Under 65 Mental/Dis,Third Party Payments,Services Provided By Other NHS Bodies,522,22-Jan-2016,1601-00428,0.00,175.00,R,Ait Mitra,No
Http://opendatacommunities.org/id/metropolitan-district-council/leeds,Leeds City Council,31/01/2016,Adult Social Care,Services For Adults Under 65 Mental/Dis,Third Party Payments,Services Provided By Other NHS Bodies,522,22-Jan-2016,1601-00429,0.00,175.00,R,Ait Mitra,No
Http://opendatacommunities.org/id/metropolitan-district-council/leeds,Leeds City Council,31/01/2016,Adult Social Care,Services For Adults Under 65 Mental/Dis,Third Party Payments,Services Provided By Other NHS Bodies,522,22-Jan-2016,1601-00430,0.00,175.00,R,Ait Mitra,No
Http://opendatacommunities.org/id/metropolitan-district-council/leeds,Leeds City Council,31/01/2016,Adult Social Care,Services For Adults Under 65 Mental/Dis,Third Party Payments,Services Provided By Other NHS Bodies,522,22-Jan-2016,1601-00431,0.00,175.00,R,Ait Mitra,No
Http://opendatacommunities.org/id/metropolitan-district-council/leeds,Leeds City Council,31/01/2016,Adult Social Care,Services For Adults Under 65 Mental/Dis,Third Party Payments,Services Provided By Other NHS Bodies,522,22-Jan-2016,1601-00432,0.00,175.00,R,Ait Mitra,No
Http://opendatacommunities.org/id/metropolitan-district-council/leeds,Leeds City Council,31/01/2016,Adult Social Care,Services For Adults Under 65 Mental/Dis,Third Party Payments,Services Provided By Other NHS Bodies,522,22-Jan-2016,1601-00433,0.00,175.00,R,Ait Mitra,No
Http://opendatacommunities.org/id/metropolitan-district-council/leeds,Leeds City Council as Accountable Body,31/01/2016,Social Services Pooled Budgets,Jcs For People With Learning Disabilitie,Third Party Payments,Residential,580,13-Jan-2016,1601-00434,0.00,6173.24,R,Aitch Care Homes,No
Http://opendatacommunities.org/id/metropolitan-district-council/leeds,Leeds City Council,31/01/2016,City Development,Recreation,Supplies and Services,Operational Materials,205,13-Jan-2016,1601-00435,0.00,260.00,R,Aitkens Sportsturf Ltd,No
Http://opendatacommunities.org/id/metropolitan-district-council/leeds,Leeds City Council,31/01/2016,Central & Corporate,Commercial Services Trading Services,Supplies and Services,Operational Materials,205,13-Jan-2016,1601-00436,0.00,35.90,R,Ajm Fixings & Power Tools Ltd,No
Http://opendatacommunities.org/id/metropolitan-district-council/leeds,Leeds City Council,31/01/2016,Environment & Housing,Leeds Building Services,Supplies and Services,Operational Furniture And Equipment,203,19-Jan-2016,1601-00437,0.00,562.50,R,Ajm Fixings & Power Tools Ltd,No
Http://opendatacommunities.org/id/metropolitan-district-council/leeds,Leeds City Council,31/01/2016,Environment & Housing,Leeds Building Services,Supplies and Services,Stores - Central And Other Depots,005,19-Jan-2016,1601-00438,0.00,952.38,R,Ajm Fixings & Power Tools Ltd,No
Http://opendatacommunities.org/id/metropolitan-district-council/leeds,Leeds City Council,31/01/2016,Central & Corporate,Commercial Services Trading Services,Supplies and Services,Operational Furniture And Equipment,203,19-Jan-2016,1601-00439,0.00,148.50,R,Ajm Fixings & Power Tools Ltd,No
Http://opendatacommunities.org/id/metropolitan-district-council/leeds,Leeds City Council,31/01/2016,Central & Corporate,Commercial Services Trading Services,Supplies and Services,Operational Materials,205,19-Jan-2016,1601-00440,0.00,176.00,R,Ajm Fixings & Power Tools Ltd,No
Http://opendatacommunities.org/id/metropolitan-district-council/leeds,Leeds City Council,31/01/2016,Environment & Housing,Leeds Building Services,Supplies and Services,Stores - Central And Other Depots,005,19-Jan-2016,1601-00441,0.00,287.50,R,Ajm Fixings & Power Tools Ltd,No
Http://opendatacommunities.org/id/metropolitan-district-council/leeds,Leeds City Council,31/01/2016,Environment & Housing,Leeds Building Services,Supplies and Services,Operational Furniture And Equipment,203,27-Jan-2016,1601-00442,0.00,257.40,R,Ajm Fixings & Power Tools Ltd,No
Http://opendatacommunities.org/id/metropolitan-district-council/leeds,Leeds City Council,31/01/2016,Environment & Housing,Leeds Building Services,Supplies and Services,Operational Furniture And Equipment,203,27-Jan-2016,1601-00443,0.00,366.00,R,Ajm Fixings & Power Tools Ltd,No
Http://opendatacommunities.org/id/metropolitan-district-council/leeds,Leeds City Council,31/01/2016,Environment & Housing,Leeds Building Services,Supplies and Services,Operational Furniture And Equipment,203,27-Jan-2016,1601-00444,0.00,123.20,R,Ajm Fixings & Power Tools Ltd,No
Http://opendatacommunities.org/id/metropolitan-district-council/leeds,Leeds City Council,31/01/2016,City Development,Economic Development,Supplies and Services,Grants To Businesses,243,18-Jan-2016,1601-00445,0.00,2500.00,R,Ak Gas Appliance 2 Spares Ltd,No
Http://opendatacommunities.org/id/metropolitan-district-council/leeds,Leeds City Council,31/01/2016,Adult Social Care,Services For Older People - 65 And Over,Third Party Payments,Nursing Home,570,13-Jan-2016,1601-00446,0.00,1279.08,R,Akari Care Ltd,No
Http://opendatacommunities.org/id/metropolitan-district-council/leeds,Leeds City Council,31/01/2016,Childrens Services,Safeguarding Targeted & Specialist,Supplies and Services,General Amenity For Clients/Residents,285,11-Jan-2016,1601-00447,0.00,5.00,R,REDACTED PERSONAL DATA,No
Http://opendatacommunities.org/id/metropolitan-district-council/leeds,Leeds City Council,31/01/2016,Childrens Services,Safeguarding Targeted & Specialist,Transport,Public Transport Expenses,310,11-Jan-2016,1601-00448,0.00,24.80,R,REDACTED PERSONAL DATA,No
Http://opendatacommunities.org/id/metropolitan-district-council/leeds,Leeds City Council,31/01/2016,Citizens and Communities,Benefits  Wlefare and Poverty,Supplies and Services,Grant Related Expenditure,298,29-Jan-2016,1601-00449,0.00,500.00,R,REDACTED PERSONAL DATA,No
Http://opendatacommunities.org/id/metropolitan-district-council/leeds,Leeds City Council,31/01/2016,City Development,Libraries  Arts & Heritage,Supplies and Services,Other Hired And Contracted Services,265,15-Jan-2016,1601-00450,0.00,200.00,R,Alan Horsey,No
Http://opendatacommunities.org/id/metropolitan-district-council/leeds,Leeds City Council,31/01/2016,Environment & Housing,Waste Management,Transport,Repair & Maintenance of  Plant,342,15-Jan-2016,1601-00451,0.00,297.00,R,Alan Thompson Transport,No
Http://opendatacommunities.org/id/metropolitan-district-council/leeds,Leeds City Council,31/01/2016,Environment & Housing,Waste Management,Transport,Repair & Maintenance of  Plant,342,29-Jan-2016,1601-00452,0.00,594.00,R,Alan Thompson Transport,No
Http://opendatacommunities.org/id/metropolitan-district-council/leeds,Leeds City Council,31/01/2016,Civic Enterprise Leeds,Commercial Services,Transport,Vehicle Spares,345,15-Jan-2016,1601-00453,0.00,31.14,R,Albert Jagger Limited,No
Http://opendatacommunities.org/id/metropolitan-district-council/leeds,Leeds City Council,31/01/2016,Childrens Services,Safeguarding Targeted & Specialist ,Third Party Payments,Contact,548,21-Dec-2015,1601-00454,0.00,100.00,R,Alder House Hotel,Yes
Http://opendatacommunities.org/id/metropolitan-district-council/leeds,Leeds City Council,31/01/2016,Childrens Services,Safeguarding Targeted & Specialist ,Third Party Payments,Contact,548,22-Dec-2015,1601-00455,0.00,412.50,R,Alder House Hotel,Yes
Http://opendatacommunities.org/id/metropolitan-district-council/leeds,Leeds City Council,31/01/2016,Childrens Services,Learning Skills & Universal ,Supplies and Services,Food & Drink,231,09-Dec-2015,1601-00456,0.00,12.43,R,Aldi,Yes
Http://opendatacommunities.org/id/metropolitan-district-council/leeds,Leeds City Council,31/01/2016,Childrens Services,Safeguarding Targeted & Specialist ,Supplies and Services,General Amenity For Clients/Residents,285,23-Dec-2015,1601-00457,0.00,46.45,R,Aldi,Yes
Http://opendatacommunities.org/id/metropolitan-district-council/leeds,Leeds City Council,31/01/2016,City Development,Recreation,Income,Sporting & Other Recreational Fees,928,07-Jan-2016,1601-00458,0.00,102.60,R,REDACTED PERSONAL DATA,No
Http://opendatacommunities.org/id/metropolitan-district-council/leeds,Leeds City Council,31/01/2016,Childrens Services,Safeguarding Targeted & Specialist,Support Services,Legal Disbursements,411,21-Jan-2016,1601-00459,0.00,1437.50,R,Alex Taylor,No
Http://opendatacommunities.org/id/metropolitan-district-council/leeds,Leeds City Council,31/01/2016,Citizens and Communities,Benefits  Wlefare and Poverty,Supplies and Services,Grant Related Expenditure,298,29-Jan-2016,1601-00460,0.00,500.00,R,REDACTED PERSONAL DATA,No
Http://opendatacommunities.org/id/metropolitan-district-council/leeds,Leeds City Council,31/01/2016,Adult Social Care,Services For Older People - 65 And Over,Third Party Payments,Residential Care Dementia,571,13-Jan-2016,1601-00461,0.00,9661.44,R,Alexander Residential Home,No
Http://opendatacommunities.org/id/metropolitan-district-council/leeds,Leeds City Council,31/01/2016,Adult Social Care,Services For Older People - 65 And Over,Third Party Payments,Residential,580,13-Jan-2016,1601-00462,0.00,11311.60,R,Alexander Residential Home,No
Http://opendatacommunities.org/id/metropolitan-district-council/leeds,Leeds City Council,31/01/2016,Adult Social Care,Services For Older People Under 65 P/Dis,Third Party Payments,Residential Care Dementia,571,13-Jan-2016,1601-00463,0.00,-930.19,R,Alexander Residential Home,No
Http://opendatacommunities.org/id/metropolitan-district-council/leeds,Leeds City Council,31/01/2016,Adult Social Care,Services For Older People Under 65 P/Dis,Third Party Payments,Residential,580,13-Jan-2016,1601-00464,0.00,2424.24,R,Alexander Residential Home,No
Http://opendatacommunities.org/id/metropolitan-district-council/leeds,Leeds City Council,31/01/2016,Adult Social Care,Services For Older People - 65 And Over,Third Party Payments,Residential Care Dementia,571,13-Jan-2016,1601-00465,0.00,1285.20,R,Alexandra Court,No
Http://opendatacommunities.org/id/metropolitan-district-council/leeds,Leeds City Council,31/01/2016,Adult Social Care,Services For Older People - 65 And Over,Third Party Payments,Residential,580,13-Jan-2016,1601-00466,0.00,12217.68,R,Alexandra Court,No
Http://opendatacommunities.org/id/metropolitan-district-council/leeds,Leeds City Council,31/01/2016,Adult Social Care,Services For Older People Under 65 P/Dis,Third Party Payments,Residential Care Dementia,571,13-Jan-2016,1601-00467,0.00,1608.49,R,Alexandra Court,No
Http://opendatacommunities.org/id/metropolitan-district-council/leeds,Leeds City Council,31/01/2016,Childrens Services,Safeguarding Targeted & Specialist,Supplies and Services,General Amenity For Clients/Residents,285,29-Jan-2016,1601-00468,0.00,56.65,R,REDACTED PERSONAL DATA,No
Http://opendatacommunities.org/id/metropolitan-district-council/leeds,Leeds City Council,31/01/2016,Childrens Services,Safeguarding Targeted & Specialist,Transport,Public Transport Expenses,310,29-Jan-2016,1601-00469,0.00,4.60,R,REDACTED PERSONAL DATA,No
Http://opendatacommunities.org/id/metropolitan-district-council/leeds,Leeds City Council,31/01/2016,Civic Enterprise Leeds,Commercial Services,Supplies and Services,Other Hired And Contracted Services,265,22-Jan-2016,1601-00470,0.00,2046.61,R,Alfa Tail Lifts Limited,No
Http://opendatacommunities.org/id/metropolitan-district-council/leeds,Leeds City Council,31/01/2016,Civic Enterprise Leeds,Commercial Services,Supplies and Services,Other Hired And Contracted Services,265,22-Jan-2016,1601-00471,0.00,100.88,R,Alfa Tail Lifts Limited,No
Http://opendatacommunities.org/id/metropolitan-district-council/leeds,Leeds City Council,31/01/2016,Central & Corporate,Commercial Services Trading Services,Supplies and Services,Other Hired And Contracted Services,265,12-Jan-2016,1601-00472,0.00,3800.00,R,Alfred Bagnall & Sons (Leeds) Ltd,No
Http://opendatacommunities.org/id/metropolitan-district-council/leeds,Leeds City Council,31/01/2016,City Development,Libraries  Arts & Heritage,Supplies and Services,Other Hired And Contracted Services,265,15-Jan-2016,1601-00473,0.00,2250.00,R,Alfred Bagnall & Sons (Leeds) Ltd,No
Http://opendatacommunities.org/id/metropolitan-district-council/leeds,Leeds City Council,31/01/2016,Central & Corporate,Commercial Services Trading Services,Supplies and Services,Other Hired And Contracted Services,265,15-Jan-2016,1601-00474,0.00,4527.00,R,Alfred Bagnall & Sons (Leeds) Ltd,No
Http://opendatacommunities.org/id/metropolitan-district-council/leeds,Leeds City Council,31/01/2016,Central & Corporate,Commercial Services Trading Services,Supplies and Services,Other Hired And Contracted Services,265,15-Jan-2016,1601-00475,0.00,1624.00,R,Alfred Bagnall & Sons (Leeds) Ltd,No
Http://opendatacommunities.org/id/metropolitan-district-council/leeds,Leeds City Council,31/01/2016,Central & Corporate,Commercial Services Trading Services,Supplies and Services,Other Hired And Contracted Services,265,18-Jan-2016,1601-00476,0.00,2614.55,R,Alfred Bagnall & Sons (Leeds) Ltd,No
Http://opendatacommunities.org/id/metropolitan-district-council/leeds,Leeds City Council,31/01/2016,Central & Corporate,Commercial Services Trading Services,Supplies and Services,Other Hired And Contracted Services,265,18-Jan-2016,1601-00477,0.00,973.27,R,Alfred Bagnall & Sons (Leeds) Ltd,No
Http://opendatacommunities.org/id/metropolitan-district-council/leeds,Leeds City Council,31/01/2016,Adult Social Care,Services For Older People - 65 And Over,Supplies and Services,Operational Furniture And Equipment,203,27-Jan-2016,1601-00478,0.00,7050.00,R,Alfred Bagnall & Sons (Leeds) Ltd,No
Http://opendatacommunities.org/id/metropolitan-district-council/leeds,Leeds City Council,31/01/2016,Environment & Housing,Streetscene Environmental Services,Income,Penalties  Fines & Car Parking Charges,934,21-Jan-2016,1601-00479,0.00,2.20,R,REDACTED PERSONAL DATA,No
Http://opendatacommunities.org/id/metropolitan-district-council/leeds,Leeds City Council,31/01/2016,Childrens Services,Safeguarding Targeted & Specialist,Third Party Payments,Section 17,551,14-Jan-2016,1601-00480,0.00,53.90,R,REDACTED PERSONAL DATA,No
Http://opendatacommunities.org/id/metropolitan-district-council/leeds,Leeds City Council,31/01/2016,Childrens Services,Safeguarding Targeted & Specialist,Third Party Payments,Section 17,551,21-Jan-2016,1601-00481,0.00,53.90,R,REDACTED PERSONAL DATA,No
Http://opendatacommunities.org/id/metropolitan-district-council/leeds,Leeds City Council,31/01/2016,Childrens Services,Safeguarding Targeted & Specialist,Third Party Payments,Section 17,551,28-Jan-2016,1601-00482,0.00,53.90,R,REDACTED PERSONAL DATA,No
Http://opendatacommunities.org/id/metropolitan-district-council/leeds,Leeds City Council,31/01/2016,Childrens Services,Learning Skills & Universal,Third Party Payments,Services Rendered By Other Organisations,511,29-Jan-2016,1601-00483,0.00,640.20,R,Alison Brook,No
Http://opendatacommunities.org/id/metropolitan-district-council/leeds,Leeds City Council,31/01/2016,City Development,Libraries  Arts & Heritage,Supplies and Services,Bought In Professional Services,277,08-Jan-2016,1601-00484,0.00,3249.20,R,Alison Glew,No
Http://opendatacommunities.org/id/metropolitan-district-council/leeds,Leeds City Council,31/01/2016,City Development,Libraries  Arts & Heritage,Supplies and Services,Bought In Professional Services,277,15-Jan-2016,1601-00485,0.00,1200.00,R,Alison Glew,No
Http://opendatacommunities.org/id/metropolitan-district-council/leeds,Leeds City Council,31/01/2016,City Development,Planning & Sustainable Development,Support Services,Legal Disbursements,411,12-Jan-2016,1601-00486,0.00,180.00,R,Alison Ogley,No
Http://opendatacommunities.org/id/metropolitan-district-council/leeds,Leeds City Council,31/01/2016,Citizens and Communities,Benefits  Wlefare and Poverty,Supplies and Services,Grant Related Expenditure,298,29-Jan-2016,1601-00487,0.00,500.00,R,REDACTED PERSONAL DATA,No
Http://opendatacommunities.org/id/metropolitan-district-council/leeds,Leeds City Council,31/01/2016,Citizens and Communities,Benefits  Wlefare and Poverty,Supplies and Services,Grant Related Expenditure,298,29-Jan-2016,1601-00488,0.00,500.00,R,REDACTED PERSONAL DATA,No
Http://opendatacommunities.org/id/metropolitan-district-council/leeds,Leeds City Council,31/01/2016,Citizens and Communities,Benefits  Wlefare and Poverty,Supplies and Services,Grant Related Expenditure,298,20-Jan-2016,1601-00489,0.00,500.00,R,REDACTED PERSONAL DATA,No
Http://opendatacommunities.org/id/metropolitan-district-council/leeds,Leeds City Council,31/01/2016,Childrens Services,Safeguarding Targeted & Specialist,Transfer Payments,Leaving Care Allowances,634,18-Jan-2016,1601-00490,0.00,30.00,R,All Abode,No
Http://opendatacommunities.org/id/metropolitan-district-council/leeds,Leeds City Council,31/01/2016,Childrens Services,Safeguarding Targeted & Specialist,Transfer Payments,Leaving Care Allowances,634,18-Jan-2016,1601-00491,0.00,60.00,R,All Abode,No
Http://opendatacommunities.org/id/metropolitan-district-council/leeds,Leeds City Council,31/01/2016,City Development,Recreation,Employees,Training & Development,70,15-Jan-2016,1601-00492,0.00,395.00,R,All England Netball Association Ltd,No
Http://opendatacommunities.org/id/metropolitan-district-council/leeds,Leeds City Council,31/01/2016,Childrens Services,Safeguarding Targeted & Specialist,Supplies and Services,Conference Meetings,253,18-Jan-2016,1601-00493,0.00,37.50,R,All Saints Parish Church,No
Http://opendatacommunities.org/id/metropolitan-district-council/leeds,Leeds City Council,31/01/2016,Childrens Services,Learning Skills & Universal,Third Party Payments,Services Rendered By Other Organisations,511,11-Jan-2016,1601-00494,0.00,3201.00,R,All Stars Childcare,No
Http://opendatacommunities.org/id/metropolitan-district-council/leeds,Leeds City Council,31/01/2016,Childrens Services,Learning Skills & Universal,Third Party Payments,Services Rendered By Other Organisations,511,15-Jan-2016,1601-00495,0.00,9530.40,R,All Stars Childcare,No
Http://opendatacommunities.org/id/metropolitan-district-council/leeds,Leeds City Council,31/01/2016,Civic Enterprise Leeds,Facilities Management,Supplies and Services,Operational Furniture And Equipment,203,22-Jan-2016,1601-00496,0.00,150.00,R,Allansound Communications,No
Http://opendatacommunities.org/id/metropolitan-district-council/leeds,Leeds City Council,31/01/2016,Adult Social Care,Services For Older People - 65 And Over,Third Party Payments,Sheltered Accommodation,569,13-Jan-2016,1601-00497,0.00,4347.52,R,Allerton Avenue,No
Http://opendatacommunities.org/id/metropolitan-district-council/leeds,Leeds City Council as Accountable Body,31/01/2016,Social Services Pooled Budgets,Jcs For People With Learning Disabilitie,Third Party Payments,Sheltered Accommodation,569,13-Jan-2016,1601-00498,0.00,12248.52,R,Allerton Avenue,No
Http://opendatacommunities.org/id/metropolitan-district-council/leeds,Leeds City Council,31/01/2016,Central & Corporate,Finance,Supplies and Services,Bank Charges,263,04-Jan-2016,1601-00499,0.00,-131.59,R,Alliance & Leicester Commercial Bank,No
Http://opendatacommunities.org/id/metropolitan-district-council/leeds,Leeds City Council,31/01/2016,Strategic Landlord,Housing Management,Supplies and Services,Other Hired And Contracted Services,265,06-Jan-2016,1601-00500,0.00,282.45,R,Alliance & Leicester Commercial Bank,No
Http://opendatacommunities.org/id/metropolitan-district-council/leeds,Leeds City Council,31/01/2016,Central & Corporate,Finance,Supplies and Services,Bank Charges,263,06-Jan-2016,1601-00501,0.00,4.51,R,Alliance & Leicester Commercial Bank,No
Http://opendatacommunities.org/id/metropolitan-district-council/leeds,Leeds City Council,31/01/2016,Central & Corporate,Finance,Supplies and Services,Bank Charges,263,06-Jan-2016,1601-00502,0.00,332.12,R,Alliance & Leicester Commercial Bank,No
Http://opendatacommunities.org/id/metropolitan-district-council/leeds,Leeds City Council,31/01/2016,Central & Corporate,Finance,Supplies and Services,Bank Charges,263,06-Jan-2016,1601-00503,0.00,903.00,R,Alliance & Leicester Commercial Bank,No
Http://opendatacommunities.org/id/metropolitan-district-council/leeds,Leeds City Council,31/01/2016,Central & Corporate,Finance,Supplies and Services,Bank Charges,263,06-Jan-2016,1601-00504,0.00,100.14,R,Alliance & Leicester Commercial Bank,No
Http://opendatacommunities.org/id/metropolitan-district-council/leeds,Leeds City Council,31/01/2016,City Development,Highways,Supplies and Services,Other Hired And Contracted Services,265,20-Jan-2016,1601-00505,0.00,45.00,R,Allied Exploration & Geotechnics Ltd,No
Http://opendatacommunities.org/id/metropolitan-district-council/leeds,Leeds City Council,31/01/2016,City Development,Highways,Capital,Other Costs,7,20-Jan-2016,1601-00506,0.00,831.90,C,Allied Exploration & Geotechnics Ltd,No
Http://opendatacommunities.org/id/metropolitan-district-council/leeds,Leeds City Council,31/01/2016,City Development,Highways,Supplies and Services,Other Hired And Contracted Services,265,21-Jan-2016,1601-00507,0.00,20.00,R,Allied Exploration & Geotechnics Ltd,No
Http://opendatacommunities.org/id/metropolitan-district-council/leeds,Leeds City Council,31/01/2016,City Development,Highways,Supplies and Services,Other Hired And Contracted Services,265,21-Jan-2016,1601-00508,0.00,30.00,R,Allied Exploration & Geotechnics Ltd,No
Http://opendatacommunities.org/id/metropolitan-district-council/leeds,Leeds City Council,31/01/2016,City Development,Highways,Supplies and Services,Other Hired And Contracted Services,265,22-Jan-2016,1601-00509,0.00,1838.80,R,Allied Exploration & Geotechnics Ltd,No
Http://opendatacommunities.org/id/metropolitan-district-council/leeds,Leeds City Council,31/01/2016,City Development,Highways,Supplies and Services,Other Hired And Contracted Services,265,29-Jan-2016,1601-00510,0.00,10.00,R,Allied Exploration & Geotechnics Ltd,No
Http://opendatacommunities.org/id/metropolitan-district-council/leeds,Leeds City Council,31/01/2016,Childrens Services,Basic Need,Capital,Other Costs,7,29-Jan-2016,1601-00511,0.00,1954.30,C,Allied Exploration & Geotechnics Ltd,No
Http://opendatacommunities.org/id/metropolitan-district-council/leeds,Leeds City Council,31/01/2016,Adult Social Care,Services For Older People - 65 And Over,Third Party Payments,Home Care,568,07-Jan-2016,1601-00512,0.00,5046.04,R,Allied Healthcare,No
Http://opendatacommunities.org/id/metropolitan-district-council/leeds,Leeds City Council as Accountable Body,31/01/2016,Social Services Pooled Budgets,Jcs For People With Learning Disabilitie,Third Party Payments,Home Care,568,13-Jan-2016,1601-00513,0.00,734.43,R,Allied Healthcare,No
Http://opendatacommunities.org/id/metropolitan-district-council/leeds,Leeds City Council,31/01/2016,Childrens Services,Safeguarding Targeted & Specialist,Third Party Payments,Services Rendered By Voluntary Sector,505,13-Jan-2016,1601-00514,0.00,1012.24,R,Allied Healthcare,No
Http://opendatacommunities.org/id/metropolitan-district-council/leeds,Leeds City Council,31/01/2016,Adult Social Care,Services For Older People - 65 And Over,Third Party Payments,Home Care,568,15-Jan-2016,1601-00515,0.00,7623.18,R,Allied Healthcare,No
Http://opendatacommunities.org/id/metropolitan-district-council/leeds,Leeds City Council,31/01/2016,Adult Social Care,Services For Older People Under 65 P/Dis,Third Party Payments,Home Care,568,15-Jan-2016,1601-00516,0.00,1067.83,R,Allied Healthcare,No
Http://opendatacommunities.org/id/metropolitan-district-council/leeds,Leeds City Council as Accountable Body,31/01/2016,Social Services Pooled Budgets,Jcs For People With Learning Disabilitie,Third Party Payments,Home Care,568,15-Jan-2016,1601-00517,0.00,502.00,R,Allied Healthcare,No
Http://opendatacommunities.org/id/metropolitan-district-council/leeds,Leeds City Council as Accountable Body,31/01/2016,Social Services Pooled Budgets,Jcs For People With Learning Disabilitie,Third Party Payments,Home Care,568,15-Jan-2016,1601-00518,0.00,502.00,R,Allied Healthcare,No
Http://opendatacommunities.org/id/metropolitan-district-council/leeds,Leeds City Council as Accountable Body,31/01/2016,Social Services Pooled Budgets,Jcs For People With Learning Disabilitie,Third Party Payments,Home Care,568,15-Jan-2016,1601-00519,0.00,502.00,R,Allied Healthcare,No
Http://opendatacommunities.org/id/metropolitan-district-council/leeds,Leeds City Council as Accountable Body,31/01/2016,Social Services Pooled Budgets,Jcs For People With Learning Disabilitie,Third Party Payments,Home Care,568,15-Jan-2016,1601-00520,0.00,502.00,R,Allied Healthcare,No
Http://opendatacommunities.org/id/metropolitan-district-council/leeds,Leeds City Council as Accountable Body,31/01/2016,Social Services Pooled Budgets,Jcs For People With Learning Disabilitie,Third Party Payments,Home Care,568,15-Jan-2016,1601-00521,0.00,502.00,R,Allied Healthcare,No
Http://opendatacommunities.org/id/metropolitan-district-council/leeds,Leeds City Council as Accountable Body,31/01/2016,Social Services Pooled Budgets,Jcs For People With Learning Disabilitie,Third Party Payments,Home Care,568,15-Jan-2016,1601-00522,0.00,502.00,R,Allied Healthcare,No
Http://opendatacommunities.org/id/metropolitan-district-council/leeds,Leeds City Council as Accountable Body,31/01/2016,Social Services Pooled Budgets,Jcs For People With Learning Disabilitie,Third Party Payments,Home Care,568,15-Jan-2016,1601-00523,0.00,502.00,R,Allied Healthcare,No
Http://opendatacommunities.org/id/metropolitan-district-council/leeds,Leeds City Council as Accountable Body,31/01/2016,Social Services Pooled Budgets,Jcs For People With Learning Disabilitie,Third Party Payments,Home Care,568,15-Jan-2016,1601-00524,0.00,502.00,R,Allied Healthcare,No
Http://opendatacommunities.org/id/metropolitan-district-council/leeds,Leeds City Council as Accountable Body,31/01/2016,Social Services Pooled Budgets,Jcs For People With Learning Disabilitie,Third Party Payments,Home Care,568,15-Jan-2016,1601-00525,0.00,502.00,R,Allied Healthcare,No
Http://opendatacommunities.org/id/metropolitan-district-council/leeds,Leeds City Council as Accountable Body,31/01/2016,Social Services Pooled Budgets,Jcs For People With Learning Disabilitie,Third Party Payments,Home Care,568,15-Jan-2016,1601-00526,0.00,502.00,R,Allied Healthcare,No
Http://opendatacommunities.org/id/metropolitan-district-council/leeds,Leeds City Council as Accountable Body,31/01/2016,Social Services Pooled Budgets,Jcs For People With Learning Disabilitie,Third Party Payments,Home Care,568,18-Jan-2016,1601-00527,0.00,605.63,R,Allied Healthcare,No
Http://opendatacommunities.org/id/metropolitan-district-council/leeds,Leeds City Council,31/01/2016,Adult Social Care,Services For Older People - 65 And Over,Third Party Payments,Home Care,568,20-Jan-2016,1601-00528,0.00,153.03,R,Allied Healthcare,No
Http://opendatacommunities.org/id/metropolitan-district-council/leeds,Leeds City Council,31/01/2016,Adult Social Care,Services For Older People Under 65 P/Dis,Third Party Payments,Home Care,568,20-Jan-2016,1601-00529,0.00,1033.28,R,Allied Healthcare,No
Http://opendatacommunities.org/id/metropolitan-district-council/leeds,Leeds City Council,31/01/2016,Childrens Services,Safeguarding Targeted & Specialist,Third Party Payments,Services Rendered By Voluntary Sector,505,20-Jan-2016,1601-00530,0.00,966.50,R,Allied Healthcare,No
Http://opendatacommunities.org/id/metropolitan-district-council/leeds,Leeds City Council,31/01/2016,Childrens Services,Safeguarding Targeted & Specialist,Third Party Payments,Services Rendered By Voluntary Sector,505,21-Jan-2016,1601-00531,0.00,755.23,R,Allied Healthcare,No
Http://opendatacommunities.org/id/metropolitan-district-council/leeds,Leeds City Council,31/01/2016,Childrens Services,Safeguarding Targeted & Specialist,Third Party Payments,Services Rendered By Voluntary Sector,505,21-Jan-2016,1601-00532,0.00,862.16,R,Allied Healthcare,No
Http://opendatacommunities.org/id/metropolitan-district-council/leeds,Leeds City Council,31/01/2016,Childrens Services,Safeguarding Targeted & Specialist,Third Party Payments,Services Rendered By Voluntary Sector,505,21-Jan-2016,1601-00533,0.00,563.28,R,Allied Healthcare,No
Http://opendatacommunities.org/id/metropolitan-district-council/leeds,Leeds City Council as Accountable Body,31/01/2016,Social Services Pooled Budgets,Jcs For People With Learning Disabilitie,Third Party Payments,Home Care,568,21-Jan-2016,1601-00534,0.00,65.88,R,Allied Healthcare,No
Http://opendatacommunities.org/id/metropolitan-district-council/leeds,Leeds City Council as Accountable Body,31/01/2016,Social Services Pooled Budgets,Jcs For People With Learning Disabilitie,Third Party Payments,Home Care,568,21-Jan-2016,1601-00535,0.00,14689.78,R,Allied Healthcare,No
Http://opendatacommunities.org/id/metropolitan-district-council/leeds,Leeds City Council as Accountable Body,31/01/2016,Social Services Pooled Budgets,Jcs For People With Learning Disabilitie,Third Party Payments,Home Care,568,26-Jan-2016,1601-00536,0.00,3782.23,R,Allied Healthcare,No
Http://opendatacommunities.org/id/metropolitan-district-council/leeds,Leeds City Council as Accountable Body,31/01/2016,Social Services Pooled Budgets,Jcs For People With Learning Disabilitie,Third Party Payments,Home Care,568,26-Jan-2016,1601-00537,0.00,3783.24,R,Allied Healthcare,No
Http://opendatacommunities.org/id/metropolitan-district-council/leeds,Leeds City Council as Accountable Body,31/01/2016,Social Services Pooled Budgets,Jcs For People With Learning Disabilitie,Third Party Payments,Home Care,568,26-Jan-2016,1601-00538,0.00,691.69,R,Allied Healthcare,No
Http://opendatacommunities.org/id/metropolitan-district-council/leeds,Leeds City Council as Accountable Body,31/01/2016,Social Services Pooled Budgets,Jcs For People With Learning Disabilitie,Third Party Payments,Home Care,568,26-Jan-2016,1601-00539,0.00,3750.80,R,Allied Healthcare,No
Http://opendatacommunities.org/id/metropolitan-district-council/leeds,Leeds City Council as Accountable Body,31/01/2016,Social Services Pooled Budgets,Jcs For People With Learning Disabilitie,Third Party Payments,Home Care,568,26-Jan-2016,1601-00540,0.00,564.75,R,Allied Healthcare,No
Http://opendatacommunities.org/id/metropolitan-district-council/leeds,Leeds City Council as Accountable Body,31/01/2016,Social Services Pooled Budgets,Jcs For People With Learning Disabilitie,Third Party Payments,Home Care,568,26-Jan-2016,1601-00541,0.00,3783.24,R,Allied Healthcare,No
Http://opendatacommunities.org/id/metropolitan-district-council/leeds,Leeds City Council as Accountable Body,31/01/2016,Social Services Pooled Budgets,Jcs For People With Learning Disabilitie,Third Party Payments,Home Care,568,26-Jan-2016,1601-00542,0.00,3815.68,R,Allied Healthcare,No
Http://opendatacommunities.org/id/metropolitan-district-council/leeds,Leeds City Council as Accountable Body,31/01/2016,Social Services Pooled Budgets,Jcs For People With Learning Disabilitie,Third Party Payments,Home Care,568,28-Jan-2016,1601-00543,0.00,1012.86,R,Allied Healthcare,No
Http://opendatacommunities.org/id/metropolitan-district-council/leeds,Leeds City Council as Accountable Body,31/01/2016,Social Services Pooled Budgets,Jcs For People With Learning Disabilitie,Third Party Payments,Home Care,568,28-Jan-2016,1601-00544,0.00,1088.80,R,Allied Healthcare,No
Http://opendatacommunities.org/id/metropolitan-district-council/leeds,Leeds City Council as Accountable Body,31/01/2016,Social Services Pooled Budgets,Jcs For People With Learning Disabilitie,Third Party Payments,Home Care,568,28-Jan-2016,1601-00545,0.00,211.28,R,Allied Healthcare,No
Http://opendatacommunities.org/id/metropolitan-district-council/leeds,Leeds City Council,31/01/2016,Public Health,Public Health,Third Party Payments,Public Health Commissioned Services,526,14-Jan-2016,1601-00546,0.00,168.04,R,Allied Pharmacy Ltd,No
Http://opendatacommunities.org/id/metropolitan-district-council/leeds,Leeds City Council,31/01/2016,Central & Corporate,Democratic Services,Transport,Fuel (Non LCC Supplies),321,07-Jan-2016,1601-00547,0.00,191.57,R,Allstar Business Solutions Ltd,No
Http://opendatacommunities.org/id/metropolitan-district-council/leeds,Leeds City Council,31/01/2016,Childrens Services,Learning Skills & Universal,Transport,Fuel (Non LCC Supplies),321,07-Jan-2016,1601-00548,0.00,1968.95,R,Allstar Business Solutions Ltd,No
Http://opendatacommunities.org/id/metropolitan-district-council/leeds,Leeds City Council,31/01/2016,Environment & Housing,Parks and Countryside,Transport,Fuel (Non LCC Supplies),321,07-Jan-2016,1601-00549,0.00,27.28,R,Allstar Business Solutions Ltd,No
Http://opendatacommunities.org/id/metropolitan-district-council/leeds,Leeds City Council,31/01/2016,City Development,Highways,Transport,Fuel (Non LCC Supplies),321,07-Jan-2016,1601-00550,0.00,634.44,R,Allstar Business Solutions Ltd,No
Http://opendatacommunities.org/id/metropolitan-district-council/leeds,Leeds City Council,31/01/2016,Environment & Housing,Waste Management,Transport,Fuel (Non LCC Supplies),321,07-Jan-2016,1601-00551,0.00,5.20,R,Allstar Business Solutions Ltd,No
Http://opendatacommunities.org/id/metropolitan-district-council/leeds,Leeds City Council,31/01/2016,Central & Corporate,Commercial Services Trading Services,Transport,Fuel (Non LCC Supplies),321,28-Jan-2016,1601-00552,0.00,28.37,R,Allstar Business Solutions Ltd,No
Http://opendatacommunities.org/id/metropolitan-district-council/leeds,Leeds City Council,31/01/2016,Environment & Housing,SP Contracts & SECC,Third Party Payments,Supporting Ppl - Block Gross Chargeable,514,21-Jan-2016,1601-00553,0.00,60.19,R,Alpha (Rsl) Limited,No
Http://opendatacommunities.org/id/metropolitan-district-council/leeds,Leeds City Council,31/01/2016,Childrens Services,Safeguarding Targeted & Specialist,Support Services,Legal Disbursements,411,12-Jan-2016,1601-00554,0.00,69.38,R,Alpha Biolaboratories Limited,No
Http://opendatacommunities.org/id/metropolitan-district-council/leeds,Leeds City Council,31/01/2016,Childrens Services,Safeguarding Targeted & Specialist,Support Services,Legal Disbursements,411,12-Jan-2016,1601-00555,0.00,69.38,R,Alpha Biolaboratories Limited,No
Http://opendatacommunities.org/id/metropolitan-district-council/leeds,Leeds City Council,31/01/2016,Childrens Services,Safeguarding Targeted & Specialist,Support Services,Legal Disbursements,411,12-Jan-2016,1601-00556,0.00,181.67,R,Alpha Biolaboratories Limited,No
Http://opendatacommunities.org/id/metropolitan-district-council/leeds,Leeds City Council,31/01/2016,Childrens Services,Safeguarding Targeted & Specialist,Support Services,Legal Disbursements,411,12-Jan-2016,1601-00557,0.00,720.00,R,Alpha Biolaboratories Limited,No
Http://opendatacommunities.org/id/metropolitan-district-council/leeds,Leeds City Council,31/01/2016,Childrens Services,Safeguarding Targeted & Specialist,Support Services,Legal Disbursements,411,14-Jan-2016,1601-00558,0.00,146.67,R,Alpha Biolaboratories Limited,No
Http://opendatacommunities.org/id/metropolitan-district-council/leeds,Leeds City Council,31/01/2016,Childrens Services,Safeguarding Targeted & Specialist,Support Services,Legal Disbursements,411,14-Jan-2016,1601-00559,0.00,110.00,R,Alpha Biolaboratories Limited,No
Http://opendatacommunities.org/id/metropolitan-district-council/leeds,Leeds City Council,31/01/2016,Childrens Services,Safeguarding Targeted & Specialist,Support Services,Legal Disbursements,411,15-Jan-2016,1601-00560,0.00,382.50,R,Alpha Biolaboratories Limited,No
Http://opendatacommunities.org/id/metropolitan-district-council/leeds,Leeds City Council,31/01/2016,Childrens Services,Safeguarding Targeted & Specialist,Support Services,Legal Disbursements,411,20-Jan-2016,1601-00561,0.00,170.00,R,Alpha Biolaboratories Limited,No
Http://opendatacommunities.org/id/metropolitan-district-council/leeds,Leeds City Council,31/01/2016,Childrens Services,Safeguarding Targeted & Specialist,Support Services,Legal Disbursements,411,21-Jan-2016,1601-00562,0.00,97.50,R,Alpha Biolaboratories Limited,No
Http://opendatacommunities.org/id/metropolitan-district-council/leeds,Leeds City Council,31/01/2016,Childrens Services,Safeguarding Targeted & Specialist,Support Services,Legal Disbursements,411,21-Jan-2016,1601-00563,0.00,445.00,R,Alpha Biolaboratories Limited,No
Http://opendatacommunities.org/id/metropolitan-district-council/leeds,Leeds City Council,31/01/2016,Childrens Services,Safeguarding Targeted & Specialist,Support Services,Legal Disbursements,411,21-Jan-2016,1601-00564,0.00,136.25,R,Alpha Biolaboratories Limited,No
Http://opendatacommunities.org/id/metropolitan-district-council/leeds,Leeds City Council,31/01/2016,Childrens Services,Safeguarding Targeted & Specialist,Support Services,Legal Disbursements,411,21-Jan-2016,1601-00565,0.00,97.50,R,Alpha Biolaboratories Limited,No
Http://opendatacommunities.org/id/metropolitan-district-council/leeds,Leeds City Council,31/01/2016,Childrens Services,Safeguarding Targeted & Specialist,Support Services,Legal Disbursements,411,28-Jan-2016,1601-00566,0.00,570.00,R,Alpha Biolaboratories Limited,No
Http://opendatacommunities.org/id/metropolitan-district-council/leeds,Leeds City Council,31/01/2016,Childrens Services,Safeguarding Targeted & Specialist,Support Services,Legal Disbursements,411,29-Jan-2016,1601-00567,0.00,180.00,R,Alpha Biolaboratories Limited,No
Http://opendatacommunities.org/id/metropolitan-district-council/leeds,Leeds City Council,31/01/2016,Childrens Services,Safeguarding Targeted & Specialist,Support Services,Legal Disbursements,411,29-Jan-2016,1601-00568,0.00,65.00,R,Alpha Biolaboratories Limited,No
Http://opendatacommunities.org/id/metropolitan-district-council/leeds,Leeds City Council,31/01/2016,Childrens Services,Safeguarding Targeted & Specialist,Third Party Payments,Placement Support,550,08-Jan-2016,1601-00569,0.00,15.00,R,Alpha Hospitals Sheffield Patient Acc,No
Http://opendatacommunities.org/id/metropolitan-district-council/leeds,Leeds City Council,31/01/2016,Childrens Services,Safeguarding Targeted & Specialist,Third Party Payments,Placement Support,550,15-Jan-2016,1601-00570,0.00,15.00,R,Alpha Hospitals Sheffield Patient Acc,No
Http://opendatacommunities.org/id/metropolitan-district-council/leeds,Leeds City Council,31/01/2016,Childrens Services,Safeguarding Targeted & Specialist,Third Party Payments,Placement Support,550,22-Jan-2016,1601-00571,0.00,15.00,R,Alpha Hospitals Sheffield Patient Acc,No
Http://opendatacommunities.org/id/metropolitan-district-council/leeds,Leeds City Council,31/01/2016,Childrens Services,Safeguarding Targeted & Specialist,Third Party Payments,Placement Support,550,29-Jan-2016,1601-00572,0.00,35.00,R,Alpha Hospitals Sheffield Patient Acc,No
Http://opendatacommunities.org/id/metropolitan-district-council/leeds,Leeds City Council,31/01/2016,Adult Social Care,Services For Older People - 65 And Over,Third Party Payments,Nursing Home,570,13-Jan-2016,1601-00573,0.00,2841.45,R,Alwoodley Nursing Home,No
Http://opendatacommunities.org/id/metropolitan-district-council/leeds,Leeds City Council,31/01/2016,Citizens and Communities,Benefits  Wlefare and Poverty,Supplies and Services,Grant Related Expenditure,298,29-Jan-2016,1601-00574,0.00,500.00,R,REDACTED PERSONAL DATA,No
Http://opendatacommunities.org/id/metropolitan-district-council/leeds,Leeds City Council,31/01/2016,Citizens and Communities,Benefits  Wlefare and Poverty,Supplies and Services,Grant Related Expenditure,298,12-Jan-2016,1601-00575,0.00,500.00,R,REDACTED PERSONAL DATA,No
Http://opendatacommunities.org/id/metropolitan-district-council/leeds,Leeds City Council,31/01/2016,City Development,Highways,Income,Penalties  Fines & Car Parking Charges,934,07-Jan-2016,1601-00576,0.00,120.00,R,Amalgamated Construction,No
Http://opendatacommunities.org/id/metropolitan-district-council/leeds,Leeds City Council,31/01/2016,Childrens Services,Partnership Development & Leadership,Employees,Training & Development,70,28-Jan-2016,1601-00577,0.00,1322.20,R,REDACTED PERSONAL DATA,No
Http://opendatacommunities.org/id/metropolitan-district-council/leeds,Leeds City Council,31/01/2016,Childrens Services,Learning Skills & Universal,Third Party Payments,Services Rendered By Other Organisations,511,15-Jan-2016,1601-00578,0.00,1094.40,R,REDACTED PERSONAL DATA,No
Http://opendatacommunities.org/id/metropolitan-district-council/leeds,Leeds City Council,31/01/2016,Insurance,Insurance,Supplies and Services,Insurance Claims,248,13-Jan-2016,1601-00579,0.00,360.00,R,Amanda Cunliffe Solicitors,No
Http://opendatacommunities.org/id/metropolitan-district-council/leeds,Leeds City Council,31/01/2016,City Development,Libraries  Arts & Heritage,Transport,Public Transport Expenses,310,08-Jan-2016,1601-00580,0.00,125.00,R,Amanda Duke,No
Http://opendatacommunities.org/id/metropolitan-district-council/leeds,Leeds City Council,31/01/2016,Childrens Services,Safeguarding Targeted & Specialist,Third Party Payments,Section 17,551,19-Jan-2016,1601-00581,0.00,338.00,R,REDACTED PERSONAL DATA,No
Http://opendatacommunities.org/id/metropolitan-district-council/leeds,Leeds City Council,31/01/2016,City Development,Recreation,Income,Swimming Bath Charges,923,15-Jan-2016,1601-00582,0.00,208.92,R,REDACTED PERSONAL DATA,No
Http://opendatacommunities.org/id/metropolitan-district-council/leeds,Leeds City Council,31/01/2016,Childrens Services,Learning Skills & Universal,Third Party Payments,Services Rendered By Other Organisations,511,08-Jan-2016,1601-00583,0.00,640.20,R,Amanda Wharton,No
Http://opendatacommunities.org/id/metropolitan-district-council/leeds,Leeds City Council,31/01/2016,Childrens Services,Learning Skills & Universal,Third Party Payments,Services Rendered By Other Organisations,511,15-Jan-2016,1601-00584,0.00,501.60,R,Amanda Wharton,No
Http://opendatacommunities.org/id/metropolitan-district-council/leeds,Leeds City Council,31/01/2016,Childrens Services,Learning Skills & Universal,Third Party Payments,Services Rendered By Other Organisations,511,15-Jan-2016,1601-00585,0.00,5379.45,R,Amazing Grace Early Years Childcare,No
Http://opendatacommunities.org/id/metropolitan-district-council/leeds,Leeds City Council,31/01/2016,City Development,Recreation,Supplies and Services,Operational Furniture And Equipment,203,13-Jan-2016,1601-00586,0.00,202.07,R,Amazon Leisure Uk Ltd,No
Http://opendatacommunities.org/id/metropolitan-district-council/leeds,Leeds City Council,31/01/2016,City Development,Recreation,Supplies and Services,Operational Furniture And Equipment,203,18-Jan-2016,1601-00587,0.00,32.58,R,Amazon Leisure Uk Ltd,No
Http://opendatacommunities.org/id/metropolitan-district-council/leeds,Leeds City Council,31/01/2016,City Development,Recreation,Supplies and Services,Operational Furniture And Equipment,203,18-Jan-2016,1601-00588,0.00,283.54,R,Amazon Leisure Uk Ltd,No
Http://opendatacommunities.org/id/metropolitan-district-council/leeds,Leeds City Council,31/01/2016,City Development,Recreation,Supplies and Services,Operational Furniture And Equipment,203,19-Jan-2016,1601-00589,0.00,439.22,R,Amazon Leisure Uk Ltd,No
Http://opendatacommunities.org/id/metropolitan-district-council/leeds,Leeds City Council,31/01/2016,City Development,Recreation,Supplies and Services,Operational Furniture And Equipment,203,22-Jan-2016,1601-00590,0.00,305.88,R,Amazon Leisure Uk Ltd,No
Http://opendatacommunities.org/id/metropolitan-district-council/leeds,Leeds City Council,31/01/2016,City Development,Recreation,Supplies and Services,Operational Furniture And Equipment,203,22-Jan-2016,1601-00591,0.00,105.00,R,Amazon Leisure Uk Ltd,No
Http://opendatacommunities.org/id/metropolitan-district-council/leeds,Leeds City Council,31/01/2016,City Development,Recreation,Supplies and Services,Operational Furniture And Equipment,203,27-Jan-2016,1601-00592,0.00,61.46,R,Amazon Leisure Uk Ltd,No
Http://opendatacommunities.org/id/metropolitan-district-council/leeds,Leeds City Council,31/01/2016,City Development,Recreation,Supplies and Services,Operational Furniture And Equipment,203,29-Jan-2016,1601-00593,0.00,222.25,R,Amazon Leisure Uk Ltd,No
Http://opendatacommunities.org/id/metropolitan-district-council/leeds,Leeds City Council,31/01/2016,City Development,Recreation,Supplies and Services,Operational Furniture And Equipment,203,29-Jan-2016,1601-00594,0.00,19.59,R,Amazon Leisure Uk Ltd,No
Http://opendatacommunities.org/id/metropolitan-district-council/leeds,Leeds City Council,31/01/2016,City Development,Recreation,Supplies and Services,Operational Furniture And Equipment,203,29-Jan-2016,1601-00595,0.00,540.14,R,Amazon Leisure Uk Ltd,No
Http://opendatacommunities.org/id/metropolitan-district-council/leeds,Leeds City Council,31/01/2016,City Development,Support Services ,Supplies and Services,Other Hired And Contracted Services,265,12-Dec-2015,1601-00596,0.00,79.00,R,Amazon Prime,Yes
Http://opendatacommunities.org/id/metropolitan-district-council/leeds,Leeds City Council,31/01/2016,City Development,Support Services ,Supplies and Services,Other Hired And Contracted Services,265,15-Dec-2015,1601-00597,0.00,-79.00,R,Amazon Prime,Yes
Http://opendatacommunities.org/id/metropolitan-district-council/leeds,Leeds City Council,31/01/2016,Childrens Services,Safeguarding Targeted & Specialist ,Supplies and Services,Books & Audio-Visual Materials,206,01-Dec-2015,1601-00598,0.00,15.20,R,Amazon Svcs Europe sar,Yes
Http://opendatacommunities.org/id/metropolitan-district-council/leeds,Leeds City Council,31/01/2016,City Development,Recreation ,Supplies and Services,Clothing & Uniforms,241,09-Dec-2015,1601-00599,0.00,37.07,R,Amazon Svcs Europe sar,Yes
Http://opendatacommunities.org/id/metropolitan-district-council/leeds,Leeds City Council,31/01/2016,City Development,Libraries  Arts & Heritage ,Supplies and Services,Operational Materials,205,09-Dec-2015,1601-00600,0.00,5.80,R,Amazon Svcs Europe sar,Yes
Http://opendatacommunities.org/id/metropolitan-district-council/leeds,Leeds City Council,31/01/2016,Central & Corporate,Pppu And Procurement ,Supplies and Services,Office Consumables,210,10-Dec-2015,1601-00601,0.00,2.49,R,Amazon Svcs Europe sar,Yes
Http://opendatacommunities.org/id/metropolitan-district-council/leeds,Leeds City Council,31/01/2016,City Development,Libraries  Arts & Heritage ,Supplies and Services,Operational Materials,205,10-Dec-2015,1601-00602,0.00,8.89,R,Amazon Svcs Europe sar,Yes
Http://opendatacommunities.org/id/metropolitan-district-council/leeds,Leeds City Council,31/01/2016,City Development,Recreation ,Supplies and Services,Books & Audio-Visual Materials,206,10-Dec-2015,1601-00603,0.00,60.82,R,Amazon Svcs Europe sar,Yes
Http://opendatacommunities.org/id/metropolitan-district-council/leeds,Leeds City Council,31/01/2016,City Development,Libraries  Arts & Heritage ,Supplies and Services,Operational Materials,205,10-Dec-2015,1601-00604,0.00,18.46,R,Amazon Svcs Europe sar,Yes
Http://opendatacommunities.org/id/metropolitan-district-council/leeds,Leeds City Council,31/01/2016,City Development,Libraries  Arts & Heritage ,Supplies and Services,Teaching Materials,202,15-Dec-2015,1601-00605,0.00,23.84,R,Amazon Svcs Europe sar,Yes
Http://opendatacommunities.org/id/metropolitan-district-council/leeds,Leeds City Council,31/01/2016,City Development,Libraries  Arts & Heritage ,Supplies and Services,Operational Materials,205,15-Dec-2015,1601-00606,0.00,-8.89,R,Amazon Svcs Europe sar,Yes
Http://opendatacommunities.org/id/metropolitan-district-council/leeds,Leeds City Council,31/01/2016,Central & Corporate,Democratic Services ,Supplies and Services,Office Consumables,210,18-Dec-2015,1601-00607,0.00,1.01,R,Amazon Svcs Europe sar,Yes
Http://opendatacommunities.org/id/metropolitan-district-council/leeds,Leeds City Council,31/01/2016,City Development,Libraries  Arts & Heritage ,Supplies and Services,Teaching Materials,202,30-Nov-2015,1601-00608,0.00,13.98,R,Amazon UK Marketplace,Yes
Http://opendatacommunities.org/id/metropolitan-district-council/leeds,Leeds City Council,31/01/2016,Childrens Services,Safeguarding Targeted & Specialist ,Supplies and Services,Teaching Materials,202,30-Nov-2015,1601-00609,0.00,15.69,R,Amazon UK Marketplace,Yes
Http://opendatacommunities.org/id/metropolitan-district-council/leeds,Leeds City Council,31/01/2016,City Development,Libraries  Arts & Heritage ,Supplies and Services,Operational Materials,205,30-Nov-2015,1601-00610,0.00,3.90,R,Amazon UK Marketplace,Yes
Http://opendatacommunities.org/id/metropolitan-district-council/leeds,Leeds City Council,31/01/2016,City Development,Support Services ,Supplies and Services,Computer Software & Equipment,214,30-Nov-2015,1601-00611,0.00,75.58,R,Amazon UK Marketplace,Yes
Http://opendatacommunities.org/id/metropolitan-district-council/leeds,Leeds City Council,31/01/2016,City Development,Libraries  Arts & Heritage ,Supplies and Services,Operational Materials,205,30-Nov-2015,1601-00612,0.00,27.22,R,Amazon UK Marketplace,Yes
Http://opendatacommunities.org/id/metropolitan-district-council/leeds,Leeds City Council,31/01/2016,City Development,Libraries  Arts & Heritage ,Supplies and Services,Operational Materials,205,30-Nov-2015,1601-00613,0.00,6.05,R,Amazon UK Marketplace,Yes
Http://opendatacommunities.org/id/metropolitan-district-council/leeds,Leeds City Council,31/01/2016,City Development,Libraries  Arts & Heritage ,Supplies and Services,Teaching Materials,202,01-Dec-2015,1601-00614,0.00,10.50,R,Amazon UK Marketplace,Yes
Http://opendatacommunities.org/id/metropolitan-district-council/leeds,Leeds City Council,31/01/2016,City Development,Libraries  Arts & Heritage ,Supplies and Services,Operational Materials,205,01-Dec-2015,1601-00615,0.00,8.98,R,Amazon UK Marketplace,Yes
Http://opendatacommunities.org/id/metropolitan-district-council/leeds,Leeds City Council,31/01/2016,Central & Corporate,Strategy And Improvement ,Supplies and Services,Office Consumables,210,01-Dec-2015,1601-00616,0.00,23.50,R,Amazon UK Marketplace,Yes
Http://opendatacommunities.org/id/metropolitan-district-council/leeds,Leeds City Council,31/01/2016,Citizens And Communities,Benefits  Wlefare And Poverty ,Supplies and Services,Books & Audio-Visual Materials,206,01-Dec-2015,1601-00617,0.00,57.07,R,Amazon UK Marketplace,Yes
Http://opendatacommunities.org/id/metropolitan-district-council/leeds,Leeds City Council,31/01/2016,City Development,Libraries  Arts & Heritage ,Supplies and Services,Operational Materials,205,01-Dec-2015,1601-00618,0.00,2.88,R,Amazon UK Marketplace,Yes
Http://opendatacommunities.org/id/metropolitan-district-council/leeds,Leeds City Council,31/01/2016,City Development,Economic Development ,Supplies and Services,Operational Furniture And Equipment,203,01-Dec-2015,1601-00619,0.00,-60.31,R,Amazon UK Marketplace,Yes
Http://opendatacommunities.org/id/metropolitan-district-council/leeds,Leeds City Council,31/01/2016,City Development,Economic Development ,Supplies and Services,Operational Furniture And Equipment,203,01-Dec-2015,1601-00620,0.00,-1.98,R,Amazon UK Marketplace,Yes
Http://opendatacommunities.org/id/metropolitan-district-council/leeds,Leeds City Council,31/01/2016,Central & Corporate,Pppu And Procurement ,Supplies and Services,Office Consumables,210,01-Dec-2015,1601-00621,0.00,2.90,R,Amazon UK Marketplace,Yes
Http://opendatacommunities.org/id/metropolitan-district-council/leeds,Leeds City Council,31/01/2016,City Development,Economic Development ,Supplies and Services,Operational Furniture And Equipment,203,01-Dec-2015,1601-00622,0.00,-1.98,R,Amazon UK Marketplace,Yes
Http://opendatacommunities.org/id/metropolitan-district-council/leeds,Leeds City Council,31/01/2016,City Development,Economic Development ,Supplies and Services,Operational Furniture And Equipment,203,01-Dec-2015,1601-00623,0.00,-60.32,R,Amazon UK Marketplace,Yes
Http://opendatacommunities.org/id/metropolitan-district-council/leeds,Leeds City Council,31/01/2016,Childrens Services,Safeguarding Targeted & Specialist ,Premises,Furniture And Fittings,195,02-Dec-2015,1601-00624,0.00,61.81,R,Amazon UK Marketplace,Yes
Http://opendatacommunities.org/id/metropolitan-district-council/leeds,Leeds City Council,31/01/2016,Central & Corporate,Technology ,Supplies and Services,Computer Software & Equipment,214,02-Dec-2015,1601-00625,0.00,1099.00,R,Amazon UK Marketplace,Yes
Http://opendatacommunities.org/id/metropolitan-district-council/leeds,Leeds City Council,31/01/2016,City Development,Libraries  Arts & Heritage ,Supplies and Services,Operational Materials,205,02-Dec-2015,1601-00626,0.00,1.18,R,Amazon UK Marketplace,Yes
Http://opendatacommunities.org/id/metropolitan-district-council/leeds,Leeds City Council,31/01/2016,Civic Enterprise Leeds,Facilities Management ,Supplies and Services,Office Furniture & Equipment,201,02-Dec-2015,1601-00627,0.00,19.16,R,Amazon UK Marketplace,Yes
Http://opendatacommunities.org/id/metropolitan-district-council/leeds,Leeds City Council,31/01/2016,City Development,Libraries  Arts & Heritage ,Supplies and Services,Operational Materials,205,02-Dec-2015,1601-00628,0.00,5.70,R,Amazon UK Marketplace,Yes
Http://opendatacommunities.org/id/metropolitan-district-council/leeds,Leeds City Council,31/01/2016,Childrens Services,Safeguarding Targeted & Specialist ,Premises,Furniture And Fittings,195,02-Dec-2015,1601-00629,0.00,61.56,R,Amazon UK Marketplace,Yes
Http://opendatacommunities.org/id/metropolitan-district-council/leeds,Leeds City Council,31/01/2016,City Development,Libraries  Arts & Heritage ,Supplies and Services,Operational Materials,205,02-Dec-2015,1601-00630,0.00,9.99,R,Amazon UK Marketplace,Yes
Http://opendatacommunities.org/id/metropolitan-district-council/leeds,Leeds City Council,31/01/2016,City Development,Libraries  Arts & Heritage ,Supplies and Services,Operational Materials,205,02-Dec-2015,1601-00631,0.00,5.96,R,Amazon UK Marketplace,Yes
Http://opendatacommunities.org/id/metropolitan-district-council/leeds,Leeds City Council,31/01/2016,City Development,Libraries  Arts & Heritage ,Supplies and Services,Operational Materials,205,02-Dec-2015,1601-00632,0.00,9.20,R,Amazon UK Marketplace,Yes
Http://opendatacommunities.org/id/metropolitan-district-council/leeds,Leeds City Council,31/01/2016,Childrens Services,Safeguarding Targeted & Specialist ,Supplies and Services,Office Consumables,210,03-Dec-2015,1601-00633,0.00,19.95,R,Amazon UK Marketplace,Yes
Http://opendatacommunities.org/id/metropolitan-district-council/leeds,Leeds City Council,31/01/2016,City Development,Libraries  Arts & Heritage ,Supplies and Services,Operational Materials,205,03-Dec-2015,1601-00634,0.00,26.32,R,Amazon UK Marketplace,Yes
Http://opendatacommunities.org/id/metropolitan-district-council/leeds,Leeds City Council,31/01/2016,Childrens Services,Safeguarding Targeted & Specialist ,Supplies and Services,General Amenity For Clients/Residents,285,04-Dec-2015,1601-00635,0.00,4.42,R,Amazon UK Marketplace,Yes
Http://opendatacommunities.org/id/metropolitan-district-council/leeds,Leeds City Council,31/01/2016,Childrens Services,Safeguarding Targeted & Specialist ,Supplies and Services,General Amenity For Clients/Residents,285,04-Dec-2015,1601-00636,0.00,5.25,R,Amazon UK Marketplace,Yes
Http://opendatacommunities.org/id/metropolitan-district-council/leeds,Leeds City Council,31/01/2016,Citizens And Communities,Benefits  Wlefare And Poverty ,Supplies and Services,Office Furniture & Equipment,201,04-Dec-2015,1601-00637,0.00,21.45,R,Amazon UK Marketplace,Yes
Http://opendatacommunities.org/id/metropolitan-district-council/leeds,Leeds City Council,31/01/2016,Childrens Services,Safeguarding Targeted & Specialist ,Supplies and Services,General Amenity For Clients/Residents,285,04-Dec-2015,1601-00638,0.00,1.39,R,Amazon UK Marketplace,Yes
Http://opendatacommunities.org/id/metropolitan-district-council/leeds,Leeds City Council,31/01/2016,City Development,Libraries  Arts & Heritage ,Supplies and Services,Operational Materials,205,04-Dec-2015,1601-00639,0.00,7.99,R,Amazon UK Marketplace,Yes
Http://opendatacommunities.org/id/metropolitan-district-council/leeds,Leeds City Council,31/01/2016,Childrens Services,Safeguarding Targeted & Specialist ,Supplies and Services,Books & Audio-Visual Materials,206,04-Dec-2015,1601-00640,0.00,1.23,R,Amazon UK Marketplace,Yes
Http://opendatacommunities.org/id/metropolitan-district-council/leeds,Leeds City Council,31/01/2016,Central & Corporate,Pppu And Procurement ,Supplies and Services,Office Consumables,210,04-Dec-2015,1601-00641,0.00,4.75,R,Amazon UK Marketplace,Yes
Http://opendatacommunities.org/id/metropolitan-district-council/leeds,Leeds City Council,31/01/2016,City Development,Libraries  Arts & Heritage ,Supplies and Services,Operational Materials,205,04-Dec-2015,1601-00642,0.00,10.48,R,Amazon UK Marketplace,Yes
Http://opendatacommunities.org/id/metropolitan-district-council/leeds,Leeds City Council,31/01/2016,Childrens Services,Safeguarding Targeted & Specialist ,Supplies and Services,General Amenity For Clients/Residents,285,04-Dec-2015,1601-00643,0.00,1.37,R,Amazon UK Marketplace,Yes
Http://opendatacommunities.org/id/metropolitan-district-council/leeds,Leeds City Council,31/01/2016,Childrens Services,Safeguarding Targeted & Specialist ,Supplies and Services,Books & Audio-Visual Materials,206,04-Dec-2015,1601-00644,0.00,1.46,R,Amazon UK Marketplace,Yes
Http://opendatacommunities.org/id/metropolitan-district-council/leeds,Leeds City Council,31/01/2016,Childrens Services,Safeguarding Targeted & Specialist ,Supplies and Services,Books & Audio-Visual Materials,206,04-Dec-2015,1601-00645,0.00,10.65,R,Amazon UK Marketplace,Yes
Http://opendatacommunities.org/id/metropolitan-district-council/leeds,Leeds City Council,31/01/2016,Childrens Services,Safeguarding Targeted & Specialist ,Supplies and Services,General Amenity For Clients/Residents,285,05-Dec-2015,1601-00646,0.00,8.29,R,Amazon UK Marketplace,Yes
Http://opendatacommunities.org/id/metropolitan-district-council/leeds,Leeds City Council,31/01/2016,Environment & Housing,Environmental Health ,Supplies and Services,Office Consumables,210,05-Dec-2015,1601-00647,0.00,14.65,R,Amazon UK Marketplace,Yes
Http://opendatacommunities.org/id/metropolitan-district-council/leeds,Leeds City Council,31/01/2016,Childrens Services,Safeguarding Targeted & Specialist ,Supplies and Services,Books & Audio-Visual Materials,206,05-Dec-2015,1601-00648,0.00,5.53,R,Amazon UK Marketplace,Yes
Http://opendatacommunities.org/id/metropolitan-district-council/leeds,Leeds City Council,31/01/2016,Childrens Services,Safeguarding Targeted & Specialist ,Supplies and Services,General Amenity For Clients/Residents,285,06-Dec-2015,1601-00649,0.00,12.49,R,Amazon UK Marketplace,Yes
Http://opendatacommunities.org/id/metropolitan-district-council/leeds,Leeds City Council,31/01/2016,Childrens Services,Safeguarding Targeted & Specialist ,Supplies and Services,Books & Audio-Visual Materials,206,06-Dec-2015,1601-00650,0.00,5.42,R,Amazon UK Marketplace,Yes
Http://opendatacommunities.org/id/metropolitan-district-council/leeds,Leeds City Council,31/01/2016,City Development,Libraries  Arts & Heritage ,Supplies and Services,Operational Furniture And Equipment,203,06-Dec-2015,1601-00651,0.00,5.89,R,Amazon UK Marketplace,Yes
Http://opendatacommunities.org/id/metropolitan-district-council/leeds,Leeds City Council,31/01/2016,Childrens Services,Safeguarding Targeted & Specialist ,Supplies and Services,General Amenity For Clients/Residents,285,06-Dec-2015,1601-00652,0.00,0.80,R,Amazon UK Marketplace,Yes
Http://opendatacommunities.org/id/metropolitan-district-council/leeds,Leeds City Council,31/01/2016,Childrens Services,Safeguarding Targeted & Specialist ,Supplies and Services,General Amenity For Clients/Residents,285,06-Dec-2015,1601-00653,0.00,8.32,R,Amazon UK Marketplace,Yes
Http://opendatacommunities.org/id/metropolitan-district-council/leeds,Leeds City Council,31/01/2016,Childrens Services,Safeguarding Targeted & Specialist ,Supplies and Services,General Amenity For Clients/Residents,285,06-Dec-2015,1601-00654,0.00,15.58,R,Amazon UK Marketplace,Yes
Http://opendatacommunities.org/id/metropolitan-district-council/leeds,Leeds City Council,31/01/2016,Citizens And Communities,Benefits  Wlefare And Poverty ,Supplies and Services,Office Furniture & Equipment,201,06-Dec-2015,1601-00655,0.00,6.99,R,Amazon UK Marketplace,Yes
Http://opendatacommunities.org/id/metropolitan-district-council/leeds,Leeds City Council,31/01/2016,City Development,Libraries  Arts & Heritage ,Supplies and Services,Operational Materials,205,07-Dec-2015,1601-00656,0.00,39.95,R,Amazon UK Marketplace,Yes
Http://opendatacommunities.org/id/metropolitan-district-council/leeds,Leeds City Council,31/01/2016,Childrens Services,Safeguarding Targeted & Specialist ,Supplies and Services,General Amenity For Clients/Residents,285,07-Dec-2015,1601-00657,0.00,4.98,R,Amazon UK Marketplace,Yes
Http://opendatacommunities.org/id/metropolitan-district-council/leeds,Leeds City Council,31/01/2016,Childrens Services,Safeguarding Targeted & Specialist ,Supplies and Services,General Amenity For Clients/Residents,285,07-Dec-2015,1601-00658,0.00,9.97,R,Amazon UK Marketplace,Yes
Http://opendatacommunities.org/id/metropolitan-district-council/leeds,Leeds City Council,31/01/2016,Childrens Services,Learning Skills & Universal ,Supplies and Services,Teaching Materials,202,07-Dec-2015,1601-00659,0.00,5.49,R,Amazon UK Marketplace,Yes
Http://opendatacommunities.org/id/metropolitan-district-council/leeds,Leeds City Council,31/01/2016,Environment & Housing,Parks And Countryside ,Supplies and Services,Operational Materials,205,07-Dec-2015,1601-00660,0.00,-2.34,R,Amazon UK Marketplace,Yes
Http://opendatacommunities.org/id/metropolitan-district-council/leeds,Leeds City Council,31/01/2016,Adult Social Care,Services For Older People - 65 And Over ,Premises,First Aid Requisites,128,08-Dec-2015,1601-00661,0.00,7.90,R,Amazon UK Marketplace,Yes
Http://opendatacommunities.org/id/metropolitan-district-council/leeds,Leeds City Council,31/01/2016,Childrens Services,Safeguarding Targeted & Specialist ,Supplies and Services,Teaching Materials,202,08-Dec-2015,1601-00662,0.00,10.48,R,Amazon UK Marketplace,Yes
Http://opendatacommunities.org/id/metropolitan-district-council/leeds,Leeds City Council,31/01/2016,Adult Social Care,Services For Older People - 65 And Over ,Premises,First Aid Requisites,128,08-Dec-2015,1601-00663,0.00,7.90,R,Amazon UK Marketplace,Yes
Http://opendatacommunities.org/id/metropolitan-district-council/leeds,Leeds City Council,31/01/2016,City Development,Libraries  Arts & Heritage ,Supplies and Services,Publication And Promotion,267,08-Dec-2015,1601-00664,0.00,276.90,R,Amazon UK Marketplace,Yes
Http://opendatacommunities.org/id/metropolitan-district-council/leeds,Leeds City Council,31/01/2016,Citizens And Communities,Customer Access ,Supplies and Services,Office Consumables,210,08-Dec-2015,1601-00665,0.00,27.98,R,Amazon UK Marketplace,Yes
Http://opendatacommunities.org/id/metropolitan-district-council/leeds,Leeds City Council,31/01/2016,Citizens And Communities,Customer Access ,Supplies and Services,Office Furniture & Equipment,201,08-Dec-2015,1601-00666,0.00,197.31,R,Amazon UK Marketplace,Yes
Http://opendatacommunities.org/id/metropolitan-district-council/leeds,Leeds City Council,31/01/2016,City Development,Libraries  Arts & Heritage ,Supplies and Services,Operational Materials,205,08-Dec-2015,1601-00667,0.00,10.79,R,Amazon UK Marketplace,Yes
Http://opendatacommunities.org/id/metropolitan-district-council/leeds,Leeds City Council,31/01/2016,City Development,Libraries  Arts & Heritage ,Supplies and Services,Operational Materials,205,08-Dec-2015,1601-00668,0.00,8.85,R,Amazon UK Marketplace,Yes
Http://opendatacommunities.org/id/metropolitan-district-council/leeds,Leeds City Council,31/01/2016,Adult Social Care,Services For Older People - 65 And Over ,Premises,First Aid Requisites,128,08-Dec-2015,1601-00669,0.00,7.90,R,Amazon UK Marketplace,Yes
Http://opendatacommunities.org/id/metropolitan-district-council/leeds,Leeds City Council,31/01/2016,Childrens Services,Safeguarding Targeted & Specialist ,Transfer Payments,Payments To Residents,622,08-Dec-2015,1601-00670,0.00,35.90,R,Amazon UK Marketplace,Yes
Http://opendatacommunities.org/id/metropolitan-district-council/leeds,Leeds City Council,31/01/2016,Childrens Services,Safeguarding Targeted & Specialist ,Transfer Payments,Payments To Residents,622,09-Dec-2015,1601-00671,0.00,36.00,R,Amazon UK Marketplace,Yes
Http://opendatacommunities.org/id/metropolitan-district-council/leeds,Leeds City Council,31/01/2016,City Development,Recreation ,Supplies and Services,Clothing & Uniforms,241,09-Dec-2015,1601-00672,0.00,41.02,R,Amazon UK Marketplace,Yes
Http://opendatacommunities.org/id/metropolitan-district-council/leeds,Leeds City Council,31/01/2016,City Development,Libraries  Arts & Heritage ,Supplies and Services,Operational Materials,205,09-Dec-2015,1601-00673,0.00,2.81,R,Amazon UK Marketplace,Yes
Http://opendatacommunities.org/id/metropolitan-district-council/leeds,Leeds City Council,31/01/2016,Citizens And Communities,Customer Access ,Supplies and Services,Operational Materials,205,09-Dec-2015,1601-00674,0.00,42.85,R,Amazon UK Marketplace,Yes
Http://opendatacommunities.org/id/metropolitan-district-council/leeds,Leeds City Council,31/01/2016,Citizens And Communities,Customer Access ,Supplies and Services,Office Consumables,210,09-Dec-2015,1601-00675,0.00,13.99,R,Amazon UK Marketplace,Yes
Http://opendatacommunities.org/id/metropolitan-district-council/leeds,Leeds City Council,31/01/2016,Central & Corporate,Pppu And Procurement ,Supplies and Services,Office Consumables,210,09-Dec-2015,1601-00676,0.00,4.47,R,Amazon UK Marketplace,Yes
Http://opendatacommunities.org/id/metropolitan-district-council/leeds,Leeds City Council,31/01/2016,City Development,Libraries  Arts & Heritage ,Supplies and Services,Operational Materials,205,09-Dec-2015,1601-00677,0.00,2.81,R,Amazon UK Marketplace,Yes
Http://opendatacommunities.org/id/metropolitan-district-council/leeds,Leeds City Council,31/01/2016,City Development,Recreation ,Supplies and Services,Operational Materials,205,09-Dec-2015,1601-00678,0.00,11.17,R,Amazon UK Marketplace,Yes
Http://opendatacommunities.org/id/metropolitan-district-council/leeds,Leeds City Council,31/01/2016,City Development,Libraries  Arts & Heritage ,Supplies and Services,Operational Materials,205,09-Dec-2015,1601-00679,0.00,4.50,R,Amazon UK Marketplace,Yes
Http://opendatacommunities.org/id/metropolitan-district-council/leeds,Leeds City Council,31/01/2016,Citizens And Communities,Benefits  Wlefare And Poverty ,Supplies and Services,Books & Audio-Visual Materials,206,10-Dec-2015,1601-00680,0.00,2.84,R,Amazon UK Marketplace,Yes
Http://opendatacommunities.org/id/metropolitan-district-council/leeds,Leeds City Council,31/01/2016,Public Health,Public Health ,Supplies and Services,Office Consumables,210,10-Dec-2015,1601-00681,0.00,14.25,R,Amazon UK Marketplace,Yes
Http://opendatacommunities.org/id/metropolitan-district-council/leeds,Leeds City Council,31/01/2016,City Development,Libraries  Arts & Heritage ,Supplies and Services,Operational Materials,205,10-Dec-2015,1601-00682,0.00,12.00,R,Amazon UK Marketplace,Yes
Http://opendatacommunities.org/id/metropolitan-district-council/leeds,Leeds City Council,31/01/2016,Civic Enterprise Leeds,Commercial Services ,Supplies and Services,Operational Furniture And Equipment,203,11-Dec-2015,1601-00683,0.00,53.80,R,Amazon UK Marketplace,Yes
Http://opendatacommunities.org/id/metropolitan-district-council/leeds,Leeds City Council,31/01/2016,Central & Corporate,Commercial Services Trading Services ,Supplies and Services,Telephones,213,11-Dec-2015,1601-00684,0.00,5.90,R,Amazon UK Marketplace,Yes
Http://opendatacommunities.org/id/metropolitan-district-council/leeds,Leeds City Council,31/01/2016,Citizens And Communities,Benefits  Wlefare And Poverty ,Supplies and Services,Books & Audio-Visual Materials,206,11-Dec-2015,1601-00685,0.00,28.80,R,Amazon UK Marketplace,Yes
Http://opendatacommunities.org/id/metropolitan-district-council/leeds,Leeds City Council,31/01/2016,Civic Enterprise Leeds,Commercial Services ,Supplies and Services,Operational Materials,205,11-Dec-2015,1601-00686,0.00,27.24,R,Amazon UK Marketplace,Yes
Http://opendatacommunities.org/id/metropolitan-district-council/leeds,Leeds City Council,31/01/2016,Citizens And Communities,Communities ,Supplies and Services,'Well Being' Large Grants Projects,230,11-Dec-2015,1601-00687,0.00,21.99,R,Amazon UK Marketplace,Yes
Http://opendatacommunities.org/id/metropolitan-district-council/leeds,Leeds City Council,31/01/2016,Childrens Services,Safeguarding Targeted & Specialist ,Supplies and Services,Operational Furniture And Equipment,203,14-Dec-2015,1601-00688,0.00,142.92,R,Amazon UK Marketplace,Yes
Http://opendatacommunities.org/id/metropolitan-district-council/leeds,Leeds City Council,31/01/2016,Childrens Services,Safeguarding Targeted & Specialist ,Supplies and Services,Operational Furniture And Equipment,203,14-Dec-2015,1601-00689,0.00,5.32,R,Amazon UK Marketplace,Yes
Http://opendatacommunities.org/id/metropolitan-district-council/leeds,Leeds City Council,31/01/2016,City Development,Libraries  Arts & Heritage ,Supplies and Services,Operational Materials,205,15-Dec-2015,1601-00690,0.00,-5.96,R,Amazon UK Marketplace,Yes
Http://opendatacommunities.org/id/metropolitan-district-council/leeds,Leeds City Council,31/01/2016,Civic Enterprise Leeds,Facilities Management ,Supplies and Services,Office Consumables,210,15-Dec-2015,1601-00691,0.00,16.33,R,Amazon UK Marketplace,Yes
Http://opendatacommunities.org/id/metropolitan-district-council/leeds,Leeds City Council,31/01/2016,Citizens And Communities,Customer Access ,Supplies and Services,Office Consumables,210,16-Dec-2015,1601-00692,0.00,1.64,R,Amazon UK Marketplace,Yes
Http://opendatacommunities.org/id/metropolitan-district-council/leeds,Leeds City Council,31/01/2016,Citizens And Communities,Customer Access ,Supplies and Services,Office Furniture & Equipment,201,16-Dec-2015,1601-00693,0.00,38.58,R,Amazon UK Marketplace,Yes
Http://opendatacommunities.org/id/metropolitan-district-council/leeds,Leeds City Council,31/01/2016,Childrens Services,Safeguarding Targeted & Specialist ,Supplies and Services,Other Hired And Contracted Services,265,16-Dec-2015,1601-00694,0.00,61.46,R,Amazon UK Marketplace,Yes
Http://opendatacommunities.org/id/metropolitan-district-council/leeds,Leeds City Council,31/01/2016,City Development,Libraries  Arts & Heritage ,Supplies and Services,Operational Materials,205,16-Dec-2015,1601-00695,0.00,103.32,R,Amazon UK Marketplace,Yes
Http://opendatacommunities.org/id/metropolitan-district-council/leeds,Leeds City Council,31/01/2016,Citizens And Communities,Customer Access ,Premises,First Aid Requisites,128,16-Dec-2015,1601-00696,0.00,8.44,R,Amazon UK Marketplace,Yes
Http://opendatacommunities.org/id/metropolitan-district-council/leeds,Leeds City Council,31/01/2016,City Development,Libraries  Arts & Heritage ,Supplies and Services,Computer Software & Equipment,214,16-Dec-2015,1601-00697,0.00,352.25,R,Amazon UK Marketplace,Yes
Http://opendatacommunities.org/id/metropolitan-district-council/leeds,Leeds City Council,31/01/2016,Central & Corporate,Technology ,Supplies and Services,Office Consumables,210,16-Dec-2015,1601-00698,0.00,10.50,R,Amazon UK Marketplace,Yes
Http://opendatacommunities.org/id/metropolitan-district-council/leeds,Leeds City Council,31/01/2016,City Development,Recreation ,Supplies and Services,Operational Materials,205,16-Dec-2015,1601-00699,0.00,34.57,R,Amazon UK Marketplace,Yes
Http://opendatacommunities.org/id/metropolitan-district-council/leeds,Leeds City Council,31/01/2016,Citizens And Communities,Customer Access ,Supplies and Services,Office Consumables,210,16-Dec-2015,1601-00700,0.00,6.02,R,Amazon UK Marketplace,Yes
Http://opendatacommunities.org/id/metropolitan-district-council/leeds,Leeds City Council,31/01/2016,City Development,Recreation ,Supplies and Services,Operational Furniture And Equipment,203,16-Dec-2015,1601-00701,0.00,48.17,R,Amazon UK Marketplace,Yes
Http://opendatacommunities.org/id/metropolitan-district-council/leeds,Leeds City Council,31/01/2016,City Development,Libraries  Arts & Heritage ,Supplies and Services,Operational Furniture And Equipment,203,17-Dec-2015,1601-00702,0.00,241.67,R,Amazon UK Marketplace,Yes
Http://opendatacommunities.org/id/metropolitan-district-council/leeds,Leeds City Council,31/01/2016,Civic Enterprise Leeds,Facilities Management ,Supplies and Services,Office Consumables,210,17-Dec-2015,1601-00703,0.00,9.62,R,Amazon UK Marketplace,Yes
Http://opendatacommunities.org/id/metropolitan-district-council/leeds,Leeds City Council,31/01/2016,Citizens And Communities,Customer Access ,Supplies and Services,Office Furniture & Equipment,201,18-Dec-2015,1601-00704,0.00,45.00,R,Amazon UK Marketplace,Yes
Http://opendatacommunities.org/id/metropolitan-district-council/leeds,Leeds City Council,31/01/2016,City Development,Libraries  Arts & Heritage ,Supplies and Services,Computer Software & Equipment,214,18-Dec-2015,1601-00705,0.00,-14.09,R,Amazon UK Marketplace,Yes
Http://opendatacommunities.org/id/metropolitan-district-council/leeds,Leeds City Council,31/01/2016,City Development,Libraries  Arts & Heritage ,Supplies and Services,Computer Software & Equipment,214,20-Dec-2015,1601-00706,0.00,10.94,R,Amazon UK Marketplace,Yes
Http://opendatacommunities.org/id/metropolitan-district-council/leeds,Leeds City Council,31/01/2016,Civic Enterprise Leeds,Business Support Centre ,Supplies and Services,Office Consumables,210,21-Dec-2015,1601-00707,0.00,-14.91,R,Amazon UK Marketplace,Yes
Http://opendatacommunities.org/id/metropolitan-district-council/leeds,Leeds City Council,31/01/2016,Central & Corporate,Technology ,Supplies and Services,Telephones,213,21-Dec-2015,1601-00708,0.00,1099.00,R,Amazon UK Marketplace,Yes
Http://opendatacommunities.org/id/metropolitan-district-council/leeds,Leeds City Council,31/01/2016,City Development,Libraries  Arts & Heritage ,Supplies and Services,Books & Audio-Visual Materials,206,21-Dec-2015,1601-00709,0.00,2.81,R,Amazon UK Marketplace,Yes
Http://opendatacommunities.org/id/metropolitan-district-council/leeds,Leeds City Council,31/01/2016,Central & Corporate,Technology ,Supplies and Services,Computer Software & Equipment,214,21-Dec-2015,1601-00710,0.00,579.50,R,Amazon UK Marketplace,Yes
Http://opendatacommunities.org/id/metropolitan-district-council/leeds,Leeds City Council,31/01/2016,Civic Enterprise Leeds,Facilities Management ,Supplies and Services,Office Consumables,210,22-Dec-2015,1601-00711,0.00,19.50,R,Amazon UK Marketplace,Yes
Http://opendatacommunities.org/id/metropolitan-district-council/leeds,Leeds City Council,31/01/2016,Citizens And Communities,Customer Access ,Supplies and Services,Office Consumables,210,23-Dec-2015,1601-00712,0.00,76.08,R,Amazon UK Marketplace,Yes
Http://opendatacommunities.org/id/metropolitan-district-council/leeds,Leeds City Council,31/01/2016,Environment & Housing,Environmental Action (East North East) ,Supplies and Services,Operational Furniture And Equipment,203,23-Dec-2015,1601-00713,0.00,4.96,R,Amazon UK Marketplace,Yes
Http://opendatacommunities.org/id/metropolitan-district-council/leeds,Leeds City Council,31/01/2016,Civic Enterprise Leeds,Business Support Centre ,Supplies and Services,Office Consumables,210,23-Dec-2015,1601-00714,0.00,-3.99,R,Amazon UK Marketplace,Yes
Http://opendatacommunities.org/id/metropolitan-district-council/leeds,Leeds City Council,31/01/2016,Childrens Services,Learning Skills & Universal ,Supplies and Services,Office Consumables,210,23-Dec-2015,1601-00715,0.00,11.25,R,Amazon UK Marketplace,Yes
Http://opendatacommunities.org/id/metropolitan-district-council/leeds,Leeds City Council,31/01/2016,Environment & Housing,Environmental Action (East North East) ,Supplies and Services,Operational Furniture And Equipment,203,23-Dec-2015,1601-00716,0.00,24.73,R,Amazon UK Marketplace,Yes
Http://opendatacommunities.org/id/metropolitan-district-council/leeds,Leeds City Council,31/01/2016,Childrens Services,Safeguarding Targeted & Specialist ,Supplies and Services,Computer Software & Equipment,214,24-Dec-2015,1601-00717,0.00,11.40,R,Amazon UK Marketplace,Yes
Http://opendatacommunities.org/id/metropolitan-district-council/leeds,Leeds City Council,31/01/2016,Central & Corporate,Pppu And Procurement ,Supplies and Services,Office Consumables,210,28-Dec-2015,1601-00718,0.00,4.24,R,Amazon UK Marketplace,Yes
Http://opendatacommunities.org/id/metropolitan-district-council/leeds,Leeds City Council,31/01/2016,Citizens And Communities,Customer Access ,Supplies and Services,Office Consumables,210,01-Dec-2015,1601-00719,0.00,25.23,R,Amazon UK Retail,Yes
Http://opendatacommunities.org/id/metropolitan-district-council/leeds,Leeds City Council,31/01/2016,Central & Corporate,Finance ,Supplies and Services,Office Furniture & Equipment,201,02-Dec-2015,1601-00720,0.00,7.88,R,Amazon UK Retail,Yes
Http://opendatacommunities.org/id/metropolitan-district-council/leeds,Leeds City Council,31/01/2016,Central & Corporate,Finance ,Supplies and Services,Office Furniture & Equipment,201,02-Dec-2015,1601-00721,0.00,7.88,R,Amazon UK Retail,Yes
Http://opendatacommunities.org/id/metropolitan-district-council/leeds,Leeds City Council,31/01/2016,Central & Corporate,Finance ,Supplies and Services,Office Furniture & Equipment,201,03-Dec-2015,1601-00722,0.00,64.82,R,Amazon UK Retail,Yes
Http://opendatacommunities.org/id/metropolitan-district-council/leeds,Leeds City Council,31/01/2016,City Development,Libraries  Arts & Heritage ,Supplies and Services,Operational Materials,205,04-Dec-2015,1601-00723,0.00,34.99,R,Amazon UK Retail,Yes
Http://opendatacommunities.org/id/metropolitan-district-council/leeds,Leeds City Council,31/01/2016,Childrens Services,Safeguarding Targeted & Specialist ,Supplies and Services,Office Consumables,210,04-Dec-2015,1601-00724,0.00,20.82,R,Amazon UK Retail,Yes
Http://opendatacommunities.org/id/metropolitan-district-council/leeds,Leeds City Council,31/01/2016,Childrens Services,Learning Skills & Universal ,Supplies and Services,Teaching Materials,202,04-Dec-2015,1601-00725,0.00,4.99,R,Amazon UK Retail,Yes
Http://opendatacommunities.org/id/metropolitan-district-council/leeds,Leeds City Council,31/01/2016,City Development,Libraries  Arts & Heritage ,Supplies and Services,Teaching Materials,202,04-Dec-2015,1601-00726,0.00,14.24,R,Amazon UK Retail,Yes
Http://opendatacommunities.org/id/metropolitan-district-council/leeds,Leeds City Council,31/01/2016,Childrens Services,Learning Skills & Universal ,Supplies and Services,Teaching Materials,202,04-Dec-2015,1601-00727,0.00,18.32,R,Amazon UK Retail,Yes
Http://opendatacommunities.org/id/metropolitan-district-council/leeds,Leeds City Council,31/01/2016,Childrens Services,Learning Skills & Universal ,Supplies and Services,Teaching Materials,202,05-Dec-2015,1601-00728,0.00,9.89,R,Amazon UK Retail,Yes
Http://opendatacommunities.org/id/metropolitan-district-council/leeds,Leeds City Council,31/01/2016,City Development,Libraries  Arts & Heritage ,Supplies and Services,Teaching Materials,202,05-Dec-2015,1601-00729,0.00,29.07,R,Amazon UK Retail,Yes
Http://opendatacommunities.org/id/metropolitan-district-council/leeds,Leeds City Council,31/01/2016,Civic Enterprise Leeds,Commercial Services ,Supplies and Services,Operational Furniture And Equipment,203,05-Dec-2015,1601-00730,0.00,7.09,R,Amazon UK Retail,Yes
Http://opendatacommunities.org/id/metropolitan-district-council/leeds,Leeds City Council,31/01/2016,Citizens And Communities,Communities ,Supplies and Services,Computer Software & Equipment,214,06-Dec-2015,1601-00731,0.00,171.12,R,Amazon UK Retail,Yes
Http://opendatacommunities.org/id/metropolitan-district-council/leeds,Leeds City Council,31/01/2016,City Development,Recreation ,Supplies and Services,Operational Furniture And Equipment,203,06-Dec-2015,1601-00732,0.00,26.67,R,Amazon UK Retail,Yes
Http://opendatacommunities.org/id/metropolitan-district-council/leeds,Leeds City Council,31/01/2016,Childrens Services,Partnership Development & Leadership ,Supplies and Services,Office Consumables,210,08-Dec-2015,1601-00733,0.00,-22.74,R,Amazon UK Retail,Yes
Http://opendatacommunities.org/id/metropolitan-district-council/leeds,Leeds City Council,31/01/2016,Citizens And Communities,Customer Access ,Supplies and Services,Office Furniture & Equipment,201,09-Dec-2015,1601-00734,0.00,24.74,R,Amazon UK Retail,Yes
Http://opendatacommunities.org/id/metropolitan-district-council/leeds,Leeds City Council,31/01/2016,Environment & Housing,Parks And Countryside ,Supplies and Services,Operational Materials,205,09-Dec-2015,1601-00735,0.00,34.74,R,Amazon UK Retail,Yes
Http://opendatacommunities.org/id/metropolitan-district-council/leeds,Leeds City Council,31/01/2016,City Development,Libraries  Arts & Heritage ,Supplies and Services,Operational Furniture And Equipment,203,09-Dec-2015,1601-00736,0.00,44.70,R,Amazon UK Retail,Yes
Http://opendatacommunities.org/id/metropolitan-district-council/leeds,Leeds City Council,31/01/2016,City Development,Recreation ,Supplies and Services,Operational Furniture And Equipment,203,09-Dec-2015,1601-00737,0.00,26.67,R,Amazon UK Retail,Yes
Http://opendatacommunities.org/id/metropolitan-district-council/leeds,Leeds City Council,31/01/2016,City Development,Libraries  Arts & Heritage ,Supplies and Services,Operational Furniture And Equipment,203,10-Dec-2015,1601-00738,0.00,44.71,R,Amazon UK Retail,Yes
Http://opendatacommunities.org/id/metropolitan-district-council/leeds,Leeds City Council,31/01/2016,City Development,Libraries  Arts & Heritage ,Supplies and Services,Operational Materials,205,10-Dec-2015,1601-00739,0.00,25.82,R,Amazon UK Retail,Yes
Http://opendatacommunities.org/id/metropolitan-district-council/leeds,Leeds City Council,31/01/2016,Environment & Housing,Environmental Action (East North East) ,Supplies and Services,Operational Furniture And Equipment,203,10-Dec-2015,1601-00740,0.00,28.95,R,Amazon UK Retail,Yes
Http://opendatacommunities.org/id/metropolitan-district-council/leeds,Leeds City Council,31/01/2016,City Development,Libraries  Arts & Heritage ,Supplies and Services,Operational Furniture And Equipment,203,10-Dec-2015,1601-00741,0.00,59.28,R,Amazon UK Retail,Yes
Http://opendatacommunities.org/id/metropolitan-district-council/leeds,Leeds City Council,31/01/2016,City Development,Libraries  Arts & Heritage ,Supplies and Services,Operational Furniture And Equipment,203,10-Dec-2015,1601-00742,0.00,59.28,R,Amazon UK Retail,Yes
Http://opendatacommunities.org/id/metropolitan-district-council/leeds,Leeds City Council,31/01/2016,City Development,Libraries  Arts & Heritage ,Supplies and Services,Operational Furniture And Equipment,203,10-Dec-2015,1601-00743,0.00,44.72,R,Amazon UK Retail,Yes
Http://opendatacommunities.org/id/metropolitan-district-council/leeds,Leeds City Council,31/01/2016,City Development,Libraries  Arts & Heritage ,Supplies and Services,Operational Furniture And Equipment,203,10-Dec-2015,1601-00744,0.00,59.28,R,Amazon UK Retail,Yes
Http://opendatacommunities.org/id/metropolitan-district-council/leeds,Leeds City Council,31/01/2016,City Development,Libraries  Arts & Heritage ,Supplies and Services,Operational Furniture And Equipment,203,10-Dec-2015,1601-00745,0.00,59.27,R,Amazon UK Retail,Yes
